Authority,Department,Spending Area,Expense Type,Posting Date,Reference,Amount ,Supplier
OXFORDSHIRE CC,"CHILDRENS, YOUNG PEOPLE AND FAMILIES",THAME E&A HOME,VEHICLE FUEL,26/06/2020,7219246946,19.45,THAME BP SF CONNECT
OXFORDSHIRE CC,"CHILDRENS, YOUNG PEOPLE AND FAMILIES","	LEAVING CARE NORTH",OTHER TRANSPORT ARRANGEMENTS,26/06/2020,7219247040,15.25,PAYPAL  TRAINLINE
OXFORDSHIRE CC,"CHILDRENS, YOUNG PEOPLE AND FAMILIES","	LOOKED AFTER SOUTH",CATERING PROVISIONS,26/06/2020,7219247058,40,TESCO STORE 2994
OXFORDSHIRE CC,CORPORATE CORE,INCOME TEAM,PAYMENT TO GOVERNMENT DEPARTMENTS,26/06/2020,7219247122,11,GEN REGISTER OFFICE
OXFORDSHIRE CC,CORPORATE CORE,INCOME TEAM,PAYMENT TO GOVERNMENT DEPARTMENTS,26/06/2020,7219247134,11,GEN REGISTER OFFICE
OXFORDSHIRE CC,CORPORATE CORE,INCOME TEAM,PAYMENT TO GOVERNMENT DEPARTMENTS,26/06/2020,7219247142,11,GEN REGISTER OFFICE
OXFORDSHIRE CC,CORPORATE CORE,INCOME TEAM,PAYMENT TO GOVERNMENT DEPARTMENTS,26/06/2020,7219244674,11,GEN REGISTER OFFICE
OXFORDSHIRE CC,"CHILDRENS, YOUNG PEOPLE AND FAMILIES","	FAMILY SUPPORT CITY3",MATERIALS,26/06/2020,7219244704,34.99,TESCO ONLINE
OXFORDSHIRE CC,CORPORATE CORE,INCOME TEAM,PAYMENT TO GOVERNMENT DEPARTMENTS,26/06/2020,7219247152,1.5,WWW.GOV.UK
OXFORDSHIRE CC,CORPORATE CORE,INCOME TEAM,PAYMENT TO GOVERNMENT DEPARTMENTS,26/06/2020,7219247158,1.5,WWW.GOV.UK
OXFORDSHIRE CC,CORPORATE CORE,INCOME TEAM,PAYMENT TO GOVERNMENT DEPARTMENTS,26/06/2020,7219247164,1.5,WWW.GOV.UK
OXFORDSHIRE CC,CORPORATE CORE,INCOME TEAM,PAYMENT TO GOVERNMENT DEPARTMENTS,26/06/2020,7219247170,1.5,WWW.GOV.UK
OXFORDSHIRE CC,"CHILDRENS, YOUNG PEOPLE AND FAMILIES",NORTH FSS- WITNEY,OTHER TRANSPORT ARRANGEMENTS,26/06/2020,7219243364,-27.5,STAGECOACH SERVICE
OXFORDSHIRE CC,"CHILDRENS, YOUNG PEOPLE AND FAMILIES",NORTH FSS- WITNEY,OTHER TRANSPORT ARRANGEMENTS,26/06/2020,7219243374,-27.5,STAGECOACH SERVICE
OXFORDSHIRE CC,"CHILDRENS, YOUNG PEOPLE AND FAMILIES","	LOOKED AFTER NORTH",MATERIALS,26/06/2020,7219244730,442.99,CURRYS ONLINE
OXFORDSHIRE CC,"CHILDRENS, YOUNG PEOPLE AND FAMILIES",FIELDWORK UASC,OTHER TRANSPORT ARRANGEMENTS,26/06/2020,7219244744,3.9,OXFORD BUS COMPANY
OXFORDSHIRE CC,"CHILDRENS, YOUNG PEOPLE AND FAMILIES",FIELDWORK UASC,PAYMENTS TO TRANSPORT OPERATORS,26/06/2020,7219244754,20.25,GWR OXFORD TO
OXFORDSHIRE CC,CORPORATE CORE,INCOME TEAM,PAYMENT TO GOVERNMENT DEPARTMENTS,26/06/2020,7219247176,1.5,WWW.GOV.UK
OXFORDSHIRE CC,CORPORATE CORE,,"SUPPLIES, STATIONERY AND MATERIALS",26/06/2020,7219247272,346.26,LYRECO UK LTD
OXFORDSHIRE CC,SOCIAL AND COMMUNITY SERVICES,CSS WITNEY,MATERIALS,26/06/2020,7219245896,8.2,AMAZON.CO.UK D316Z6RQ5
OXFORDSHIRE CC,"CHILDRENS, YOUNG PEOPLE AND FAMILIES","	SEN/ICT EQUIPMENT",PURCHASE OF IT EQUIPMENT,26/06/2020,7219245914,7.53,AMZNMKTPLACE
OXFORDSHIRE CC,"CHILDRENS, YOUNG PEOPLE AND FAMILIES",THAME E&A HOME,CATERING PROVISIONS,26/06/2020,7219244070,47.9,SAINSBURYS 2096
OXFORDSHIRE CC,"CHILDRENS, YOUNG PEOPLE AND FAMILIES",CSC COVID-19,TELEPHONE - EQUIPMENT,26/06/2020,7219244076,15,EE TOP UP VESTA
OXFORDSHIRE CC,"CHILDRENS, YOUNG PEOPLE AND FAMILIES",NTH EARLY HELP-BNRBY,"BOOKS, DVDS AND CDS",26/06/2020,7219244088,292.9,FAMILY LINKS
OXFORDSHIRE CC,"CHILDRENS, YOUNG PEOPLE AND FAMILIES",WITNEY,CATERING PROVISIONS,26/06/2020,7219244104,5.7,SAINSBURYS SACAT 0632
OXFORDSHIRE CC,SOCIAL AND COMMUNITY SERVICES,DIDCOT MOVE-ON HOME,CATERING PROVISIONS,26/06/2020,7219244172,14.46,SAINSBURYS SACAT 2067
OXFORDSHIRE CC,CORPORATE CORE,LIBRARY COLLECTIONS,"BOOKS, DVDS AND CDS",26/06/2020,7219244204,168.5,OVERDRIVE DIST
OXFORDSHIRE CC,"CHILDRENS, YOUNG PEOPLE AND FAMILIES","	FAM SUPP CITY 1",FURNITURE,26/06/2020,7219246388,-52.99,WF  WAYFAIR 3092217494
OXFORDSHIRE CC,SOCIAL AND COMMUNITY SERVICES,CSS BICESTER,CATERING PROVISIONS,26/06/2020,7219244264,26,WILKO RETAIL LIMITED
OXFORDSHIRE CC,ENVIRONMENT AND ECONOMY,OMNICAV,"SUPPLIES, STATIONERY AND MATERIALS",26/06/2020,7219244290,24.48,WWW.BLACKWELL.CO.UK
OXFORDSHIRE CC,"CHILDRENS, YOUNG PEOPLE AND FAMILIES","	40 THE MOORS",CATERING,26/06/2020,7219246458,48.95,WWW.PAPAJOHNS.CO.UK
OXFORDSHIRE CC,CORPORATE CORE,"MARKETING, COMMUNICATIONS & ENGAGEMENT",IT SOFTWARE,26/06/2020,7219244294,78.97,ADOBE STOCK
OXFORDSHIRE CC,SOCIAL AND COMMUNITY SERVICES,"	HISTORY SERVICE","BOOKS, DVDS AND CDS",26/06/2020,7219244330,15,AMAZON.CO.UK VC2DN1TG5
OXFORDSHIRE CC,"CHILDRENS, YOUNG PEOPLE AND FAMILIES","	LOOKED AFTER CITY 2",OTHER TRANSPORT ARRANGEMENTS,26/06/2020,7219246728,40,IZ  ROYAL CARS OXFORD
OXFORDSHIRE CC,"CHILDRENS, YOUNG PEOPLE AND FAMILIES","	LOOKED AFTER CITY 2",OTHER EXPENSES,26/06/2020,7219246738,10,SPAR GREATER LEYS
OXFORDSHIRE CC,"CHILDRENS, YOUNG PEOPLE AND FAMILIES","	HOME SUPPORT",MATERIALS,26/06/2020,7219244640,24.3,AMZNMKTPLACE
OXFORDSHIRE CC,SOCIAL AND COMMUNITY SERVICES,CSS - BANBURY,CATERING PROVISIONS,26/06/2020,7219243390,26.5,ICELAND
OXFORDSHIRE CC,"CHILDRENS, YOUNG PEOPLE AND FAMILIES",WITNEY,MATERIALS,26/06/2020,7219243530,12,AMZNMKTPLACE AMAZON.CO
OXFORDSHIRE CC,"CHILDRENS, YOUNG PEOPLE AND FAMILIES",WITNEY,MATERIALS,26/06/2020,7219243534,66.58,AMZNMKTPLACE AMAZON.CO
OXFORDSHIRE CC,SOCIAL AND COMMUNITY SERVICES,CSS - DIDCOT,CATERING,26/06/2020,7219243558,3.59,BLEWBURY SERVICE STATI
OXFORDSHIRE CC,"CHILDRENS, YOUNG PEOPLE AND FAMILIES","	LEAVING CARE SOUTH",MATERIALS,26/06/2020,7219244870,19.99,ARGOS LTD
OXFORDSHIRE CC,ENVIRONMENT AND ECONOMY,"	NAT TRAILS GENERAL",MATERIALS,26/06/2020,7219243594,7.97,PAYPAL  POWERTOOLCE
OXFORDSHIRE CC,ENVIRONMENT AND ECONOMY,"	NAT TRAILS GENERAL","SUPPLIES, STATIONERY AND MATERIALS",26/06/2020,7219243596,269.69,FAROL
OXFORDSHIRE CC,ENVIRONMENT AND ECONOMY,"	NAT TRAILS GENERAL",VEHICLE FUEL,26/06/2020,7219243600,22.56,CO-OPERATIVE FUEL
OXFORDSHIRE CC,ENVIRONMENT AND ECONOMY,HOLDING CODE FOR REA,VEHICLES REPAIRS AND MAINTENANCE,26/06/2020,7219243620,485.2,KWIK-FIT.COM
OXFORDSHIRE CC,"CHILDRENS, YOUNG PEOPLE AND FAMILIES",THAME E&A HOME,VEHICLE FUEL,26/06/2020,7219243644,37.25,THAME BP SF CONNECT
OXFORDSHIRE CC,SOCIAL AND COMMUNITY SERVICES,CSS - ABINGDON,CATERING PROVISIONS,26/06/2020,7219243670,13,TESCO STORES 2008
OXFORDSHIRE CC,SOCIAL AND COMMUNITY SERVICES,CSS - ABINGDON,MATERIALS,26/06/2020,7219243674,11,B & Q 1156
OXFORDSHIRE CC,ENVIRONMENT AND ECONOMY,HARD FM,HARDWARE AND CROCKERY,26/06/2020,7219243694,61.49,SCREWFIX DIRECT
OXFORDSHIRE CC,"CHILDRENS, YOUNG PEOPLE AND FAMILIES",C&I COUNTYWIDE,EDUCATIONAL AND VOCATIONAL TRAINING ,26/06/2020,7219245072,684,TEAM TEACH
OXFORDSHIRE CC,"CHILDRENS, YOUNG PEOPLE AND FAMILIES","	40 THE MOORS",CATERING PROVISIONS,26/06/2020,7219245566,11.93,SAINSBURYS 0631
OXFORDSHIRE CC,ENVIRONMENT AND ECONOMY,HARD FM,EQUIPMENT,26/06/2020,7219243722,108,NEWEY & EYRE
OXFORDSHIRE CC,ENVIRONMENT AND ECONOMY,HARD FM,HARDWARE AND CROCKERY,26/06/2020,7219243742,48.66,WWW.IRONMONGERYDIRECT.
OXFORDSHIRE CC,ENVIRONMENT AND ECONOMY,HARD FM,HARDWARE AND CROCKERY,26/06/2020,7219243776,204.66,CITY PLUMBING
OXFORDSHIRE CC,SOCIAL AND COMMUNITY SERVICES,LEAVING CARE NORTH,PAYMENTS TO TRANSPORT OPERATORS,26/06/2020,7219245650,7.89,THETRAINLINE.COM
OXFORDSHIRE CC,SOCIAL AND COMMUNITY SERVICES,LEAVING CARE NORTH,CLIENT LODGINGS AND ACCOMMODATION,26/06/2020,7219245658,770,7 SEAS PROPERTY LTD
OXFORDSHIRE CC,SOCIAL AND COMMUNITY SERVICES,LEAVING CARE NORTH,CLIENT LODGINGS AND ACCOMMODATION,26/06/2020,7219245666,440,7 SEAS PROPERTY LTD
OXFORDSHIRE CC,"CHILDRENS, YOUNG PEOPLE AND FAMILIES","	DISABILITIES TEAM-C",MATERIALS,26/06/2020,7219243836,7.49,AMZNMKTPLACE AMAZON.CO
OXFORDSHIRE CC,SOCIAL AND COMMUNITY SERVICES,DIDCOT MOVE-ON HOME,MATERIALS,26/06/2020,7219243882,27.98,AMZNMKTPLACE
OXFORDSHIRE CC,"CHILDRENS, YOUNG PEOPLE AND FAMILIES",EYNSHAM,CATERING PROVISIONS,26/06/2020,7219243904,12.61,CO-OPERATIVE FOOD
OXFORDSHIRE CC,"CHILDRENS, YOUNG PEOPLE AND FAMILIES","	FAM SUPP CITY 1",MATERIALS,26/06/2020,7219243922,22.99,AMAZON.CO.UK WY80H3PN5
OXFORDSHIRE CC,"CHILDRENS, YOUNG PEOPLE AND FAMILIES","	FAM SUPP CITY 1",MATERIALS,26/06/2020,7219243928,240,M & M SKIP HIRE
OXFORDSHIRE CC,"CHILDRENS, YOUNG PEOPLE AND FAMILIES","	FAM SUPP CITY 1",MATERIALS,26/06/2020,7219243938,240,M & M SKIP HIRE
OXFORDSHIRE CC,SOCIAL AND COMMUNITY SERVICES,CSS WITNEY,MATERIALS,26/06/2020,7219245888,27.9,AMZNMKTPLACE
OXFORDSHIRE CC,ENVIRONMENT AND ECONOMY,"	ROW MAINT",EQUIPMENT,25/06/2020,7216346286,36,OXON FASTENING SYSTEMS
OXFORDSHIRE CC,ENVIRONMENT AND ECONOMY,"	ROW MAINT",EQUIPMENT,25/06/2020,7216346292,1.5,OXON FASTENING SYSTEMS
OXFORDSHIRE CC,ENVIRONMENT AND ECONOMY,"	BRIDGES GENERAL",OTHER COMMUNICATIONS,25/06/2020,7216346302,400.57,SPOT EURO
OXFORDSHIRE CC,CORPORATE CORE,"	LEGAL SERVICES",EDUCATIONAL AND VOCATIONAL TRAINING ,25/06/2020,7216346398,22,OXFORDSHIRE CC MOTO1
OXFORDSHIRE CC,SOCIAL AND COMMUNITY SERVICES,LEAVING CARE NORTH,PAYMENTS TO TRANSPORT OPERATORS,25/06/2020,7216346412,7.89,THETRAINLINE.COM
OXFORDSHIRE CC,"CHILDRENS, YOUNG PEOPLE AND FAMILIES","	AAC EQUIPMENT",PURCHASE OF IT EQUIPMENT,25/06/2020,7216346450,38.45,AMZNMKTPLACE
OXFORDSHIRE CC,"CHILDRENS, YOUNG PEOPLE AND FAMILIES","	SEN/ICT EQUIPMENT",PURCHASE OF IT EQUIPMENT,25/06/2020,7216346460,10.97,AMZNMKTPLACE
OXFORDSHIRE CC,"CHILDRENS, YOUNG PEOPLE AND FAMILIES","	SEN/ICT EQUIPMENT",PURCHASE OF IT EQUIPMENT,25/06/2020,7216346460,7.49,AMZNMKTPLACE
OXFORDSHIRE CC,"CHILDRENS, YOUNG PEOPLE AND FAMILIES",FIELDWORK UASC,DRUGS AND MEDICAL SUPPLIES,25/06/2020,7216346012,3.39,BOOTS 0346
OXFORDSHIRE CC,"CHILDRENS, YOUNG PEOPLE AND FAMILIES",UASC 16&17,VEHICLE FUEL,25/06/2020,7216346018,40,SHELL HEADINGTON
OXFORDSHIRE CC,ENVIRONMENT AND ECONOMY,HARD FM,EQUIPMENT,25/06/2020,7216346022,90,NEWEY & EYRE
OXFORDSHIRE CC,ENVIRONMENT AND ECONOMY,HARD FM,HARDWARE AND CROCKERY,25/06/2020,7216346026,24.35,CITY PLUMBING
OXFORDSHIRE CC,ENVIRONMENT AND ECONOMY,HARD FM,HARDWARE AND CROCKERY,25/06/2020,7216346032,116.69,CITY PLUMBING
OXFORDSHIRE CC,SOCIAL AND COMMUNITY SERVICES,CSS - OXFORD,CATERING PROVISIONS,25/06/2020,7216346044,6.5,MEATMASTER
OXFORDSHIRE CC,SOCIAL AND COMMUNITY SERVICES,CSS - OXFORD,CATERING PROVISIONS,25/06/2020,7216346048,56.38,ALDI STORES 775-142
OXFORDSHIRE CC,"CHILDRENS, YOUNG PEOPLE AND FAMILIES","	DISABILITIES TEAM-C",MATERIALS,25/06/2020,7216346052,444,AMZNMKTPLACE AMAZON.CO
OXFORDSHIRE CC,"CHILDRENS, YOUNG PEOPLE AND FAMILIES","	DISABILITIES TEAM-C",MATERIALS,25/06/2020,7216346056,18.99,AMZNMKTPLACE AMAZON.CO
OXFORDSHIRE CC,"CHILDRENS, YOUNG PEOPLE AND FAMILIES","	DISABILITIES TEAM-C",MATERIALS,25/06/2020,7216346058,50,AMAZON.CO.UK HC2GC5WV5
OXFORDSHIRE CC,CORPORATE CORE,HOUSING& GROWTH DEAL,OTHER TRAINING COURSES AND QUALIFICATION,25/06/2020,7216346066,270,C I H
OXFORDSHIRE CC,"CHILDRENS, YOUNG PEOPLE AND FAMILIES",DIDCOT MOVE-ON HOME,CATERING PROVISIONS,25/06/2020,7216346092,17.6,WILKO RETAIL LIMITED
OXFORDSHIRE CC,"CHILDRENS, YOUNG PEOPLE AND FAMILIES",DIDCOT MOVE-ON HOME,CATERING PROVISIONS,25/06/2020,7216346096,3.55,ICELAND
OXFORDSHIRE CC,"CHILDRENS, YOUNG PEOPLE AND FAMILIES",CSC COVID-19,MATERIALS,25/06/2020,7216346110,60.99,ARGOS LTD
OXFORDSHIRE CC,"CHILDRENS, YOUNG PEOPLE AND FAMILIES",THAME E&A HOME,CATERING PROVISIONS,25/06/2020,7216346116,26.9,SAINSBURYS 2096
OXFORDSHIRE CC,"CHILDRENS, YOUNG PEOPLE AND FAMILIES",DIDCOT MOVE-ON HOME,CATERING PROVISIONS,25/06/2020,7216346120,3.1,SAINSBURYS SACAT 2067
OXFORDSHIRE CC,SOCIAL AND COMMUNITY SERVICES,DIDCOT MOVE-ON HOME,CATERING PROVISIONS,25/06/2020,7216346138,2.25,SAINSBURYS SACAT 2067
OXFORDSHIRE CC,SOCIAL AND COMMUNITY SERVICES,DIDCOT MOVE-ON HOME,CATERING PROVISIONS,25/06/2020,7216346140,24.32,SAINSBURYS SACAT 2067
OXFORDSHIRE CC,CORPORATE CORE,LIBRARY COLLECTIONS,"BOOKS, DVDS AND CDS",25/06/2020,7216346150,413.7,OVERDRIVE DIST
OXFORDSHIRE CC,CORPORATE CORE,LIBRARY COLLECTIONS,"BOOKS, DVDS AND CDS",25/06/2020,7216346152,405.37,OVERDRIVE DIST
OXFORDSHIRE CC,"CHILDRENS, YOUNG PEOPLE AND FAMILIES",NTH FAM SUPRT-BCSTR,TELEPHONE - EQUIPMENT,25/06/2020,7216346156,20,VESTA VODAFONE
OXFORDSHIRE CC,"CHILDRENS, YOUNG PEOPLE AND FAMILIES",NTH FAM SUPRT-BCSTR,TELEPHONE - EQUIPMENT,25/06/2020,7216346160,15,WWW.THREE.CO.UK
OXFORDSHIRE CC,"CHILDRENS, YOUNG PEOPLE AND FAMILIES","	LOOKED AFTER NORTH",HIRE OF ACCOMMODATION AND FACILITIES,25/06/2020,7216346174,791,HOTEL ON BOOKING.COM
OXFORDSHIRE CC,SOCIAL AND COMMUNITY SERVICES,CSS BICESTER,CATERING PROVISIONS,25/06/2020,7216346192,13.05,SAINSBURYS SACAT (2243
OXFORDSHIRE CC,"CHILDRENS, YOUNG PEOPLE AND FAMILIES","	SENSS TRAINING",SUBSCRIPTIONS,25/06/2020,7216346208,466.8,GOVERNMENT EVENTS
OXFORDSHIRE CC,"CHILDRENS, YOUNG PEOPLE AND FAMILIES","	HOME SUPPORT",MATERIALS,25/06/2020,7216346212,45.48,AMZNMKTPLACE AMAZON.CO
OXFORDSHIRE CC,CORPORATE CORE,INCOME TEAM,PAYMENT TO GOVERNMENT DEPARTMENTS,25/06/2020,7216346216,1.5,WWW.GOV.UK
OXFORDSHIRE CC,"CHILDRENS, YOUNG PEOPLE AND FAMILIES",CSC COVID-19,MATERIALS,25/06/2020,7216346220,40,TESCO ONLINE
OXFORDSHIRE CC,"CHILDRENS, YOUNG PEOPLE AND FAMILIES",NRPF & HOMELESSNESS,MATERIALS,25/06/2020,7216346538,215.2,ARGOS LTD
OXFORDSHIRE CC,"CHILDRENS, YOUNG PEOPLE AND FAMILIES","	LEAVING CARE CITY 2",OTHER TRANSPORT ARRANGEMENTS,25/06/2020,7216346582,15,IZ  ROYAL CARS OXFORD
OXFORDSHIRE CC,"CHILDRENS, YOUNG PEOPLE AND FAMILIES","	LEAVING CARE CITY 2",OTHER TRANSPORT ARRANGEMENTS,25/06/2020,7216346584,15,IZ  ROYAL CARS OXFORD
OXFORDSHIRE CC,"CHILDRENS, YOUNG PEOPLE AND FAMILIES",THAME E&A HOME,VEHICLE FUEL,25/06/2020,7216346592,5,STADHAMPTON SF CONNECT
OXFORDSHIRE CC,"CHILDRENS, YOUNG PEOPLE AND FAMILIES",CNTL EARLY HELP-RHIL,MATERIALS,25/06/2020,7216346594,7.33,AMAZON.CO.UK YV6CN1LS5
OXFORDSHIRE CC,"CHILDRENS, YOUNG PEOPLE AND FAMILIES",MANAGEMENT,MATERIALS,25/06/2020,7216346596,14.98,AMAZON.CO.UK 6145Q6PX5
OXFORDSHIRE CC,"CHILDRENS, YOUNG PEOPLE AND FAMILIES",CNTL ERLY HELP-BBLEY,POSTAGE AND DELIVERY,25/06/2020,7216346598,4.92,POST OFFICE COUNTER
OXFORDSHIRE CC,"CHILDRENS, YOUNG PEOPLE AND FAMILIES",CNTL ERLY HELP-BBLEY,POSTAGE AND DELIVERY,25/06/2020,7216346600,20.22,POST OFFICE COUNTER
OXFORDSHIRE CC,"CHILDRENS, YOUNG PEOPLE AND FAMILIES",CNTL ERLY HELP-BBLEY,CATERING PROVISIONS,25/06/2020,7216346604,9.69,MARTIN MCCOLL
OXFORDSHIRE CC,"CHILDRENS, YOUNG PEOPLE AND FAMILIES",THAME E&A HOME,MANAGEMENT CONSULTANT FEES,25/06/2020,7216345924,157.5,TVLICENSING.CO.UK
OXFORDSHIRE CC,CORPORATE CORE,INCOME TEAM,PAYMENT TO GOVERNMENT DEPARTMENTS,25/06/2020,7216346608,1.5,WWW.GOV.UK
OXFORDSHIRE CC,"CHILDRENS, YOUNG PEOPLE AND FAMILIES","	RIVERSIDE CENTRE",MATERIALS,25/06/2020,7216346614,325.98,THE OXFORD BICYCLE COM
OXFORDSHIRE CC,"CHILDRENS, YOUNG PEOPLE AND FAMILIES",FAMILY SUPPORT 2,MATERIALS,25/06/2020,7216346622,224.99,AMZNMKTPLACE
OXFORDSHIRE CC,"CHILDRENS, YOUNG PEOPLE AND FAMILIES",EYNSHAM,"SUPPLIES, STATIONERY AND MATERIALS",25/06/2020,7216346628,16.99,WWW.LEISURE.ORDNANCE
OXFORDSHIRE CC,CORPORATE CORE,,"SUPPLIES, STATIONERY AND MATERIALS",25/06/2020,7216346634,2.21,LYRECO UK LTD
OXFORDSHIRE CC,CORPORATE CORE,,"SUPPLIES, STATIONERY AND MATERIALS",25/06/2020,7216346636,6.91,LYRECO UK LTD
OXFORDSHIRE CC,CORPORATE CORE,,"SUPPLIES, STATIONERY AND MATERIALS",25/06/2020,7216346638,28.86,LYRECO UK LTD
OXFORDSHIRE CC,"CHILDRENS, YOUNG PEOPLE AND FAMILIES",WITNEY,MATERIALS,25/06/2020,7216345960,27,THE POTTERY PLACE
OXFORDSHIRE CC,"CHILDRENS, YOUNG PEOPLE AND FAMILIES",WITNEY,CATERING PROVISIONS,25/06/2020,7216345966,21.65,SAINSBURYS 0632
OXFORDSHIRE CC,"CHILDRENS, YOUNG PEOPLE AND FAMILIES",WITNEY,HARDWARE AND CROCKERY,25/06/2020,7216345970,4.5,B & Q 1176
OXFORDSHIRE CC,ENVIRONMENT AND ECONOMY,"	NAT TRAILS GENERAL",MATERIALS,25/06/2020,7216345976,38.99,AMZNMKTPLACE AMAZON.CO
OXFORDSHIRE CC,"CHILDRENS, YOUNG PEOPLE AND FAMILIES","	RESIDENTIAL STRATEGY",HARDWARE AND CROCKERY,25/06/2020,7216345984,34.16,B & Q 1176
OXFORDSHIRE CC,CORPORATE CORE,INCOME TEAM,PAYMENT TO GOVERNMENT DEPARTMENTS,24/06/2020,7213871636,1.5,WWW.GOV.UK
OXFORDSHIRE CC,CORPORATE CORE,,"SUPPLIES, STATIONERY AND MATERIALS",24/06/2020,7213871642,4.36,LYRECO UK LTD
OXFORDSHIRE CC,CORPORATE CORE,,"SUPPLIES, STATIONERY AND MATERIALS",24/06/2020,7213871646,63.25,LYRECO UK LTD
OXFORDSHIRE CC,CORPORATE CORE,,"SUPPLIES, STATIONERY AND MATERIALS",24/06/2020,7213871650,41.9,LYRECO UK LTD
OXFORDSHIRE CC,ENTERPRISEVC,,CAR LEASING - PRIVATE RENTALS,24/06/2020,7213871654,55.48,ENTERPRISE RENT-A-CAR
OXFORDSHIRE CC,ENTERPRISEVC,,CAR LEASING - PRIVATE RENTALS,24/06/2020,7213871658,75.35,ENTERPRISE RENT-A-CAR
OXFORDSHIRE CC,"CHILDRENS, YOUNG PEOPLE AND FAMILIES",CSC COVID-19,"SUPPLIES, STATIONERY AND MATERIALS",24/06/2020,7213871226,4.99,AMZNMKTPLACE AMAZON.CO
OXFORDSHIRE CC,"CHILDRENS, YOUNG PEOPLE AND FAMILIES",CSC COVID-19,"SUPPLIES, STATIONERY AND MATERIALS",24/06/2020,7213871232,4.99,AMZNMKTPLACE AMAZON.CO
OXFORDSHIRE CC,"CHILDRENS, YOUNG PEOPLE AND FAMILIES",NTH FAM SUPRT-BCSTR,MATERIALS,24/06/2020,7213870970,64.99,ARGOS LTD
OXFORDSHIRE CC,"CHILDRENS, YOUNG PEOPLE AND FAMILIES",NTH FAM SUPRT-BCSTR,MATERIALS,24/06/2020,7213870980,43.94,ARGOS LTD
OXFORDSHIRE CC,"CHILDRENS, YOUNG PEOPLE AND FAMILIES",NRPF & HOMELESSNESS,HIRE OF ACCOMMODATION AND FACILITIES,24/06/2020,7213871498,200,WWW.ARMASHORTSTAYS.CO.
OXFORDSHIRE CC,"CHILDRENS, YOUNG PEOPLE AND FAMILIES","	LOOKED AFTER CITY 2",OTHER TRANSPORT ARRANGEMENTS,24/06/2020,7213871536,20,IZ  ROYAL CARS OXFORD
OXFORDSHIRE CC,"CHILDRENS, YOUNG PEOPLE AND FAMILIES",CSC COVID-19,OTHER PREMISES RELATED COSTS,24/06/2020,7213871030,23.9,AMZNMKTPLACE
OXFORDSHIRE CC,"CHILDRENS, YOUNG PEOPLE AND FAMILIES","	LOOKED AFTER CITY 1",OTHER EXPENSES,24/06/2020,7213871080,459.6,SOUTHERN ELECTRIC
OXFORDSHIRE CC,"CHILDRENS, YOUNG PEOPLE AND FAMILIES","	HOME SUPPORT",DRUGS AND MEDICAL SUPPLIES,24/06/2020,7213871090,299.9,PAYPAL  MIDMEDS LTD
OXFORDSHIRE CC,"CHILDRENS, YOUNG PEOPLE AND FAMILIES","	LOOKED AFTER CITY 2",OTHER TRANSPORT ARRANGEMENTS,24/06/2020,7213871540,35,IZ  ROYAL CARS OXFORD
OXFORDSHIRE CC,"CHILDRENS, YOUNG PEOPLE AND FAMILIES","	LEAVING CARE SOUTH",OTHER TRANSPORT ARRANGEMENTS,24/06/2020,7213871544,41,STAGECOACH SERVICE
OXFORDSHIRE CC,"CHILDRENS, YOUNG PEOPLE AND FAMILIES",WITNEY,CATERING PROVISIONS,24/06/2020,7213871558,9.78,POUNDSTRETCHER 700
OXFORDSHIRE CC,"CHILDRENS, YOUNG PEOPLE AND FAMILIES",EYNSHAM,MATERIALS,24/06/2020,7213871562,49.99,ARGOS LTD
OXFORDSHIRE CC,CORPORATE CORE,MOTOR FLEET,MOTOR IF OWN DAMAGE,24/06/2020,7213871570,"1,950.84",WHOLESALE AUTOPARTS
OXFORDSHIRE CC,CORPORATE CORE,MOTOR FLEET,MOTOR IF OWN DAMAGE,24/06/2020,7213871574,475.2,WHOLESALE AUTOPARTS
OXFORDSHIRE CC,CORPORATE CORE,MOTOR FLEET,MOTOR IF OWN DAMAGE,24/06/2020,7213871576,862.2,WHOLESALE AUTOPARTS
OXFORDSHIRE CC,CORPORATE CORE,MOTOR FLEET,MOTOR IF OWN DAMAGE,24/06/2020,7213871578,"2,270.39",WWW.OXFORDDDS.COM
OXFORDSHIRE CC,"CHILDRENS, YOUNG PEOPLE AND FAMILIES",THAME E&A HOME,CLOTHING AND UNIFORMS,24/06/2020,7213871582,3.99,PAYPAL  TRENDYSAVER EB
OXFORDSHIRE CC,CORPORATE CORE,INCOME TEAM,PAYMENT TO GOVERNMENT DEPARTMENTS,24/06/2020,7213871104,1.5,WWW.GOV.UK
OXFORDSHIRE CC,CORPORATE CORE,INCOME TEAM,PAYMENT TO GOVERNMENT DEPARTMENTS,24/06/2020,7213871108,1.5,WWW.GOV.UK
OXFORDSHIRE CC,SOCIAL AND COMMUNITY SERVICES,COMMENTS&INFORMATION,POSTAGE AND DELIVERY,24/06/2020,7213871110,1.64,POST OFFICE COUNTER
OXFORDSHIRE CC,"CHILDRENS, YOUNG PEOPLE AND FAMILIES",THAME E&A HOME,MATERIALS,24/06/2020,7213871586,4.49,PAYPAL  ALIRAZAPERS EB
OXFORDSHIRE CC,"CHILDRENS, YOUNG PEOPLE AND FAMILIES",EYNSHAM,CATERING PROVISIONS,24/06/2020,7213871588,8,CO-OPERATIVE FOOD
OXFORDSHIRE CC,SOCIAL AND COMMUNITY SERVICES,COMMENTS&INFORMATION,"SUPPLIES, STATIONERY AND MATERIALS",24/06/2020,7213871114,0.8,WILKO RETAIL LIMITED
OXFORDSHIRE CC,"CHILDRENS, YOUNG PEOPLE AND FAMILIES","	FAMILY SUPPORT CITY3",OTHER TRANSPORT ARRANGEMENTS,24/06/2020,7213871118,31,OXFORD BUS COMPANY
OXFORDSHIRE CC,"CHILDRENS, YOUNG PEOPLE AND FAMILIES",UASC POST 18,OTHER EXPENSES,24/06/2020,7213871134,131.99,AMAZON.CO.UK QD02A7K95
OXFORDSHIRE CC,SHARED SERVICES,CSC SUPP & SERVICES,MATERIALS,24/06/2020,7213871140,11.99,AMZNMKTPLACE
OXFORDSHIRE CC,ENVIRONMENT AND ECONOMY,"	COUNTY PRINT FINSHRS",CATERING PROVISIONS,24/06/2020,7213870490,29.52,MILK&MORE
OXFORDSHIRE CC,"CHILDRENS, YOUNG PEOPLE AND FAMILIES","	LOOKED AFTER SOUTH",MATERIALS,24/06/2020,7213870500,7.99,AMAZON PRIME UV10Q2BL5
OXFORDSHIRE CC,"CHILDRENS, YOUNG PEOPLE AND FAMILIES",THAME E&A HOME,CATERING PROVISIONS,24/06/2020,7213870506,7.6,SAINSBURYS 2096
OXFORDSHIRE CC,ENVIRONMENT AND ECONOMY,HARD FM,EQUIPMENT,24/06/2020,7213870520,65.68,WILTS ELECTRICAL
OXFORDSHIRE CC,"CHILDRENS, YOUNG PEOPLE AND FAMILIES","	LEAVING CARE CITY 1",PAYMENT TO GOVERNMENT DEPARTMENTS,24/06/2020,7213871236,"1,235.26",OXFORD CITY COUNCIL
OXFORDSHIRE CC,CORPORATE CORE,"	LEGAL SERVICES",MATERIALS,24/06/2020,7213871256,31.51,AMAZON.CO.UK UD5HP6LF5
OXFORDSHIRE CC,"CHILDRENS, YOUNG PEOPLE AND FAMILIES",THAME E&A HOME,VEHICLE FUEL,24/06/2020,7213871270,4.2,SAINSBURYS PFS0180
OXFORDSHIRE CC,SOCIAL AND COMMUNITY SERVICES,"	MUSEUMS COLLECTIONS",OTHER SERVICES,24/06/2020,7213871280,282.41,AZPACK LTD
OXFORDSHIRE CC,"CHILDRENS, YOUNG PEOPLE AND FAMILIES",THAME E&A HOME,CATERING PROVISIONS,24/06/2020,7213870568,31.72,SAINSBURYS 2096
OXFORDSHIRE CC,"CHILDRENS, YOUNG PEOPLE AND FAMILIES","	40 THE MOORS","BOOKS, DVDS AND CDS",24/06/2020,7213870580,20,AMZN DIGITAL
OXFORDSHIRE CC,"CHILDRENS, YOUNG PEOPLE AND FAMILIES","	40 THE MOORS",MATERIALS,24/06/2020,7213870588,43.02,AMAZON.CO.UK 4Z0OI4E75
OXFORDSHIRE CC,SOCIAL AND COMMUNITY SERVICES,DIDCOT MOVE-ON HOME,CATERING PROVISIONS,24/06/2020,7213870618,15.24,SAINSBURYS SACAT 2067
OXFORDSHIRE CC,CORPORATE CORE,REGISTRAR,MATERIALS,24/06/2020,7213870638,35.97,AMZNMKTPLACE
OXFORDSHIRE CC,SOCIAL AND COMMUNITY SERVICES,CSS WITNEY,MATERIALS,24/06/2020,7213871354,24,AMAZON.CO.UK AT9UJ18Y5
OXFORDSHIRE CC,SOCIAL AND COMMUNITY SERVICES,CSS WITNEY,MATERIALS,24/06/2020,7213871360,32,AMAZON.CO.UK HG7ZZ0A35
OXFORDSHIRE CC,"CHILDRENS, YOUNG PEOPLE AND FAMILIES","	SEN/ICT EQUIPMENT",PURCHASE OF IT EQUIPMENT,24/06/2020,7213871366,9.95,AMZNMKTPLACE
OXFORDSHIRE CC,"CHILDRENS, YOUNG PEOPLE AND FAMILIES",THAME E&A HOME,CATERING PROVISIONS,24/06/2020,7213870806,6.25,SAINSBURYS SACAT 2096
OXFORDSHIRE CC,"CHILDRENS, YOUNG PEOPLE AND FAMILIES",DIDCOT MOVE-ON HOME,CATERING PROVISIONS,24/06/2020,7213870816,4,SAINSBURYS SACAT 2067
OXFORDSHIRE CC,"CHILDRENS, YOUNG PEOPLE AND FAMILIES",DIDCOT MOVE-ON HOME,CATERING PROVISIONS,24/06/2020,7213870826,23.5,SAINSBURYS SACAT 2067
OXFORDSHIRE CC,"CHILDRENS, YOUNG PEOPLE AND FAMILIES",DIDCOT MOVE-ON HOME,MATERIALS,24/06/2020,7213870836,15.48,ARGOS LTD
OXFORDSHIRE CC,"CHILDRENS, YOUNG PEOPLE AND FAMILIES",WITNEY,CATERING PROVISIONS,24/06/2020,7213870850,7.58,SAINSBURYS SACAT 0632
OXFORDSHIRE CC,"CHILDRENS, YOUNG PEOPLE AND FAMILIES",WITNEY,MATERIALS,24/06/2020,7213870864,199,CURRYS ONLINE
OXFORDSHIRE CC,"CHILDRENS, YOUNG PEOPLE AND FAMILIES",0-5 STDS & PROGRESS,MATERIALS,23/06/2020,7211896662,13.19,AMZNMKTPLACE
OXFORDSHIRE CC,"CHILDRENS, YOUNG PEOPLE AND FAMILIES",CNTL EARLY HELP-BRTN,CATERING PROVISIONS,23/06/2020,7211896692,27.07,LIDL GB  WITNEY
OXFORDSHIRE CC,ENVIRONMENT AND ECONOMY,"	TVERC",PAYMENT TO GOVERNMENT DEPARTMENTS,23/06/2020,7211896708,3,LAND REGISTRY
OXFORDSHIRE CC,ENVIRONMENT AND ECONOMY,"	TVERC",PAYMENT TO GOVERNMENT DEPARTMENTS,23/06/2020,7211896710,3,LAND REGISTRY
OXFORDSHIRE CC,"CHILDRENS, YOUNG PEOPLE AND FAMILIES","	LEAVING CARE CITY 2",OTHER EXPENSES,23/06/2020,7211896712,16.99,WH SMITH
OXFORDSHIRE CC,"CHILDRENS, YOUNG PEOPLE AND FAMILIES","	LEAVING CARE CITY 2",CLOTHING AND UNIFORMS,23/06/2020,7211896714,145,J D SPORTS FASHION
OXFORDSHIRE CC,"CHILDRENS, YOUNG PEOPLE AND FAMILIES",NTH EARLY HELP-BCSTR,MATERIALS,23/06/2020,7211896496,9.09,AMAZON.CO.UK J93PV0PM5
OXFORDSHIRE CC,"CHILDRENS, YOUNG PEOPLE AND FAMILIES",CSC COVID-19,"SUPPLIES, STATIONERY AND MATERIALS",23/06/2020,7211896522,14.98,AMZNMKTPLACE AMAZON.CO
OXFORDSHIRE CC,"CHILDRENS, YOUNG PEOPLE AND FAMILIES",CSC COVID-19,"SUPPLIES, STATIONERY AND MATERIALS",23/06/2020,7211896524,78.84,AMZNMKTPLACE AMAZON.CO
OXFORDSHIRE CC,"CHILDRENS, YOUNG PEOPLE AND FAMILIES","	LOOKED AFTER CITY 2",MATERIALS,23/06/2020,7211896526,299,CURRYS ONLINE
OXFORDSHIRE CC,"CHILDRENS, YOUNG PEOPLE AND FAMILIES","	LOOKED AFTER CITY 2",MATERIALS,23/06/2020,7211896528,286.95,ARGOS LTD
OXFORDSHIRE CC,CORPORATE CORE,"	LEGAL SERVICES",MATERIALS,23/06/2020,7211896562,27.62,AMZNMKTPLACE
OXFORDSHIRE CC,"CHILDRENS, YOUNG PEOPLE AND FAMILIES","	40 THE MOORS",CATERING PROVISIONS,23/06/2020,7211896568,2.9,TESCO STORE 2788
OXFORDSHIRE CC,"CHILDRENS, YOUNG PEOPLE AND FAMILIES","	RIVERSIDE CENTRE",MATERIALS,23/06/2020,7211896570,30,SAINSBURYS SACAT 0631
OXFORDSHIRE CC,ENVIRONMENT AND ECONOMY,MUSEUMS COLLECTIONS,SUBSCRIPTIONS,23/06/2020,7211896572,30,PAYPAL  SOCIETYFORM
OXFORDSHIRE CC,SOCIAL AND COMMUNITY SERVICES,LEAVING CARE NORTH,PAYMENTS TO TRANSPORT OPERATORS,23/06/2020,7211896576,-6.9,TRAINLINE
OXFORDSHIRE CC,"CHILDRENS, YOUNG PEOPLE AND FAMILIES",PD EQUIPMENT,DISABILITY AIDS AND EQUIPMENT,23/06/2020,7211896600,179.98,AMZNMKTPLACE AMAZON.CO
OXFORDSHIRE CC,"CHILDRENS, YOUNG PEOPLE AND FAMILIES",NRPF & HOMELESSNESS,HIRE OF ACCOMMODATION AND FACILITIES,23/06/2020,7211896636,609,WWW.ARMASHORTSTAYS.CO.
OXFORDSHIRE CC,"CHILDRENS, YOUNG PEOPLE AND FAMILIES",DIDCOT MOVE-ON HOME,CATERING PROVISIONS,23/06/2020,7211896640,24,B&M 514 - DICOT
OXFORDSHIRE CC,"CHILDRENS, YOUNG PEOPLE AND FAMILIES",DIDCOT MOVE-ON HOME,CATERING PROVISIONS,23/06/2020,7211896646,12.08,SAINSBURYS SACAT 2067
OXFORDSHIRE CC,CORPORATE CORE,ICT OPERATIONS & MAI,MATERIALS,23/06/2020,7211896728,25.99,AMZNMKTPLACE
OXFORDSHIRE CC,"CHILDRENS, YOUNG PEOPLE AND FAMILIES",HOUSE PROJECT,VEHICLE FUEL,23/06/2020,7211896730,1.58,TESCO PFS 2488
OXFORDSHIRE CC,CORPORATE CORE,INCOME TEAM,PAYMENT TO GOVERNMENT DEPARTMENTS,23/06/2020,7211896748,1.5,WWW.GOV.UK
OXFORDSHIRE CC,"CHILDRENS, YOUNG PEOPLE AND FAMILIES","	RIVERSIDE CENTRE",HIRE OF EQUIPMENT,23/06/2020,7211896754,382.2,APPLIED TRADING LTD
OXFORDSHIRE CC,CORPORATE CORE,,"SUPPLIES, STATIONERY AND MATERIALS",23/06/2020,7211896774,5.18,LYRECO UK LTD
OXFORDSHIRE CC,CORPORATE CORE,,"SUPPLIES, STATIONERY AND MATERIALS",23/06/2020,7211896780,51.84,LYRECO UK LTD
OXFORDSHIRE CC,"CHILDRENS, YOUNG PEOPLE AND FAMILIES",CSS WALLINGFORD,CATERING PROVISIONS,23/06/2020,7211896322,12.85,WAITROSE 675
OXFORDSHIRE CC,SOCIAL AND COMMUNITY SERVICES,CSS WITNEY,CATERING PROVISIONS,23/06/2020,7211896354,86,SAINSBURYS 0632
OXFORDSHIRE CC,ENVIRONMENT AND ECONOMY,"	NAT TRAILS GENERAL",DRUGS AND MEDICAL SUPPLIES,23/06/2020,7211896362,7,LLOYDS PHARMACY
OXFORDSHIRE CC,"CHILDRENS, YOUNG PEOPLE AND FAMILIES",CSS WALLINGFORD,CATERING PROVISIONS,23/06/2020,7211896366,16.05,SAINSBURYS SACAT 6193
OXFORDSHIRE CC,ENVIRONMENT AND ECONOMY,HARD FM,HARDWARE AND CROCKERY,23/06/2020,7211896372,66.5,CITY PLUMBING
OXFORDSHIRE CC,ENVIRONMENT AND ECONOMY,HARD FM,HARDWARE AND CROCKERY,23/06/2020,7211896374,257.65,CITY PLUMBING
OXFORDSHIRE CC,ENVIRONMENT AND ECONOMY,HARD FM,MATERIALS,23/06/2020,7211896376,68.25,AMZNMKTPLACE
OXFORDSHIRE CC,SOCIAL AND COMMUNITY SERVICES,CSS BICESTER,CATERING PROVISIONS,23/06/2020,7211896386,4.03,ALDI 49 775
OXFORDSHIRE CC,SOCIAL AND COMMUNITY SERVICES,SCHOOLS FM,POSTAGE AND DELIVERY,23/06/2020,7211896398,2.06,POST OFFICE COUNTER
OXFORDSHIRE CC,CORPORATE CORE,LIBRARY COLLECTIONS,"BOOKS, DVDS AND CDS",23/06/2020,7211896406,548.27,OVERDRIVE DIST
OXFORDSHIRE CC,"CHILDRENS, YOUNG PEOPLE AND FAMILIES",STH EARLY HELP-ABNDN,MATERIALS,23/06/2020,7211896414,28.36,AMAZON.CO.UK ER2Q87UI5
OXFORDSHIRE CC,SOCIAL AND COMMUNITY SERVICES,CSS BICESTER,MATERIALS,23/06/2020,7211896416,100,HALFORDS 0480
OXFORDSHIRE CC,"CHILDRENS, YOUNG PEOPLE AND FAMILIES",THAME E&A HOME,CATERING PROVISIONS,23/06/2020,7211896432,152.82,TESCO STORES 2038
OXFORDSHIRE CC,"CHILDRENS, YOUNG PEOPLE AND FAMILIES","	MUSIC UNALLOCABLE",IT SOFTWARE,23/06/2020,7211896436,35.39,ADOBE CREATIVE CLOUD
OXFORDSHIRE CC,"CHILDRENS, YOUNG PEOPLE AND FAMILIES","	40 THE MOORS",CATERING PROVISIONS,23/06/2020,7211896442,223.58,SAINSBURYS TO YOU 0600
OXFORDSHIRE CC,"CHILDRENS, YOUNG PEOPLE AND FAMILIES",FIELDWORK UASC,MATERIALS,23/06/2020,7211896444,-292,CURRYS ONLINE
OXFORDSHIRE CC,SOCIAL AND COMMUNITY SERVICES,"	SHARED LIVES",PAYMENT TO GOVERNMENT DEPARTMENTS,22/06/2020,7208932814,"1,372.14",VALE OF WHITEHORSE
OXFORDSHIRE CC,CORPORATE CORE,MOTOR FLEET,MOTOR IF FEES,22/06/2020,7208932828,42,SIDNEY H HOOPER & COMP
OXFORDSHIRE CC,CORPORATE CORE,MOTOR FLEET,MOTOR IF FEES,22/06/2020,7208932836,42,SIDNEY H HOOPER & COMP
OXFORDSHIRE CC,CORPORATE CORE,MOTOR FLEET,MOTOR IF FEES,22/06/2020,7208932846,42,SIDNEY H HOOPER & COMP
OXFORDSHIRE CC,CORPORATE CORE,MOTOR FLEET,MOTOR IF FEES,22/06/2020,7208932854,90,SIDNEY H HOOPER & COMP
OXFORDSHIRE CC,CORPORATE CORE,MOTOR FLEET,MOTOR IF FEES,22/06/2020,7208932860,42,SIDNEY H HOOPER & COMP
OXFORDSHIRE CC,CORPORATE CORE,MOTOR FLEET,MOTOR IF FEES,22/06/2020,7208932864,42,SIDNEY H HOOPER & COMP
OXFORDSHIRE CC,"CHILDRENS, YOUNG PEOPLE AND FAMILIES",THAME E&A HOME,VEHICLE FUEL,22/06/2020,7208932876,0.95,THAME BP SF CONNECT
OXFORDSHIRE CC,"CHILDRENS, YOUNG PEOPLE AND FAMILIES",THAME E&A HOME,MATERIALS,22/06/2020,7208932888,21.98,COLOURYOUREYES.COM
OXFORDSHIRE CC,"CHILDRENS, YOUNG PEOPLE AND FAMILIES",THAME E&A HOME,DRUGS AND MEDICAL SUPPLIES,22/06/2020,7208931030,4.5,"BOOTS,THAME"
OXFORDSHIRE CC,"CHILDRENS, YOUNG PEOPLE AND FAMILIES",THAME E&A HOME,CATERING PROVISIONS,22/06/2020,7208931038,6.05,SAINSBURYS LOC 5038
OXFORDSHIRE CC,"CHILDRENS, YOUNG PEOPLE AND FAMILIES",THAME E&A HOME,CATERING PROVISIONS,22/06/2020,7208931048,3.2,WELCOME B/WAITROSE OXF
OXFORDSHIRE CC,"CHILDRENS, YOUNG PEOPLE AND FAMILIES",THAME E&A HOME,CATERING,22/06/2020,7208931056,7.02,MCDONALDS
OXFORDSHIRE CC,"CHILDRENS, YOUNG PEOPLE AND FAMILIES",DIDCOT MOVE-ON HOME,CATERING PROVISIONS,22/06/2020,7208931102,7.1,SAINSBURYS SACAT 2067
OXFORDSHIRE CC,"CHILDRENS, YOUNG PEOPLE AND FAMILIES",DIDCOT MOVE-ON HOME,CATERING PROVISIONS,22/06/2020,7208931106,15.91,SAINSBURYS SACAT 2067
OXFORDSHIRE CC,"CHILDRENS, YOUNG PEOPLE AND FAMILIES",WITNEY,CATERING PROVISIONS,22/06/2020,7208931114,16.5,SAINSBURYS SACAT 0632
OXFORDSHIRE CC,SOCIAL AND COMMUNITY SERVICES,DIDCOT MOVE-ON HOME,CATERING PROVISIONS,22/06/2020,7208931168,15.83,SAINSBURYS SACAT 2067
OXFORDSHIRE CC,SOCIAL AND COMMUNITY SERVICES,DIDCOT MOVE-ON HOME,CATERING PROVISIONS,22/06/2020,7208931172,33.05,SAINSBURYS SACAT 2067
OXFORDSHIRE CC,"CHILDRENS, YOUNG PEOPLE AND FAMILIES",EYNSHAM,CATERING PROVISIONS,22/06/2020,7208932902,6.39,CO-OPERATIVE FOOD
OXFORDSHIRE CC,"CHILDRENS, YOUNG PEOPLE AND FAMILIES",EYNSHAM,CATERING PROVISIONS,22/06/2020,7208932908,3,SPAR EYNSHAM
OXFORDSHIRE CC,"CHILDRENS, YOUNG PEOPLE AND FAMILIES",EYNSHAM,SUBSCRIPTIONS,22/06/2020,7208932918,10,OXFORD GOLF CENTRE
OXFORDSHIRE CC,"CHILDRENS, YOUNG PEOPLE AND FAMILIES",EYNSHAM,SUBSCRIPTIONS,22/06/2020,7208932928,12,OXFORD GOLF CENTRE
OXFORDSHIRE CC,"CHILDRENS, YOUNG PEOPLE AND FAMILIES",EYNSHAM,DRUGS AND MEDICAL SUPPLIES,22/06/2020,7208932934,4.49,LLOYDS PHARMACY
OXFORDSHIRE CC,"CHILDRENS, YOUNG PEOPLE AND FAMILIES",EYNSHAM,CATERING PROVISIONS,22/06/2020,7208932942,4.58,CO-OPERATIVE FOOD
OXFORDSHIRE CC,"CHILDRENS, YOUNG PEOPLE AND FAMILIES",EYNSHAM,CATERING PROVISIONS,22/06/2020,7208932950,43.24,WAITROSE 581
OXFORDSHIRE CC,"CHILDRENS, YOUNG PEOPLE AND FAMILIES",CNTL EARLY HELP-RHIL,MATERIALS,22/06/2020,7208932968,9.95,AMZNMKTPLACE
OXFORDSHIRE CC,CORPORATE CORE,INCOME TEAM,PAYMENT TO GOVERNMENT DEPARTMENTS,22/06/2020,7208933044,1.5,WWW.GOV.UK
OXFORDSHIRE CC,SOCIAL AND COMMUNITY SERVICES,CSS - OXFORD,MATERIALS,22/06/2020,7208931250,9.98,AMAZON.CO.UK 0R3234K05
OXFORDSHIRE CC,CORPORATE CORE,"MARKETING, COMMUNICATIONS & ENGAGEMENT",PROFESSIONAL SUBSCRIPTIONS,22/06/2020,7208931268,49.97,VIMEO PLUS
OXFORDSHIRE CC,CORPORATE CORE,"MARKETING, COMMUNICATIONS & ENGAGEMENT",MATERIALS,22/06/2020,7208931274,20.82,LINKEDIN 5421823723 LN
OXFORDSHIRE CC,SOCIAL AND COMMUNITY SERVICES,CSS WALLINGFORD,MATERIALS,22/06/2020,7208931280,23.76,AMZNMKTPLACE AMAZON.CO
OXFORDSHIRE CC,"CHILDRENS, YOUNG PEOPLE AND FAMILIES","	LOOKED AFTER NORTH",OTHER EXPENSES,22/06/2020,7208931290,25,GIFFGAFF
OXFORDSHIRE CC,"CHILDRENS, YOUNG PEOPLE AND FAMILIES",FAMILY SUPPORT 2,EDUCATIONAL AND VOCATIONAL TRAINING ,22/06/2020,7208933104,11,OXFORDSHIRE CC MOTO1
OXFORDSHIRE CC,"CHILDRENS, YOUNG PEOPLE AND FAMILIES",EYNSHAM,MATERIALS,22/06/2020,7208933112,-18.94,AMZ BOWLS4U TA 4UTRADI
OXFORDSHIRE CC,"CHILDRENS, YOUNG PEOPLE AND FAMILIES","	LOOKED AFTER NORTH",MATERIALS,22/06/2020,7208931294,530.98,CURRYS ONLINE
OXFORDSHIRE CC,SOCIAL AND COMMUNITY SERVICES,LOOKED AFTER SOUTH,HIRE OF ACCOMMODATION AND FACILITIES,22/06/2020,7208931334,200,NEW INN HOTEL
OXFORDSHIRE CC,"CHILDRENS, YOUNG PEOPLE AND FAMILIES",KINGFISHER,MATERIALS,22/06/2020,7208931344,49.73,AMZNMKTPLACE
OXFORDSHIRE CC,"CHILDRENS, YOUNG PEOPLE AND FAMILIES","	LOOKED AFTER CITY 1",CATERING PROVISIONS,22/06/2020,7208931354,4.5,SAINSBURYS SACAT 6193
OXFORDSHIRE CC,"CHILDRENS, YOUNG PEOPLE AND FAMILIES","	RESIDENTIAL STRATEGY",OTHER PREMISES RELATED COSTS,22/06/2020,7208931366,7.99,B & Q 1176
OXFORDSHIRE CC,"CHILDRENS, YOUNG PEOPLE AND FAMILIES","	RIVERSIDE CENTRE",VEHICLE FUEL,22/06/2020,7208931382,82.5,SHELL DUCKLINGTON
OXFORDSHIRE CC,SOCIAL AND COMMUNITY SERVICES,"	KINGFISHER",MATERIALS,22/06/2020,7208931384,6.99,PETS AT HOME LTD
OXFORDSHIRE CC,ENVIRONMENT AND ECONOMY,LIB ICT SUPPRT&MAINT,IT SERVICES,22/06/2020,7208931428,263.95,WWW.PRINTERLAND.CO
OXFORDSHIRE CC,SOCIAL AND COMMUNITY SERVICES,RESIDENTIAL STRATEGY,CATERING PROVISIONS,22/06/2020,7208931462,19.35,SAINSBURYS SACAT 0631
OXFORDSHIRE CC,SOCIAL AND COMMUNITY SERVICES,CSS WANTAGE,"BOOKS, DVDS AND CDS",22/06/2020,7208930548,36,TESCO STORE 2413
OXFORDSHIRE CC,"CHILDRENS, YOUNG PEOPLE AND FAMILIES",S&A INTERVENTION GRT,MATERIALS,22/06/2020,7208932260,24.48,AMAZON.CO.UK YG7US6X65
OXFORDSHIRE CC,"CHILDRENS, YOUNG PEOPLE AND FAMILIES",EYNSHAM,CATERING,22/06/2020,7208930622,0.95,CO-OPERATIVE FOOD
OXFORDSHIRE CC,"CHILDRENS, YOUNG PEOPLE AND FAMILIES",WITNEY,CATERING PROVISIONS,22/06/2020,7208930632,22.7,SAINSBURYS 0632
OXFORDSHIRE CC,"CHILDRENS, YOUNG PEOPLE AND FAMILIES",WITNEY,CATERING PROVISIONS,22/06/2020,7208930634,74.2,SAINSBURYS 0632
OXFORDSHIRE CC,SOCIAL AND COMMUNITY SERVICES,CSS - ABINGDON,MATERIALS,22/06/2020,7208930636,15.99,AMZNMKTPLACE
OXFORDSHIRE CC,"CHILDRENS, YOUNG PEOPLE AND FAMILIES","	RESIDENTIAL STRATEGY",CATERING PROVISIONS,22/06/2020,7208930696,10.45,SAINSBURYS 0631
OXFORDSHIRE CC,"CHILDRENS, YOUNG PEOPLE AND FAMILIES",DIDCOT MOVE-ON HOME,CATERING PROVISIONS,22/06/2020,7208932548,6.6,SAINSBURYS SACAT 2067
OXFORDSHIRE CC,"CHILDRENS, YOUNG PEOPLE AND FAMILIES",0-5 STDS & PROGRESS,MATERIALS,22/06/2020,7208932570,64.98,AMAZON.CO.UK L25N53BZ5
OXFORDSHIRE CC,"CHILDRENS, YOUNG PEOPLE AND FAMILIES",CNTL EARLY HELP-BRTN,CATERING PROVISIONS,22/06/2020,7208932636,14.19,LIDL GB  WITNEY
OXFORDSHIRE CC,ENVIRONMENT AND ECONOMY,HARD FM,HARDWARE AND CROCKERY,22/06/2020,7208930766,123,WWW.IRONMONGERYDIRECT.
OXFORDSHIRE CC,ENVIRONMENT AND ECONOMY,HARD FM,MATERIALS,22/06/2020,7208930782,12.43,AMZNMKTPLACE
OXFORDSHIRE CC,ENVIRONMENT AND ECONOMY,HARD FM,HARDWARE AND CROCKERY,22/06/2020,7208930790,14.37,SCREWFIX DIRECT
OXFORDSHIRE CC,ENVIRONMENT AND ECONOMY,HARD FM,HARDWARE AND CROCKERY,22/06/2020,7208930796,36.38,SCREWFIX DIRECT
OXFORDSHIRE CC,"CHILDRENS, YOUNG PEOPLE AND FAMILIES",ICT INFORMATION,IT SOFTWARE,22/06/2020,7208930820,316.36,GOOGLE  CLOUD_01D722-8
OXFORDSHIRE CC,"CHILDRENS, YOUNG PEOPLE AND FAMILIES","	LEAVING CARE NORTH",MATERIALS,22/06/2020,7208930854,212.94,ARGOS LTD
OXFORDSHIRE CC,"CHILDRENS, YOUNG PEOPLE AND FAMILIES",CSC COVID-19,FURNITURE,22/06/2020,7208930878,20.88,ARGOS LTD
OXFORDSHIRE CC,ENVIRONMENT AND ECONOMY,"	TVERC",PAYMENT TO GOVERNMENT DEPARTMENTS,22/06/2020,7208932664,6,LAND REGISTRY
OXFORDSHIRE CC,ENVIRONMENT AND ECONOMY,"	TVERC",PAYMENT TO GOVERNMENT DEPARTMENTS,22/06/2020,7208932678,3,LAND REGISTRY
OXFORDSHIRE CC,ENVIRONMENT AND ECONOMY,"	TVERC",PAYMENT TO GOVERNMENT DEPARTMENTS,22/06/2020,7208932688,3,LAND REGISTRY
OXFORDSHIRE CC,ENVIRONMENT AND ECONOMY,"	TVERC",PAYMENT TO GOVERNMENT DEPARTMENTS,22/06/2020,7208932696,3,LAND REGISTRY
OXFORDSHIRE CC,ENVIRONMENT AND ECONOMY,"	TVERC",PAYMENT TO GOVERNMENT DEPARTMENTS,22/06/2020,7208932706,3,LAND REGISTRY
OXFORDSHIRE CC,ENVIRONMENT AND ECONOMY,"	TVERC",PAYMENT TO GOVERNMENT DEPARTMENTS,22/06/2020,7208932712,3,LAND REGISTRY
OXFORDSHIRE CC,SOCIAL AND COMMUNITY SERVICES,ADMIN SUPPORT REVIEW,PURCHASE OF IT EQUIPMENT,22/06/2020,7208932744,6.53,AMAZON.CO.UK BW42B5UJ5
OXFORDSHIRE CC,"CHILDRENS, YOUNG PEOPLE AND FAMILIES",EYNSHAM,IT SOFTWARE,22/06/2020,7208932782,13,MAYFIELD EGGS
OXFORDSHIRE CC,"CHILDRENS, YOUNG PEOPLE AND FAMILIES",EYNSHAM,CATERING PROVISIONS,22/06/2020,7208932790,160.02,TESCO STORES 2008
OXFORDSHIRE CC,"CHILDRENS, YOUNG PEOPLE AND FAMILIES",THAME E&A HOME,CATERING PROVISIONS,22/06/2020,7208930896,19.1,TESCO STORES 6192
OXFORDSHIRE CC,CORPORATE CORE,REGISTRAR,MATERIALS,22/06/2020,7208930920,24.48,AMAZON.CO.UK MJ9EW2PG5
OXFORDSHIRE CC,"CHILDRENS, YOUNG PEOPLE AND FAMILIES",THAME E&A HOME,CATERING PROVISIONS,22/06/2020,7208931012,15,MARTIN MCCOLL
OXFORDSHIRE CC,"CHILDRENS, YOUNG PEOPLE AND FAMILIES",FPT SOUTH/VALE,POSTAGE AND DELIVERY,22/06/2020,7208932806,15.2,POST OFFICE COUNTER
OXFORDSHIRE CC,"CHILDRENS, YOUNG PEOPLE AND FAMILIES","	40 THE MOORS",TELEPHONE - EQUIPMENT,22/06/2020,7208931540,30,EE TOP UP VESTA
OXFORDSHIRE CC,"CHILDRENS, YOUNG PEOPLE AND FAMILIES","	40 THE MOORS",CATERING,22/06/2020,7208931550,35.98,WWW.PAPAJOHNS.CO.UK
OXFORDSHIRE CC,SOCIAL AND COMMUNITY SERVICES,LOOKED AFTER NORTH,CLOTHING AND UNIFORMS,22/06/2020,7208931608,56,TOMMYHILFIGER
OXFORDSHIRE CC,ENVIRONMENT AND ECONOMY,"	ROW MAINT",EQUIPMENT,22/06/2020,7208931744,35.98,LISTER WILDER LIMITED
OXFORDSHIRE CC,ENVIRONMENT AND ECONOMY,"	WASTE MNGMNT GEN",IT SOFTWARE,22/06/2020,7208931760,564.18,PTM EDV SYSTEME GMBH
OXFORDSHIRE CC,ENVIRONMENT AND ECONOMY,"	WASTE MNGMNT GEN",PRINTING,22/06/2020,7208931764,157,EMAP PUBLISHING LTD
OXFORDSHIRE CC,ENVIRONMENT AND ECONOMY,"	WASTE MNGMNT GEN",PRINTING,22/06/2020,7208931770,160,EMAP PUBLISHING LTD
OXFORDSHIRE CC,"CHILDRENS, YOUNG PEOPLE AND FAMILIES",CSC COVID-19,"SUPPLIES, STATIONERY AND MATERIALS",22/06/2020,7208931864,4.99,AMZNMKTPLACE AMAZON.CO
OXFORDSHIRE CC,CORPORATE CORE,"	LEGAL SERVICES",MATERIALS,22/06/2020,7208931920,27.62,AMZNMKTPLACE
OXFORDSHIRE CC,CORPORATE CORE,"	LEGAL SERVICES",MATERIALS,22/06/2020,7208931926,27.62,AMZNMKTPLACE AMAZON.CO
OXFORDSHIRE CC,"CHILDRENS, YOUNG PEOPLE AND FAMILIES",THAME E&A HOME,PAYMENTS TO TRANSPORT OPERATORS,22/06/2020,7208931970,15,GWR CHOLSEY TO
OXFORDSHIRE CC,"CHILDRENS, YOUNG PEOPLE AND FAMILIES",THAME E&A HOME,CATERING PROVISIONS,22/06/2020,7208931974,5.6,WILKO RETAIL LIMITED
OXFORDSHIRE CC,"CHILDRENS, YOUNG PEOPLE AND FAMILIES",THAME E&A HOME,CATERING PROVISIONS,22/06/2020,7208931976,8.9,SAINSBURYS 2067
OXFORDSHIRE CC,"CHILDRENS, YOUNG PEOPLE AND FAMILIES",THAME E&A HOME,VEHICLE FUEL,22/06/2020,7208931978,4.15,SAINSBURYS PFS0180
OXFORDSHIRE CC,"CHILDRENS, YOUNG PEOPLE AND FAMILIES",THAME E&A HOME,HARDWARE AND CROCKERY,22/06/2020,7208931982,18,HOMEBASE LTD 091
OXFORDSHIRE CC,SOCIAL AND COMMUNITY SERVICES,"	MUSEUMS COLLECTIONS",OTHER SERVICES,22/06/2020,7208932002,21.98,AMZNMKTPLACE
OXFORDSHIRE CC,SOCIAL AND COMMUNITY SERVICES,"	MUSEUMS COLLECTIONS",OTHER SERVICES,22/06/2020,7208932006,1.65,AMZNMKTPLACE
OXFORDSHIRE CC,"CHILDRENS, YOUNG PEOPLE AND FAMILIES","	LOOKED AFTER CITY 2",MATERIALS,22/06/2020,7208932056,26.57,AMAZON.CO.UK 6L34L1RB5
OXFORDSHIRE CC,SOCIAL AND COMMUNITY SERVICES,CSS WITNEY,MATERIALS,22/06/2020,7208932132,12.49,AMZNMKTPLACE
OXFORDSHIRE CC,SOCIAL AND COMMUNITY SERVICES,CSS WITNEY,MATERIALS,22/06/2020,7208932136,32.88,AMAZON.CO.UK GO7EZ5R25
OXFORDSHIRE CC,"CHILDRENS, YOUNG PEOPLE AND FAMILIES",NORTH FSS- WITNEY,OTHER TRANSPORT ARRANGEMENTS,22/06/2020,7208930480,27.5,STAGECOACH SERVICE
OXFORDSHIRE CC,"CHILDRENS, YOUNG PEOPLE AND FAMILIES",NORTH FSS- WITNEY,OTHER TRANSPORT ARRANGEMENTS,22/06/2020,7208930496,27.5,STAGECOACH SERVICE
OXFORDSHIRE CC,"CHILDRENS, YOUNG PEOPLE AND FAMILIES",NORTH FSS- WITNEY,MATERIALS,22/06/2020,7208930502,22.99,SPORTSDIRECT.COM
OXFORDSHIRE CC,"CHILDRENS, YOUNG PEOPLE AND FAMILIES",ATV ADOPTION WOODLEY,"BOOKS, DVDS AND CDS",19/06/2020,9116391701,225,PAYPAL  RUSSELLHOUS
OXFORDSHIRE CC,SHARED SERVICES,CSC SUPP & SERVICES,MATERIALS,19/06/2020,9116391705,299.98,AMZNMKTPLACE
OXFORDSHIRE CC,SHARED SERVICES,CSC SUPP & SERVICES,MATERIALS,19/06/2020,9116391709,55.32,AMZNMKTPLACE
OXFORDSHIRE CC,CORPORATE CORE,,"SUPPLIES, STATIONERY AND MATERIALS",19/06/2020,9116392553,160.8,LYRECO UK LTD
OXFORDSHIRE CC,ENVIRONMENT AND ECONOMY,ELEC NPR ST LTG,MATERIALS,19/06/2020,9116390727,36.44,AMZNMKTPLACE
OXFORDSHIRE CC,SOCIAL AND COMMUNITY SERVICES,CSS - ABINGDON,CATERING PROVISIONS,19/06/2020,9116390793,52.95,TESCO STORES 6426
OXFORDSHIRE CC,SOCIAL AND COMMUNITY SERVICES,CSS - ABINGDON,CATERING PROVISIONS,19/06/2020,9116390805,50.2,SAINSBURYS (2305)
OXFORDSHIRE CC,ENVIRONMENT AND ECONOMY,"	NAT TRAILS GENERAL",VEHICLE FUEL,19/06/2020,9116390815,22.92,TESCO PAY AT PUMP 2488
OXFORDSHIRE CC,"CHILDRENS, YOUNG PEOPLE AND FAMILIES",CSC COVID-19,"SUPPLIES, STATIONERY AND MATERIALS",19/06/2020,9116391913,2.98,AMZNMKTPLACE AMAZON.CO
OXFORDSHIRE CC,"CHILDRENS, YOUNG PEOPLE AND FAMILIES",THAME E&A HOME,VEHICLE FUEL,19/06/2020,9116390829,5.4,THAME BP SF CONNECT
OXFORDSHIRE CC,ENVIRONMENT AND ECONOMY,HARD FM,VEHICLES REPAIRS AND MAINTENANCE,19/06/2020,9116390841,73.4,ATS EUROMASTER LTD
OXFORDSHIRE CC,ENVIRONMENT AND ECONOMY,HARD FM,HARDWARE AND CROCKERY,19/06/2020,9116390871,19.34,SCREWFIX DIRECT
OXFORDSHIRE CC,ENVIRONMENT AND ECONOMY,HARD FM,MATERIALS,19/06/2020,9116390891,382.79,AMZ CATERING APPLIAN
OXFORDSHIRE CC,"CHILDRENS, YOUNG PEOPLE AND FAMILIES",THAME E&A HOME,CATERING PROVISIONS,19/06/2020,9116390915,5.6,SAINSBURYS 2096
OXFORDSHIRE CC,"CHILDRENS, YOUNG PEOPLE AND FAMILIES",THAME E&A HOME,CATERING PROVISIONS,19/06/2020,9116391015,91.86,ASDA SUPERSTORE
OXFORDSHIRE CC,"CHILDRENS, YOUNG PEOPLE AND FAMILIES",CSC COVID-19,TELEPHONE - EQUIPMENT,19/06/2020,9116391061,20,TESCO ONLINE
OXFORDSHIRE CC,"CHILDRENS, YOUNG PEOPLE AND FAMILIES","	FAM SUPP CITY 1",MATERIALS,19/06/2020,9116391071,203.94,ARGOS LTD
OXFORDSHIRE CC,CORPORATE CORE,"	LEGAL SERVICES",MANAGEMENT CONSULTANT FEES,19/06/2020,9116391955,630,3PB MSL
OXFORDSHIRE CC,SOCIAL AND COMMUNITY SERVICES,LEAVING CARE NORTH,TELEPHONE - CALLS,19/06/2020,9116392011,10,POST OFFICE COUNTER
OXFORDSHIRE CC,SOCIAL AND COMMUNITY SERVICES,CSS WITNEY,MATERIALS,19/06/2020,9116392105,8.99,AMZNMKTPLACE
OXFORDSHIRE CC,ENTERPRISEVC,BUSINESS SYST STAFF,CATERING PROVISIONS,19/06/2020,9116391219,9.2,SAINSBURYS LOC 4264
OXFORDSHIRE CC,ENTERPRISEVC,BUSINESS SYST STAFF,CATERING PROVISIONS,19/06/2020,9116391227,9.2,SAINSBURYS LOC 4264
OXFORDSHIRE CC,"CHILDRENS, YOUNG PEOPLE AND FAMILIES",DIDCOT MOVE-ON HOME,CATERING PROVISIONS,19/06/2020,9116391243,4.2,SAINSBURYS SACAT 2067
OXFORDSHIRE CC,"CHILDRENS, YOUNG PEOPLE AND FAMILIES",DIDCOT MOVE-ON HOME,CATERING PROVISIONS,19/06/2020,9116391253,12.85,SAINSBURYS SACAT 2067
OXFORDSHIRE CC,"CHILDRENS, YOUNG PEOPLE AND FAMILIES",DIDCOT MOVE-ON HOME,MATERIALS,19/06/2020,9116391263,38.25,ARGOS LTD
OXFORDSHIRE CC,"CHILDRENS, YOUNG PEOPLE AND FAMILIES",CSC COVID-19,OTHER EXPENSES,19/06/2020,9116391333,419.97,WWW.JOHNLEWIS.COM
OXFORDSHIRE CC,"CHILDRENS, YOUNG PEOPLE AND FAMILIES","	AAC EQUIPMENT",PURCHASE OF IT EQUIPMENT,19/06/2020,9116392151,30,AMZNMKTPLACE AMAZON.CO
OXFORDSHIRE CC,"CHILDRENS, YOUNG PEOPLE AND FAMILIES",CSC COVID-19,MATERIALS,19/06/2020,9116391375,43.94,ARGOS LTD
OXFORDSHIRE CC,CORPORATE CORE,INCOME TEAM,PURCHASE OF IT EQUIPMENT,19/06/2020,9116391383,31.99,AMZNMKTPLACE AMAZON.CO
OXFORDSHIRE CC,"CHILDRENS, YOUNG PEOPLE AND FAMILIES","	LEAVING CARE NORTH",MATERIALS,19/06/2020,9116391389,49.99,ARGOS LTD
OXFORDSHIRE CC,SOCIAL AND COMMUNITY SERVICES,CSS WALLINGFORD,MATERIALS,19/06/2020,9116391405,6.99,AMAZON.CO.UK 0N8DP03Z5
OXFORDSHIRE CC,SOCIAL AND COMMUNITY SERVICES,CSS WALLINGFORD,MATERIALS,19/06/2020,9116391417,25.96,AMAZON.CO.UK 314CP2ZK5
OXFORDSHIRE CC,SOCIAL AND COMMUNITY SERVICES,LOOKED AFTER SOUTH,HIRE OF ACCOMMODATION AND FACILITIES,19/06/2020,9116391473,55.89,HOTEL ON BOOKING.COM
OXFORDSHIRE CC,"CHILDRENS, YOUNG PEOPLE AND FAMILIES",KINGFISHER,EDUCATIONAL AND VOCATIONAL TRAINING ,19/06/2020,9116391481,80.52,NICABM
OXFORDSHIRE CC,"CHILDRENS, YOUNG PEOPLE AND FAMILIES","	RIVERSIDE CENTRE",OTHER TRANSPORT ARRANGEMENTS,19/06/2020,9116391511,1.1,PARKING FEE
OXFORDSHIRE CC,SOCIAL AND COMMUNITY SERVICES,"	KINGFISHER",CATERING PROVISIONS,19/06/2020,9116391529,56.1,ASDA SUPERSTORE
OXFORDSHIRE CC,ENVIRONMENT AND ECONOMY,"	LOWER WINDRUSH PROJ",MATERIALS,19/06/2020,9116392397,10.67,AMZNMKTPLACE
OXFORDSHIRE CC,"CHILDRENS, YOUNG PEOPLE AND FAMILIES","	LEAVING CARE CITY 2",CLOTHING AND UNIFORMS,19/06/2020,9116392405,85,PAYPAL  JDSPORTS
OXFORDSHIRE CC,"CHILDRENS, YOUNG PEOPLE AND FAMILIES","	LOOKED AFTER CITY 2",OTHER TRANSPORT ARRANGEMENTS,19/06/2020,9116392413,15,IZ  ROYAL CARS OXFORD
OXFORDSHIRE CC,CORPORATE CORE,ICT OPERATIONS & MAI,MATERIALS,19/06/2020,9116392435,"-1,317.00",AMZ AMAZON.CO.UK
OXFORDSHIRE CC,CORPORATE CORE,INCOME TEAM,PAYMENT TO GOVERNMENT DEPARTMENTS,19/06/2020,9116391581,11,GEN REGISTER OFFICE
OXFORDSHIRE CC,"CHILDRENS, YOUNG PEOPLE AND FAMILIES","	40 THE MOORS",CLOTHING AND UNIFORMS,19/06/2020,9116391601,1,PRIMARK 440
OXFORDSHIRE CC,"CHILDRENS, YOUNG PEOPLE AND FAMILIES","	40 THE MOORS",MATERIALS,19/06/2020,9116391611,31.96,WWW.NISBETS.COM
OXFORDSHIRE CC,CORPORATE CORE,RESOURCING,PAYMENT TO GOVERNMENT DEPARTMENTS,19/06/2020,9116391633,"3,199.00",C2E747500164R UKVI
OXFORDSHIRE CC,CORPORATE CORE,RESOURCING,PAYMENT TO GOVERNMENT DEPARTMENTS,19/06/2020,9116391641,"3,199.00",C2E747500221Q UKVI
OXFORDSHIRE CC,"CHILDRENS, YOUNG PEOPLE AND FAMILIES",HOUSE PROJECT,TELEPHONE - EQUIPMENT,19/06/2020,9116392449,30,VESTA VODAFONE
OXFORDSHIRE CC,"CHILDRENS, YOUNG PEOPLE AND FAMILIES",EYNSHAM,FURNITURE,19/06/2020,9116392457,77.45,IKEA LTD SHOP ONLINE
OXFORDSHIRE CC,"CHILDRENS, YOUNG PEOPLE AND FAMILIES",EYNSHAM,CATERING PROVISIONS,19/06/2020,9116392463,245.68,TESCO STORES 2008
OXFORDSHIRE CC,"CHILDRENS, YOUNG PEOPLE AND FAMILIES",EYNSHAM,FURNITURE,19/06/2020,9116392467,148.75,DUNELM
OXFORDSHIRE CC,"CHILDRENS, YOUNG PEOPLE AND FAMILIES",EYNSHAM,FURNITURE,19/06/2020,9116392475,26,DUNELM LTD
OXFORDSHIRE CC,"CHILDRENS, YOUNG PEOPLE AND FAMILIES",CNTL ERLY HELP-BBLEY,CATERING PROVISIONS,19/06/2020,9116392505,50,TESCO STORE 2994
OXFORDSHIRE CC,"CHILDRENS, YOUNG PEOPLE AND FAMILIES","	LEAVING CARE SOUTH",DRUGS AND MEDICAL SUPPLIES,19/06/2020,9116391681,7.94,SUPERDRUG STORES PLC
OXFORDSHIRE CC,"CHILDRENS, YOUNG PEOPLE AND FAMILIES","	MARLBOROUGH",MATERIALS,19/06/2020,9116391693,176.52,AMAZON.CO.UK O04PM98Y5
OXFORDSHIRE CC,ENVIRONMENT AND ECONOMY,"	TVERC",PAYMENT TO GOVERNMENT DEPARTMENTS,18/06/2020,9114180981,6,LAND REGISTRY
OXFORDSHIRE CC,ENVIRONMENT AND ECONOMY,"	TVERC",PAYMENT TO GOVERNMENT DEPARTMENTS,18/06/2020,9114180989,3,LAND REGISTRY
OXFORDSHIRE CC,ENVIRONMENT AND ECONOMY,"	TVERC",PAYMENT TO GOVERNMENT DEPARTMENTS,18/06/2020,9114180999,3,LAND REGISTRY
OXFORDSHIRE CC,ENVIRONMENT AND ECONOMY,"	TVERC",PAYMENT TO GOVERNMENT DEPARTMENTS,18/06/2020,9114181007,6,LAND REGISTRY
OXFORDSHIRE CC,ENVIRONMENT AND ECONOMY,"	TVERC",PAYMENT TO GOVERNMENT DEPARTMENTS,18/06/2020,9114181015,3,LAND REGISTRY
OXFORDSHIRE CC,SOCIAL AND COMMUNITY SERVICES,WEST OXFORDSHIRE TEAM,PURCHASE OF IT EQUIPMENT,18/06/2020,9114181033,22.64,AMAZON.CO.UK QG1Y466K5
OXFORDSHIRE CC,CORPORATE CORE,ICT OPERATIONS & MAI,MATERIALS,18/06/2020,9114181069,45.8,AMZNMKTPLACE AMAZON.CO
OXFORDSHIRE CC,CORPORATE CORE,ICT OPERATIONS & MAI,MATERIALS,18/06/2020,9114181095,7.49,AMZNMKTPLACE AMAZON.CO
OXFORDSHIRE CC,CORPORATE CORE,ICT OPERATIONS & MAI,MATERIALS,18/06/2020,9114181103,8.99,AMAZON.CO.UK DF40O6HB5
OXFORDSHIRE CC,SHARED SERVICES,CSC SUPP & SERVICES,IT SOFTWARE,18/06/2020,9114180121,176.4,SP   CHEAP OFFICE CHAI
OXFORDSHIRE CC,SHARED SERVICES,CSC SUPP & SERVICES,MATERIALS,18/06/2020,9114180125,19.59,AMAZON.CO.UK HE7G87E05
OXFORDSHIRE CC,"CHILDRENS, YOUNG PEOPLE AND FAMILIES","	HEARING IMPAIRMENT","SUPPLIES, STATIONERY AND MATERIALS",18/06/2020,9114180237,95,TEDDYTALKTEST
OXFORDSHIRE CC,SOCIAL AND COMMUNITY SERVICES,CSS - OXFORD,EQUIPMENT,18/06/2020,9114180281,107.4,BMA VARSITY LTD
OXFORDSHIRE CC,SOCIAL AND COMMUNITY SERVICES,LEAVING CARE NORTH,MATERIALS,18/06/2020,9114180403,29.95,AMZNMKTPLACE
OXFORDSHIRE CC,SOCIAL AND COMMUNITY SERVICES,LOOKED AFTER NORTH,CLIENT LODGINGS AND ACCOMMODATION,18/06/2020,9114180411,770,7 SEAS PROPERTY LTD
OXFORDSHIRE CC,SOCIAL AND COMMUNITY SERVICES,LEAVING CARE NORTH,CATERING PROVISIONS,18/06/2020,9114180417,56,ASDA GEORGE COM LEEDS
OXFORDSHIRE CC,SOCIAL AND COMMUNITY SERVICES,CSS WITNEY,CATERING PROVISIONS,18/06/2020,9114180521,19,MARKS&SPENCER PLC
OXFORDSHIRE CC,"CHILDRENS, YOUNG PEOPLE AND FAMILIES","	AAC EQUIPMENT",PURCHASE OF IT EQUIPMENT,18/06/2020,9114180541,99.35,AMAZON.CO.UK 2D1KH36D5
OXFORDSHIRE CC,"CHILDRENS, YOUNG PEOPLE AND FAMILIES","	SEN/ICT EQUIPMENT",IT SOFTWARE,18/06/2020,9114180553,90.37,PAYPRO 448003688867
OXFORDSHIRE CC,"CHILDRENS, YOUNG PEOPLE AND FAMILIES",DIDCOT MOVE-ON HOME,CATERING PROVISIONS,18/06/2020,9114180891,15.6,SAINSBURYS SACAT 2067
OXFORDSHIRE CC,"CHILDRENS, YOUNG PEOPLE AND FAMILIES",DIDCOT MOVE-ON HOME,CATERING PROVISIONS,18/06/2020,9114180911,23.2,SAINSBURYS SACAT 2067
OXFORDSHIRE CC,"CHILDRENS, YOUNG PEOPLE AND FAMILIES",EYNSHAM,CATERING,18/06/2020,9114181155,249.11,BOOKER LIMITED OXFORD
OXFORDSHIRE CC,"CHILDRENS, YOUNG PEOPLE AND FAMILIES",EYNSHAM,CATERING PROVISIONS,18/06/2020,9114181161,15.75,CO-OPERATIVE FOOD
OXFORDSHIRE CC,CORPORATE CORE,INCOME TEAM,PAYMENT TO GOVERNMENT DEPARTMENTS,18/06/2020,9114181199,11,GEN REGISTER OFFICE
OXFORDSHIRE CC,SOCIAL AND COMMUNITY SERVICES,FLEET OPERATIONS,MATERIALS,18/06/2020,9114181271,336.85,LSW
OXFORDSHIRE CC,SOCIAL AND COMMUNITY SERVICES,FLEET OPERATIONS,MATERIALS,18/06/2020,9114181285,389.18,LSW
OXFORDSHIRE CC,SOCIAL AND COMMUNITY SERVICES,FLEET OPERATIONS,MATERIALS,18/06/2020,9114181291,635.39,LSW
OXFORDSHIRE CC,SOCIAL AND COMMUNITY SERVICES,FLEET OPERATIONS,MATERIALS,18/06/2020,9114181295,980.95,LSW
OXFORDSHIRE CC,"CHILDRENS, YOUNG PEOPLE AND FAMILIES",THAME E&A HOME,MATERIALS,18/06/2020,9114179533,5.99,AMZNMKTPLACE
OXFORDSHIRE CC,"CHILDRENS, YOUNG PEOPLE AND FAMILIES",EYNSHAM,CATERING,18/06/2020,9114179599,2.75,CO-OPERATIVE FOOD
OXFORDSHIRE CC,"CHILDRENS, YOUNG PEOPLE AND FAMILIES",WITNEY,CATERING PROVISIONS,18/06/2020,9114179641,8.95,SAINSBURYS SACAT 0632
OXFORDSHIRE CC,ENVIRONMENT AND ECONOMY,HARD FM,MATERIALS,18/06/2020,9114179669,42.69,AMZNMKTPLACE
OXFORDSHIRE CC,ENVIRONMENT AND ECONOMY,HARD FM,MATERIALS,18/06/2020,9114179697,42.99,AMZNMKTPLACE
OXFORDSHIRE CC,ENVIRONMENT AND ECONOMY,HARD FM,MATERIALS,18/06/2020,9114179705,8.68,WWW.TOOLSTATION.COM
OXFORDSHIRE CC,SOCIAL AND COMMUNITY SERVICES,CSS - OXFORD,MATERIALS,18/06/2020,9114179739,5,POUNDLAND LTD
OXFORDSHIRE CC,"CHILDRENS, YOUNG PEOPLE AND FAMILIES","	DISABILITIES TEAM-C",MATERIALS,18/06/2020,9114179753,99.99,WWW.JOHNLEWIS.COM
OXFORDSHIRE CC,"CHILDRENS, YOUNG PEOPLE AND FAMILIES",THAME E&A HOME,CATERING PROVISIONS,18/06/2020,9114179795,7.48,TESCO STORE 2994
OXFORDSHIRE CC,"CHILDRENS, YOUNG PEOPLE AND FAMILIES",THAME E&A HOME,CATERING,18/06/2020,9114179803,8.6,COSTA COFFEE 43039930
OXFORDSHIRE CC,"CHILDRENS, YOUNG PEOPLE AND FAMILIES",THAME E&A HOME,MATERIALS,18/06/2020,9114179811,42.28,AMZNMKTPLACE AMAZON.CO
OXFORDSHIRE CC,"CHILDRENS, YOUNG PEOPLE AND FAMILIES",THAME E&A HOME,CATERING PROVISIONS,18/06/2020,9114179817,19.8,SAINSBURYS 2096
OXFORDSHIRE CC,"CHILDRENS, YOUNG PEOPLE AND FAMILIES",NTH FAM SUPRT-BCSTR,MATERIALS,18/06/2020,9114179883,35.52,AMAZON.CO.UK TB9W03DY5
OXFORDSHIRE CC,"CHILDRENS, YOUNG PEOPLE AND FAMILIES",CSC COVID-19,TELEPHONE - EQUIPMENT,18/06/2020,9114179891,20,VESTA VODAFONE
OXFORDSHIRE CC,"CHILDRENS, YOUNG PEOPLE AND FAMILIES",CSC COVID-19,HARDWARE AND CROCKERY,18/06/2020,9114179935,19.31,SYDENHAMS LTD
OXFORDSHIRE CC,"CHILDRENS, YOUNG PEOPLE AND FAMILIES",STH EARLY HELP-DDCOT,MATERIALS,18/06/2020,9114179941,14,TIMPSON LTD
OXFORDSHIRE CC,"CHILDRENS, YOUNG PEOPLE AND FAMILIES","	LOOKED AFTER CITY 1",CATERING PROVISIONS,18/06/2020,9114179945,10,TESCO-STORES 2305
OXFORDSHIRE CC,"CHILDRENS, YOUNG PEOPLE AND FAMILIES","	DISABILITIES TEAM-C",OTHER EXPENSES,18/06/2020,9114179953,139.99,AMAZON.CO.UK NW9I086S5
OXFORDSHIRE CC,"CHILDRENS, YOUNG PEOPLE AND FAMILIES",CSC COVID-19,"SUPPLIES, STATIONERY AND MATERIALS",18/06/2020,9114179963,227.98,WWW.JOHNLEWIS.COM
OXFORDSHIRE CC,"CHILDRENS, YOUNG PEOPLE AND FAMILIES",CSC COVID-19,"SUPPLIES, STATIONERY AND MATERIALS",18/06/2020,9114179967,495.96,WWW.JOHNLEWIS.COM
OXFORDSHIRE CC,SOCIAL AND COMMUNITY SERVICES,"	KINGFISHER",CATERING,18/06/2020,9114179999,5,ROADCHEF M SERV UPAY L
OXFORDSHIRE CC,SOCIAL AND COMMUNITY SERVICES,"	KINGFISHER",CATERING PROVISIONS,18/06/2020,9114180007,8.19,WELCOME B/STARBUCKS
OXFORDSHIRE CC,SOCIAL AND COMMUNITY SERVICES,"	KINGFISHER",CATERING PROVISIONS,18/06/2020,9114180011,13.7,WM MORRISONS STORE
OXFORDSHIRE CC,"CHILDRENS, YOUNG PEOPLE AND FAMILIES","	HOME SUPPORT",MATERIALS,18/06/2020,9114180031,-18.97,AMZ THE BEAD SHOP UK
OXFORDSHIRE CC,"CHILDRENS, YOUNG PEOPLE AND FAMILIES","	40 THE MOORS",CATERING PROVISIONS,18/06/2020,9114180075,2,SAINSBURYS SACAT 0730
OXFORDSHIRE CC,CORPORATE CORE,RESOURCING,PAYMENT TO GOVERNMENT DEPARTMENTS,18/06/2020,9114180089,"3,199.00",C2E747400025O UKVI
OXFORDSHIRE CC,SOCIAL AND COMMUNITY SERVICES,CSS WITNEY,MATERIALS,17/06/2020,9111394769,44.97,AMAZON.CO.UK D14QL9S65
OXFORDSHIRE CC,SOCIAL AND COMMUNITY SERVICES,CSS WITNEY,MATERIALS,17/06/2020,9111394775,54.99,AMAZON.CO.UK HW5575BF5
OXFORDSHIRE CC,SOCIAL AND COMMUNITY SERVICES,CSS WITNEY,MATERIALS,17/06/2020,9111394781,29.98,AMAZON.CO.UK N04C006W5
OXFORDSHIRE CC,SOCIAL AND COMMUNITY SERVICES,CSS WITNEY,MATERIALS,17/06/2020,9111394789,33.01,AMAZON.CO.UK OI84K8HB5
OXFORDSHIRE CC,SOCIAL AND COMMUNITY SERVICES,CSS WITNEY,MATERIALS,17/06/2020,9111394795,54.99,AMAZON.CO.UK XQ3692B15
OXFORDSHIRE CC,"CHILDRENS, YOUNG PEOPLE AND FAMILIES","	FAM SUPP CITY 1",MATERIALS,17/06/2020,9111394385,27.99,AMAZON.CO.UK OK6WW3OC5
OXFORDSHIRE CC,"CHILDRENS, YOUNG PEOPLE AND FAMILIES",DIDCOT MOVE-ON HOME,CATERING PROVISIONS,17/06/2020,9111394423,7.5,ICELAND
OXFORDSHIRE CC,"CHILDRENS, YOUNG PEOPLE AND FAMILIES","	FAM SUPP CITY 1",MATERIALS,17/06/2020,9111394855,11.48,AMZNMKTPLACE
OXFORDSHIRE CC,"CHILDRENS, YOUNG PEOPLE AND FAMILIES",NRPF & HOMELESSNESS,MATERIALS,17/06/2020,9111394857,542,ARGOS LTD
OXFORDSHIRE CC,"CHILDRENS, YOUNG PEOPLE AND FAMILIES",THAME E&A HOME,MATERIALS,17/06/2020,9111394245,3.89,AMZNMKTPLACE
OXFORDSHIRE CC,"CHILDRENS, YOUNG PEOPLE AND FAMILIES","	MARLBOROUGH","SUPPLIES, STATIONERY AND MATERIALS",17/06/2020,9111394595,263.57,HYGIENE DEPOT
OXFORDSHIRE CC,"CHILDRENS, YOUNG PEOPLE AND FAMILIES",THAME E&A HOME,MATERIALS,17/06/2020,9111394247,3.89,AMZNMKTPLACE
OXFORDSHIRE CC,"CHILDRENS, YOUNG PEOPLE AND FAMILIES",THAME E&A HOME,MATERIALS,17/06/2020,9111394251,3.89,AMZNMKTPLACE
OXFORDSHIRE CC,"CHILDRENS, YOUNG PEOPLE AND FAMILIES",THAME E&A HOME,MATERIALS,17/06/2020,9111394255,121.83,AMZNMKTPLACE
OXFORDSHIRE CC,"CHILDRENS, YOUNG PEOPLE AND FAMILIES",CSC COVID-19,MATERIALS,17/06/2020,9111394265,403.94,ARGOS LTD
OXFORDSHIRE CC,"CHILDRENS, YOUNG PEOPLE AND FAMILIES",ATV ADOPTION WOODLEY,POSTAGE AND DELIVERY,17/06/2020,9111394287,7.64,POST OFFICE COUNTER
OXFORDSHIRE CC,ENVIRONMENT AND ECONOMY,"	NAT TRAILS GENERAL",VEHICLE FUEL,17/06/2020,9111394291,57.01,ASDA PETROL/UPT
OXFORDSHIRE CC,ENVIRONMENT AND ECONOMY,"	ROW MAINT",VEHICLE FUEL,17/06/2020,9111394645,80.01,TESCO PAY AT PUMP 2488
OXFORDSHIRE CC,ENVIRONMENT AND ECONOMY,"	COUNTY HALL",MATERIALS,17/06/2020,9111394663,157.5,TVLICENSING.CO.UK
OXFORDSHIRE CC,"CHILDRENS, YOUNG PEOPLE AND FAMILIES","	RIVERSIDE CENTRE",CATERING PROVISIONS,17/06/2020,9111394687,1.98,CO-OPERATIVE FOOD
OXFORDSHIRE CC,"CHILDRENS, YOUNG PEOPLE AND FAMILIES","	40 THE MOORS",CATERING PROVISIONS,17/06/2020,9111394693,14.9,CO-OPERATIVE FOOD
OXFORDSHIRE CC,SOCIAL AND COMMUNITY SERVICES,CSS BICESTER,GAS,17/06/2020,9111394293,226.48,ALLSTAR BUSINESS SOLUT
OXFORDSHIRE CC,"CHILDRENS, YOUNG PEOPLE AND FAMILIES",WITNEY,CATERING PROVISIONS,17/06/2020,9111394297,7.5,SAINSBURYS SACAT 0632
OXFORDSHIRE CC,ENVIRONMENT AND ECONOMY,HARD FM,HARDWARE AND CROCKERY,17/06/2020,9111394313,8.99,SCREWFIX DIRECT
OXFORDSHIRE CC,ENVIRONMENT AND ECONOMY,HARD FM,HARDWARE AND CROCKERY,17/06/2020,9111394317,26.97,SCREWFIX DIRECT
OXFORDSHIRE CC,ENVIRONMENT AND ECONOMY,HARD FM,HARDWARE AND CROCKERY,17/06/2020,9111394319,34.79,SCREWFIX DIRECT
OXFORDSHIRE CC,ENVIRONMENT AND ECONOMY,HARD FM,EQUIPMENT,17/06/2020,9111394321,115.3,NEWEY & EYRE
OXFORDSHIRE CC,ENVIRONMENT AND ECONOMY,HARD FM,HARDWARE AND CROCKERY,17/06/2020,9111394325,20.48,B AND Q
OXFORDSHIRE CC,ENVIRONMENT AND ECONOMY,HARD FM,HARDWARE AND CROCKERY,17/06/2020,9111394331,44.97,WICKES BANBURY
OXFORDSHIRE CC,ENVIRONMENT AND ECONOMY,HARD FM,HARDWARE AND CROCKERY,17/06/2020,9111394335,55.43,WICKES BANBURY
OXFORDSHIRE CC,"CHILDRENS, YOUNG PEOPLE AND FAMILIES",THAME E&A HOME,CATERING PROVISIONS,17/06/2020,9111394701,1.5,CO-OPERATIVE FOOD
OXFORDSHIRE CC,"CHILDRENS, YOUNG PEOPLE AND FAMILIES",THAME E&A HOME,VEHICLE FUEL,17/06/2020,9111394705,4.75,SHELL PEARTREE
OXFORDSHIRE CC,SOCIAL AND COMMUNITY SERVICES,LEAVING CARE NORTH,MATERIALS,17/06/2020,9111394719,25.98,AMZNMKTPLACE
OXFORDSHIRE CC,SOCIAL AND COMMUNITY SERVICES,LEAVING CARE NORTH,PAYMENTS TO TRANSPORT OPERATORS,17/06/2020,9111394723,7.78,TRAINLINE
OXFORDSHIRE CC,SOCIAL AND COMMUNITY SERVICES,LEAVING CARE NORTH,ELECTRICITY,17/06/2020,9111394725,90,UTILITA ENERGY LIMITED
OXFORDSHIRE CC,SOCIAL AND COMMUNITY SERVICES,LEAVING CARE NORTH,GAS,17/06/2020,9111394727,90,UTILITA ENERGY LTD
OXFORDSHIRE CC,SOCIAL AND COMMUNITY SERVICES,LEAVING CARE NORTH,MATERIALS,17/06/2020,9111394731,260.57,CURRYS ONLINE
OXFORDSHIRE CC,SOCIAL AND COMMUNITY SERVICES,LEAVING CARE NORTH,MATERIALS,17/06/2020,9111394733,12.49,AMZNMKTPLACE
OXFORDSHIRE CC,SOCIAL AND COMMUNITY SERVICES,LEAVING CARE NORTH,MATERIALS,17/06/2020,9111394735,15.98,AMZNMKTPLACE
OXFORDSHIRE CC,ENVIRONMENT AND ECONOMY,HARD FM,HARDWARE AND CROCKERY,17/06/2020,9111394339,44.97,WICKES BANBURY
OXFORDSHIRE CC,ENVIRONMENT AND ECONOMY,HARD FM,HARDWARE AND CROCKERY,17/06/2020,9111394341,20,WICKES BANBURY
OXFORDSHIRE CC,ENVIRONMENT AND ECONOMY,HARD FM,MATERIALS,17/06/2020,9111394345,28.74,AMZNMKTPLACE
OXFORDSHIRE CC,ENVIRONMENT AND ECONOMY,HARD FM,HARDWARE AND CROCKERY,17/06/2020,9111394349,17.5,CITY PLUMBING
OXFORDSHIRE CC,ENVIRONMENT AND ECONOMY,HARD FM,HARDWARE AND CROCKERY,17/06/2020,9111394353,112.3,SCREWFIX DIRECT
OXFORDSHIRE CC,"CHILDRENS, YOUNG PEOPLE AND FAMILIES",THAME E&A HOME,MATERIALS,17/06/2020,9111394357,7.37,FUNKYPIGEON.COM
OXFORDSHIRE CC,"CHILDRENS, YOUNG PEOPLE AND FAMILIES","	LEAVING CARE NORTH",MATERIALS,17/06/2020,9111394363,53.99,JD SPORTS INTERNET
OXFORDSHIRE CC,"CHILDRENS, YOUNG PEOPLE AND FAMILIES","	FAM SUPP CITY 1",MATERIALS,17/06/2020,9111394381,13.48,AMAZON.CO.UK IG8XE21K5
OXFORDSHIRE CC,"CHILDRENS, YOUNG PEOPLE AND FAMILIES",CSC COVID-19,TELEPHONE - EQUIPMENT,17/06/2020,9111394483,15,WWW.THREE.CO.UK
OXFORDSHIRE CC,SOCIAL AND COMMUNITY SERVICES,CSS - OXFORD,IT SERVICES,17/06/2020,9111394487,226.2,INCLUSIVE GROUP
OXFORDSHIRE CC,"CHILDRENS, YOUNG PEOPLE AND FAMILIES",DIDCOT MOVE-ON HOME,CATERING PROVISIONS,17/06/2020,9111394883,5.69,SAINSBURYS SACAT 2067
OXFORDSHIRE CC,ENVIRONMENT AND ECONOMY,"	TVERC",PAYMENT TO GOVERNMENT DEPARTMENTS,17/06/2020,9111394917,6,LAND REGISTRY
OXFORDSHIRE CC,ENVIRONMENT AND ECONOMY,"	TVERC",PAYMENT TO GOVERNMENT DEPARTMENTS,17/06/2020,9111394921,6,LAND REGISTRY
OXFORDSHIRE CC,SOCIAL AND COMMUNITY SERVICES,"	HISTORY SERVICE","BOOKS, DVDS AND CDS",17/06/2020,9111394497,43.39,AMAZON.CO.UK 0J6JG0E85
OXFORDSHIRE CC,SOCIAL AND COMMUNITY SERVICES,CSS WALLINGFORD,MATERIALS,17/06/2020,9111394507,19.5,HOBBYCRAFT
OXFORDSHIRE CC,SOCIAL AND COMMUNITY SERVICES,LOOKED AFTER SOUTH,HIRE OF ACCOMMODATION AND FACILITIES,17/06/2020,9111394523,111.78,HOTEL ON BOOKING.COM
OXFORDSHIRE CC,"CHILDRENS, YOUNG PEOPLE AND FAMILIES","	LOOKED AFTER CITY 1",VEHICLE FUEL,17/06/2020,9111394529,54.92,TESCO PAY AT PUMP 3968
OXFORDSHIRE CC,"CHILDRENS, YOUNG PEOPLE AND FAMILIES","	RIVERSIDE CENTRE",MATERIALS,17/06/2020,9111394537,27.96,DELTA SPORTSWEAR LTD
OXFORDSHIRE CC,"CHILDRENS, YOUNG PEOPLE AND FAMILIES",CNTL ERLY HELP-BBLEY,CATERING PROVISIONS,17/06/2020,9111394929,50,TESCO GIFT CARD
OXFORDSHIRE CC,"CHILDRENS, YOUNG PEOPLE AND FAMILIES","	LOOKED AFTER CITY 2",OTHER TRANSPORT ARRANGEMENTS,17/06/2020,9111394935,35,IZ  ROYAL CARS OXFORD
OXFORDSHIRE CC,CORPORATE CORE,ICT OPERATIONS & MAI,MATERIALS,17/06/2020,9111394939,37.98,AMAZON.CO.UK V05L584Y5
OXFORDSHIRE CC,"CHILDRENS, YOUNG PEOPLE AND FAMILIES",EYNSHAM,MATERIALS,17/06/2020,9111394947,-29.88,AMZ LMANI-UK
OXFORDSHIRE CC,"CHILDRENS, YOUNG PEOPLE AND FAMILIES",EYNSHAM,MATERIALS,17/06/2020,9111394981,18.94,AMZNMKTPLACE
OXFORDSHIRE CC,"CHILDRENS, YOUNG PEOPLE AND FAMILIES",EYNSHAM,MATERIALS,17/06/2020,9111394987,12.75,AMZNMKTPLACE
OXFORDSHIRE CC,"CHILDRENS, YOUNG PEOPLE AND FAMILIES",THAME E&A HOME,CATERING PROVISIONS,17/06/2020,9111394569,1.7,SAINSBURYS 2096
OXFORDSHIRE CC,"CHILDRENS, YOUNG PEOPLE AND FAMILIES","	40 THE MOORS",CATERING PROVISIONS,17/06/2020,9111394579,154.5,SAINSBURYS (2243)
OXFORDSHIRE CC,CORPORATE CORE,,"SUPPLIES, STATIONERY AND MATERIALS",17/06/2020,9111394989,11.52,LYRECO UK LTD
OXFORDSHIRE CC,CORPORATE CORE,,"SUPPLIES, STATIONERY AND MATERIALS",17/06/2020,9111394999,153.53,LYRECO UK LTD
OXFORDSHIRE CC,ENTERPRISEVC,,CAR LEASING - PRIVATE RENTALS,17/06/2020,9111395007,65.75,ENTERPRISE RENT-A-CAR
OXFORDSHIRE CC,ENTERPRISEVC,,CAR LEASING - PRIVATE RENTALS,17/06/2020,9111395011,100.39,ENTERPRISE RENT-A-CAR
OXFORDSHIRE CC,ENTERPRISEVC,,CAR LEASING - PRIVATE RENTALS,17/06/2020,9111395017,79.39,ENTERPRISE RENT-A-CAR
OXFORDSHIRE CC,ENTERPRISEVC,,CAR LEASING - PRIVATE RENTALS,17/06/2020,9111395021,43.18,ENTERPRISE RENT-A-CAR
OXFORDSHIRE CC,"CHILDRENS, YOUNG PEOPLE AND FAMILIES",CSS WALLINGFORD,CATERING PROVISIONS,17/06/2020,9111394227,21.45,WAITROSE 675
OXFORDSHIRE CC,"CHILDRENS, YOUNG PEOPLE AND FAMILIES",THAME E&A HOME,MATERIALS,17/06/2020,9111394233,3.89,AMZNMKTPLACE
OXFORDSHIRE CC,"CHILDRENS, YOUNG PEOPLE AND FAMILIES",THAME E&A HOME,MATERIALS,17/06/2020,9111394235,3.89,AMZNMKTPLACE
OXFORDSHIRE CC,"CHILDRENS, YOUNG PEOPLE AND FAMILIES",THAME E&A HOME,MATERIALS,17/06/2020,9111394237,3.89,AMZNMKTPLACE
OXFORDSHIRE CC,"CHILDRENS, YOUNG PEOPLE AND FAMILIES",THAME E&A HOME,MATERIALS,17/06/2020,9111394239,3.89,AMZNMKTPLACE
OXFORDSHIRE CC,"CHILDRENS, YOUNG PEOPLE AND FAMILIES",THAME E&A HOME,MATERIALS,17/06/2020,9111394243,3.89,AMZNMKTPLACE
OXFORDSHIRE CC,"CHILDRENS, YOUNG PEOPLE AND FAMILIES",THAME E&A HOME,CATERING PROVISIONS,16/06/2020,9109287271,6.1,TESCO STORES 6167
OXFORDSHIRE CC,"CHILDRENS, YOUNG PEOPLE AND FAMILIES","	RESIDENTIAL STRATEGY",CATERING PROVISIONS,16/06/2020,9109287367,33.4,SAINSBURYS SACAT 0600
OXFORDSHIRE CC,"CHILDRENS, YOUNG PEOPLE AND FAMILIES","	RESIDENTIAL STRATEGY",PROFESSIONAL SUBSCRIPTIONS,16/06/2020,9109287369,-30,WEST OXFORDSHIRE D
OXFORDSHIRE CC,SOCIAL AND COMMUNITY SERVICES,"	MUSEUMS COLLECTIONS",OTHER SERVICES,16/06/2020,9109287371,144.6,KILLGERMS CHEMICAL
OXFORDSHIRE CC,"CHILDRENS, YOUNG PEOPLE AND FAMILIES",EYNSHAM,HIRE OF EQUIPMENT,16/06/2020,9109287467,8.99,NETFLIX.COM
OXFORDSHIRE CC,"CHILDRENS, YOUNG PEOPLE AND FAMILIES",EYNSHAM,MATERIALS,16/06/2020,9109287469,7.5,AMZNMKTPLACE
OXFORDSHIRE CC,CORPORATE CORE,,"SUPPLIES, STATIONERY AND MATERIALS",16/06/2020,9109287471,78.98,LYRECO UK LTD
OXFORDSHIRE CC,"CHILDRENS, YOUNG PEOPLE AND FAMILIES",THAME E&A HOME,CATERING PROVISIONS,16/06/2020,9109287273,14,MARTIN MCCOLL
OXFORDSHIRE CC,"CHILDRENS, YOUNG PEOPLE AND FAMILIES",DIDCOT MOVE-ON HOME,CATERING PROVISIONS,16/06/2020,9109287275,8.65,SAINSBURYS SACAT 2067
OXFORDSHIRE CC,ENVIRONMENT AND ECONOMY,"	MOUNT HOUSE",MATERIALS,16/06/2020,9109287283,13.98,AMZNMKTPLACE
OXFORDSHIRE CC,SOCIAL AND COMMUNITY SERVICES,CSS - BANBURY,"NEWSPAPERS, PERIODICALS AND PUBLICATIONS",16/06/2020,9109287285,6,SINGING HANDS
OXFORDSHIRE CC,"CHILDRENS, YOUNG PEOPLE AND FAMILIES",MEMBERS ALLOWANCES,"SUPPLIES, STATIONERY AND MATERIALS",16/06/2020,9109287373,11.99,AMAZON.CO.UK VC75X5QG5
OXFORDSHIRE CC,"CHILDRENS, YOUNG PEOPLE AND FAMILIES","	LEAVING CARE NORTH",MATERIALS,16/06/2020,9109287379,73.99,JD SPORTS INTERNET
OXFORDSHIRE CC,"CHILDRENS, YOUNG PEOPLE AND FAMILIES","	SEN/ICT EQUIPMENT",PURCHASE OF IT EQUIPMENT,16/06/2020,9109287391,7.09,AMZNMKTPLACE
OXFORDSHIRE CC,CORPORATE CORE,,"SUPPLIES, STATIONERY AND MATERIALS",16/06/2020,9109287473,59.16,LYRECO UK LTD
OXFORDSHIRE CC,ENTERPRISEVC,,CAR LEASING - PRIVATE RENTALS,16/06/2020,9109287475,565.75,ENTERPRISE RENT-A-CAR
OXFORDSHIRE CC,SOCIAL AND COMMUNITY SERVICES,LOOKED AFTER SOUTH,HIRE OF ACCOMMODATION AND FACILITIES,16/06/2020,9109287293,214.23,HOTEL ON BOOKING.COM
OXFORDSHIRE CC,"CHILDRENS, YOUNG PEOPLE AND FAMILIES",THAME E&A HOME,CATERING PROVISIONS,16/06/2020,9109287295,162.48,TESCO STORES 2038
OXFORDSHIRE CC,"CHILDRENS, YOUNG PEOPLE AND FAMILIES","	RIVERSIDE CENTRE",CLOTHING AND UNIFORMS,16/06/2020,9109287299,49.01,PEAKUK.COM
OXFORDSHIRE CC,"CHILDRENS, YOUNG PEOPLE AND FAMILIES","	RESIDENTIAL STRATEGY",HARDWARE AND CROCKERY,16/06/2020,9109287307,63.6,B & Q 1176
OXFORDSHIRE CC,"CHILDRENS, YOUNG PEOPLE AND FAMILIES",CSC COVID-19,MATERIALS,16/06/2020,9109287309,159,CURRYS ONLINE
OXFORDSHIRE CC,"CHILDRENS, YOUNG PEOPLE AND FAMILIES",PD EQUIPMENT,DISABILITY AIDS AND EQUIPMENT,16/06/2020,9109287393,50.39,NRS HEALTHCARE
OXFORDSHIRE CC,"CHILDRENS, YOUNG PEOPLE AND FAMILIES",NORTH FSS- WITNEY,CLOTHING AND UNIFORMS,16/06/2020,9109287219,90.49,PRETTYLITTLETHING.COM
OXFORDSHIRE CC,SOCIAL AND COMMUNITY SERVICES,CSS - BANBURY,CATERING PROVISIONS,16/06/2020,9109287221,4.1,TESCO-STORES-5812
OXFORDSHIRE CC,"CHILDRENS, YOUNG PEOPLE AND FAMILIES",THAME E&A HOME,MATERIALS,16/06/2020,9109287225,13.79,AMZNMKTPLACE
OXFORDSHIRE CC,ENVIRONMENT AND ECONOMY,COVID-19 COMMUNITIES,MATERIALS,16/06/2020,9109287229,20.97,AMZNMKTPLACE
OXFORDSHIRE CC,SOCIAL AND COMMUNITY SERVICES,CSS WITNEY,CATERING PROVISIONS,16/06/2020,9109287231,32.5,SAINSBURYS 0632
OXFORDSHIRE CC,"CHILDRENS, YOUNG PEOPLE AND FAMILIES","	40 THE MOORS",CATERING PROVISIONS,16/06/2020,9109287315,31.36,TESCO STORE 2788
OXFORDSHIRE CC,CORPORATE CORE,RESOURCING,PAYMENT TO GOVERNMENT DEPARTMENTS,16/06/2020,9109287317,"3,199.00",C2E747200193R UKVI
OXFORDSHIRE CC,"CHILDRENS, YOUNG PEOPLE AND FAMILIES",EYNSHAM,CATERING PROVISIONS,16/06/2020,9109287419,17.93,CO-OPERATIVE FOOD
OXFORDSHIRE CC,"CHILDRENS, YOUNG PEOPLE AND FAMILIES",NRPF & HOMELESSNESS,HIRE OF ACCOMMODATION AND FACILITIES,16/06/2020,9109287421,609,WWW.ARMASHORTSTAYS.CO.
OXFORDSHIRE CC,"CHILDRENS, YOUNG PEOPLE AND FAMILIES",DIDCOT MOVE-ON HOME,CATERING PROVISIONS,16/06/2020,9109287423,11.47,SAINSBURYS 2067
OXFORDSHIRE CC,"CHILDRENS, YOUNG PEOPLE AND FAMILIES",CNTL EARLY HELP-BRTN,CATERING PROVISIONS,16/06/2020,9109287431,43.55,SAINSBURYS SACAT 2067
OXFORDSHIRE CC,SOCIAL AND COMMUNITY SERVICES,CSS - DIDCOT,MATERIALS,16/06/2020,9109287241,13.98,HOME BARGAINS
OXFORDSHIRE CC,"CHILDRENS, YOUNG PEOPLE AND FAMILIES",CSS WALLINGFORD,CATERING PROVISIONS,16/06/2020,9109287245,22.55,SAINSBURYS SACAT 6193
OXFORDSHIRE CC,SOCIAL AND COMMUNITY SERVICES,CSS BICESTER,CATERING PROVISIONS,16/06/2020,9109287251,5,TESCO STORES 4480
OXFORDSHIRE CC,SHARED SERVICES,CSC SUPP & SERVICES,MATERIALS,16/06/2020,9109287333,39.99,AMAZON.CO.UK XT0PZ3GK5
OXFORDSHIRE CC,"CHILDRENS, YOUNG PEOPLE AND FAMILIES",UASC POST 18,HIRED AND CONTRACTED SERVICES,16/06/2020,9109287349,-20.89,BIG YELLOW S S OXFORD
OXFORDSHIRE CC,"CHILDRENS, YOUNG PEOPLE AND FAMILIES","	LEAVING CARE SOUTH",CLOTHING AND UNIFORMS,16/06/2020,9109287435,33.97,WWW.BIGDUDECLOTHING.CO
OXFORDSHIRE CC,"CHILDRENS, YOUNG PEOPLE AND FAMILIES","	LEAVING CARE SOUTH",CLOTHING AND UNIFORMS,16/06/2020,9109287437,96.94,BIGCLOTHING4U LIMITED
OXFORDSHIRE CC,"CHILDRENS, YOUNG PEOPLE AND FAMILIES",EYNSHAM,CATERING PROVISIONS,16/06/2020,9109287441,157.87,TESCO STORES 2008
OXFORDSHIRE CC,"CHILDRENS, YOUNG PEOPLE AND FAMILIES","	LOOKED AFTER NORTH",STATIONERY,16/06/2020,9109287443,8.3,MOONPIG
OXFORDSHIRE CC,"CHILDRENS, YOUNG PEOPLE AND FAMILIES",THAME E&A HOME,MATERIALS,16/06/2020,9109287445,44.99,AMZNMKTPLACE
OXFORDSHIRE CC,"CHILDRENS, YOUNG PEOPLE AND FAMILIES",THAME E&A HOME,CATERING PROVISIONS,16/06/2020,9109287253,25,TESCO STORE 2162
OXFORDSHIRE CC,"CHILDRENS, YOUNG PEOPLE AND FAMILIES",THAME E&A HOME,CATERING,16/06/2020,9109287255,213.34,HOUSE OF SPICE
OXFORDSHIRE CC,SOCIAL AND COMMUNITY SERVICES,DIDCOT MOVE-ON HOME,CATERING,16/06/2020,9109287257,5.8,POSH FISH
OXFORDSHIRE CC,SOCIAL AND COMMUNITY SERVICES,DIDCOT MOVE-ON HOME,CATERING PROVISIONS,16/06/2020,9109287259,2.3,CO-OPERATIVE FOOD
OXFORDSHIRE CC,"CHILDRENS, YOUNG PEOPLE AND FAMILIES",CSC COVID-19,MATERIALS,16/06/2020,9109287263,20,TESCO ONLINE
OXFORDSHIRE CC,"CHILDRENS, YOUNG PEOPLE AND FAMILIES",THAME E&A HOME,CATERING PROVISIONS,15/06/2020,9106260139,77.1,SAINSBURYS 2096
OXFORDSHIRE CC,SOCIAL AND COMMUNITY SERVICES,DIDCOT MOVE-ON HOME,CATERING PROVISIONS,15/06/2020,9106260145,18.2,SAINSBURYS SACAT 2067
OXFORDSHIRE CC,SOCIAL AND COMMUNITY SERVICES,DIDCOT MOVE-ON HOME,CATERING PROVISIONS,15/06/2020,9106260147,12.58,TESCO STORE 2413
OXFORDSHIRE CC,SOCIAL AND COMMUNITY SERVICES,DIDCOT MOVE-ON HOME,CATERING PROVISIONS,15/06/2020,9106260151,29.84,ASDA STORES 5123
OXFORDSHIRE CC,"CHILDRENS, YOUNG PEOPLE AND FAMILIES",THAME E&A HOME,OTHER TRANSPORT ARRANGEMENTS,15/06/2020,9106260155,1.6,CHERWELL
OXFORDSHIRE CC,"CHILDRENS, YOUNG PEOPLE AND FAMILIES",CSC COVID-19,TELEPHONE - EQUIPMENT,15/06/2020,9106260157,20,TESCO ONLINE
OXFORDSHIRE CC,CORPORATE CORE,"	MEMBERS SERVICES",MATERIALS,15/06/2020,9106260491,27.66,AMAZON.CO.UK B57858X85
OXFORDSHIRE CC,"CHILDRENS, YOUNG PEOPLE AND FAMILIES","	RIVERSIDE CENTRE",ROAD FUND LICENCES AND MOTS,15/06/2020,9106261013,152.5,DVLA VEHICLE TAX
OXFORDSHIRE CC,"CHILDRENS, YOUNG PEOPLE AND FAMILIES",EYNSHAM,MATERIALS,15/06/2020,9106261043,23.99,AMZNMKTPLACE
OXFORDSHIRE CC,"CHILDRENS, YOUNG PEOPLE AND FAMILIES",EYNSHAM,TELEPHONE - EQUIPMENT,15/06/2020,9106261049,7.29,AMZNMKTPLACE AMAZON.CO
OXFORDSHIRE CC,"CHILDRENS, YOUNG PEOPLE AND FAMILIES",EYNSHAM,CATERING PROVISIONS,15/06/2020,9106260165,50,TESCO STORES 2008
OXFORDSHIRE CC,"CHILDRENS, YOUNG PEOPLE AND FAMILIES",EYNSHAM,CATERING PROVISIONS,15/06/2020,9106260167,12.5,TESCO STORES 2008
OXFORDSHIRE CC,"CHILDRENS, YOUNG PEOPLE AND FAMILIES",EYNSHAM,CATERING PROVISIONS,15/06/2020,9106260171,15.77,CO-OPERATIVE FOOD
OXFORDSHIRE CC,"CHILDRENS, YOUNG PEOPLE AND FAMILIES",THAME E&A HOME,VEHICLE FUEL,15/06/2020,9106260173,3.9,THAME BP SF CONNECT
OXFORDSHIRE CC,SOCIAL AND COMMUNITY SERVICES,WITNEY MOVE ON HOME,CATERING PROVISIONS,15/06/2020,9106260175,78.56,SAINSBURYS 0632
OXFORDSHIRE CC,CORPORATE CORE,LIBRARY COLLECTIONS,"NEWSPAPERS, PERIODICALS AND PUBLICATIONS",15/06/2020,9106260183,8.86,GUARDIAN NEWS & MEDIA
OXFORDSHIRE CC,CORPORATE CORE,LIBRARY COLLECTIONS,"NEWSPAPERS, PERIODICALS AND PUBLICATIONS",15/06/2020,9106260189,8.86,GUARDIAN NEWS & MEDIA
OXFORDSHIRE CC,CORPORATE CORE,LIBRARY COLLECTIONS,"NEWSPAPERS, PERIODICALS AND PUBLICATIONS",15/06/2020,9106260193,8.86,GUARDIAN NEWS & MEDIA
OXFORDSHIRE CC,CORPORATE CORE,LIBRARY COLLECTIONS,"NEWSPAPERS, PERIODICALS AND PUBLICATIONS",15/06/2020,9106260195,8.86,GUARDIAN NEWS & MEDIA
OXFORDSHIRE CC,CORPORATE CORE,LIBRARY COLLECTIONS,"NEWSPAPERS, PERIODICALS AND PUBLICATIONS",15/06/2020,9106260197,8.86,GUARDIAN NEWS & MEDIA
OXFORDSHIRE CC,CORPORATE CORE,"	LEGAL SERVICES",PAYMENT TO GOVERNMENT DEPARTMENTS,15/06/2020,9106260601,40,WWW.ICO.ORG.UK
OXFORDSHIRE CC,"CHILDRENS, YOUNG PEOPLE AND FAMILIES",EYNSHAM,CATERING,15/06/2020,9106260853,5.5,CO-OPERATIVE FOOD
OXFORDSHIRE CC,"CHILDRENS, YOUNG PEOPLE AND FAMILIES",EYNSHAM,CATERING,15/06/2020,9106260857,1.85,SPAR EYNSHAM
OXFORDSHIRE CC,SOCIAL AND COMMUNITY SERVICES,CSS - ABINGDON,MATERIALS,15/06/2020,9106260075,13,AMZNMKTPLACE
OXFORDSHIRE CC,"CHILDRENS, YOUNG PEOPLE AND FAMILIES","	MANAGEMENT & ADMIN",MATERIALS,15/06/2020,9106260085,14.76,AMAZON.CO.UK 375YW2AB5
OXFORDSHIRE CC,"CHILDRENS, YOUNG PEOPLE AND FAMILIES","	LOOKED AFTER SOUTH",POSTAGE AND DELIVERY,15/06/2020,9106260089,7.4,POST OFFICE COUNTER
OXFORDSHIRE CC,SOCIAL AND COMMUNITY SERVICES,CSS - ABINGDON,STATIONERY,15/06/2020,9106260093,29.28,TESCO STORES 2008
OXFORDSHIRE CC,"CHILDRENS, YOUNG PEOPLE AND FAMILIES",THAME E&A HOME,CATERING,15/06/2020,9106260331,3.96,MCDONALDS
OXFORDSHIRE CC,SOCIAL AND COMMUNITY SERVICES,COMMENTS&INFORMATION,POSTAGE AND DELIVERY,15/06/2020,9106260341,7.8,POST OFFICE COUNTER
OXFORDSHIRE CC,SOCIAL AND COMMUNITY SERVICES,COMMENTS&INFORMATION,"SUPPLIES, STATIONERY AND MATERIALS",15/06/2020,9106260347,0.75,WILKO RETAIL LIMITED
OXFORDSHIRE CC,"CHILDRENS, YOUNG PEOPLE AND FAMILIES","	40 THE MOORS",MATERIALS,15/06/2020,9106260367,2,POUNDLAND LTD
OXFORDSHIRE CC,"CHILDRENS, YOUNG PEOPLE AND FAMILIES","	40 THE MOORS",CATERING PROVISIONS,15/06/2020,9106260369,4,WILKO RETAIL LIMITED
OXFORDSHIRE CC,"CHILDRENS, YOUNG PEOPLE AND FAMILIES",STEP INTO TRAINING,PHOTOCOPYING,15/06/2020,9106260885,166.8,STK SHUTTERSTOCK
OXFORDSHIRE CC,"CHILDRENS, YOUNG PEOPLE AND FAMILIES",EYNSHAM,CATERING PROVISIONS,15/06/2020,9106260901,4.85,CO-OPERATIVE FOOD
OXFORDSHIRE CC,CORPORATE CORE,ICT OPERATIONS & MAI,IT SERVICES,15/06/2020,9106260907,20.56,GITHUB
OXFORDSHIRE CC,"CHILDRENS, YOUNG PEOPLE AND FAMILIES",EYNSHAM,IT SOFTWARE,15/06/2020,9106260917,13,MAYFIELD EGGS
OXFORDSHIRE CC,"CHILDRENS, YOUNG PEOPLE AND FAMILIES",THAME E&A HOME,IT SOFTWARE,15/06/2020,9106260923,21.49,SP   PERSONALISED TREA
OXFORDSHIRE CC,SOCIAL AND COMMUNITY SERVICES,CSS - ABINGDON,CATERING PROVISIONS,15/06/2020,9106260095,5.5,TESCO STORES 2008
OXFORDSHIRE CC,SOCIAL AND COMMUNITY SERVICES,CSS - ABINGDON,MATERIALS,15/06/2020,9106260099,31.89,DECATHLON UK
OXFORDSHIRE CC,SOCIAL AND COMMUNITY SERVICES,CSS - ABINGDON,EQUIPMENT,15/06/2020,9106260101,-47.99,AMZ OZAROO UK
OXFORDSHIRE CC,"CHILDRENS, YOUNG PEOPLE AND FAMILIES",THAME E&A HOME,CATERING PROVISIONS,15/06/2020,9106260105,15.95,SAINSBURYS 2096
OXFORDSHIRE CC,ENVIRONMENT AND ECONOMY,HARD FM,HARDWARE AND CROCKERY,15/06/2020,9106260113,35.7,B & Q 1156
OXFORDSHIRE CC,ENVIRONMENT AND ECONOMY,HARD FM,HARDWARE AND CROCKERY,15/06/2020,9106260115,33.24,WICKES OXFORD
OXFORDSHIRE CC,ENVIRONMENT AND ECONOMY,HARD FM,GENERAL MAINTENANCE,15/06/2020,9106260119,122.6,WOLSELEY UK
OXFORDSHIRE CC,ENVIRONMENT AND ECONOMY,HARD FM,GENERAL MAINTENANCE,15/06/2020,9106260123,199.88,WOLSELEY UK
OXFORDSHIRE CC,"CHILDRENS, YOUNG PEOPLE AND FAMILIES",THAME E&A HOME,CATERING PROVISIONS,15/06/2020,9106260129,6.85,SAINSBURYS 2096
OXFORDSHIRE CC,"CHILDRENS, YOUNG PEOPLE AND FAMILIES","	LOOKED AFTER SOUTH",HIRE OF ACCOMMODATION AND FACILITIES,15/06/2020,9106260397,207.9,COURTYARD BY MARRIOTT
OXFORDSHIRE CC,"CHILDRENS, YOUNG PEOPLE AND FAMILIES",UASC POST 18,MATERIALS,15/06/2020,9106260407,103.94,ARGOS LTD
OXFORDSHIRE CC,"CHILDRENS, YOUNG PEOPLE AND FAMILIES",HOUSE PROJECT,TELEPHONE - EQUIPMENT,15/06/2020,9106260417,30,VESTA VODAFONE
OXFORDSHIRE CC,"CHILDRENS, YOUNG PEOPLE AND FAMILIES",THAME E&A HOME,MATERIALS,15/06/2020,9106260929,5.97,PAYPAL  THOMASMGUTH EB
OXFORDSHIRE CC,"CHILDRENS, YOUNG PEOPLE AND FAMILIES",EYNSHAM,VEHICLE FUEL,15/06/2020,9106260933,20,BP WOODSTOCK F/STN
OXFORDSHIRE CC,"CHILDRENS, YOUNG PEOPLE AND FAMILIES","	LOOKED AFTER SOUTH",IT SOFTWARE,15/06/2020,9106260949,55.08,SP   FEMMELUXE
OXFORDSHIRE CC,"CHILDRENS, YOUNG PEOPLE AND FAMILIES","	LOOKED AFTER SOUTH",MATERIALS,15/06/2020,9106260955,7.21,AMAZON.CO.UK SL8EU4OU5
OXFORDSHIRE CC,"CHILDRENS, YOUNG PEOPLE AND FAMILIES",MANAGEMENT,MATERIALS,15/06/2020,9106260959,20.48,AMZNMKTPLACE AMAZON.CO
OXFORDSHIRE CC,CORPORATE CORE,LIBRARY COLLECTIONS,"NEWSPAPERS, PERIODICALS AND PUBLICATIONS",15/06/2020,9106260201,8.86,GUARDIAN NEWS & MEDIA
OXFORDSHIRE CC,CORPORATE CORE,LIBRARY COLLECTIONS,"NEWSPAPERS, PERIODICALS AND PUBLICATIONS",15/06/2020,9106260205,8.86,GUARDIAN NEWS & MEDIA
OXFORDSHIRE CC,CORPORATE CORE,LIBRARY COLLECTIONS,"NEWSPAPERS, PERIODICALS AND PUBLICATIONS",15/06/2020,9106260209,8.86,GUARDIAN NEWS & MEDIA
OXFORDSHIRE CC,SOCIAL AND COMMUNITY SERVICES,CSS BICESTER,MATERIALS,15/06/2020,9106260225,11.98,AMZNMKTPLACE AMAZON.CO
OXFORDSHIRE CC,SOCIAL AND COMMUNITY SERVICES,CSS BICESTER,MATERIALS,15/06/2020,9106260227,9.49,AMZNMKTPLACE AMAZON.CO
OXFORDSHIRE CC,"CHILDRENS, YOUNG PEOPLE AND FAMILIES",NTH EARLY HELP-BCSTR,MATERIALS,15/06/2020,9106260229,10,AMZNMKTPLACE AMAZON.CO
OXFORDSHIRE CC,"CHILDRENS, YOUNG PEOPLE AND FAMILIES",CSC COVID-19,MATERIALS,15/06/2020,9106260233,69.99,AMAZON.CO.UK J05AJ3AB5
OXFORDSHIRE CC,"CHILDRENS, YOUNG PEOPLE AND FAMILIES","	RESIDENTIAL STRATEGY",PROFESSIONAL SUBSCRIPTIONS,15/06/2020,9106260619,30,WEST OXFORDSHIRE D
OXFORDSHIRE CC,"CHILDRENS, YOUNG PEOPLE AND FAMILIES","	40 THE MOORS",CATERING PROVISIONS,15/06/2020,9106260629,25.75,SAINSBURYS SACAT 0631
OXFORDSHIRE CC,"CHILDRENS, YOUNG PEOPLE AND FAMILIES","	RESIDENTIAL STRATEGY",OTHER COMMUNICATIONS,15/06/2020,9106260633,5.99,NETFLIX.COM
OXFORDSHIRE CC,SOCIAL AND COMMUNITY SERVICES,LOOKED AFTER NORTH,CLIENT LODGINGS AND ACCOMMODATION,15/06/2020,9106260643,770,7 SEAS PROPERTY LTD
OXFORDSHIRE CC,SOCIAL AND COMMUNITY SERVICES,LOOKED AFTER NORTH,PAYMENT TO GOVERNMENT DEPARTMENTS,15/06/2020,9106260647,33,OXFORDSHIRE CC MOTO1
OXFORDSHIRE CC,SOCIAL AND COMMUNITY SERVICES,LEAVING CARE NORTH,MATERIALS,15/06/2020,9106260653,14.99,AMAZON.CO.UK 4L6NF4FS5
OXFORDSHIRE CC,SOCIAL AND COMMUNITY SERVICES,LEAVING CARE NORTH,MATERIALS,15/06/2020,9106260659,24.99,AMZNMKTPLACE AMAZON.CO
OXFORDSHIRE CC,CORPORATE CORE,INCOME TEAM,SUBSCRIPTIONS,15/06/2020,9106260235,59.94,WWW.192.COM
OXFORDSHIRE CC,ENVIRONMENT AND ECONOMY,OMNICAV,HIRE OF ACCOMMODATION AND FACILITIES,15/06/2020,9106260247,-243.4,HOTEL ON BOOKING.COM
OXFORDSHIRE CC,SOCIAL AND COMMUNITY SERVICES,"	HISTORY SERVICE",FURNITURE,15/06/2020,9106260249,9.59,AMZNMKTPLACE
OXFORDSHIRE CC,"CHILDRENS, YOUNG PEOPLE AND FAMILIES",EDT,HIRE OF ACCOMMODATION AND FACILITIES,15/06/2020,9106260257,85,PIHU ENTERPRISES
OXFORDSHIRE CC,SOCIAL AND COMMUNITY SERVICES,CSS WANTAGE,MATERIALS,15/06/2020,9106260771,9.9,AMZNMKTPLACE
OXFORDSHIRE CC,SOCIAL AND COMMUNITY SERVICES,CSS WANTAGE,CATERING PROVISIONS,15/06/2020,9106260777,33.92,AMAZON.CO.UK O21VF57E5
OXFORDSHIRE CC,"CHILDRENS, YOUNG PEOPLE AND FAMILIES",CSS WALLINGFORD,CATERING PROVISIONS,15/06/2020,9106260055,14.81,WAITROSE 675
OXFORDSHIRE CC,"CHILDRENS, YOUNG PEOPLE AND FAMILIES",EET SERVICE,MATERIALS,15/06/2020,9106260275,5.94,AMAZON.CO.UK PJ6B49WY5
OXFORDSHIRE CC,ENVIRONMENT AND ECONOMY,"	COMMERCIAL MANAGEMEN",TELEPHONE - EQUIPMENT,15/06/2020,9106260289,52.68,WWW.HEADSETCO.CO.UK
OXFORDSHIRE CC,"CHILDRENS, YOUNG PEOPLE AND FAMILIES","	HOME SUPPORT",MATERIALS,15/06/2020,9106260301,28.77,AMZNMKTPLACE AMAZON.CO
OXFORDSHIRE CC,ENVIRONMENT AND ECONOMY,"	TVERC",PAYMENT TO GOVERNMENT DEPARTMENTS,12/06/2020,9102889203,6,LAND REGISTRY
OXFORDSHIRE CC,"CHILDRENS, YOUNG PEOPLE AND FAMILIES",CSC COVID-19,MATERIALS,12/06/2020,9102889227,25,TESCO ONLINE
OXFORDSHIRE CC,"CHILDRENS, YOUNG PEOPLE AND FAMILIES",CSC COVID-19,MATERIALS,12/06/2020,9102889239,0.3,AMZNMKTPLACE AMAZON.CO
OXFORDSHIRE CC,"CHILDRENS, YOUNG PEOPLE AND FAMILIES",CSC COVID-19,MATERIALS,12/06/2020,9102889247,49.95,AMAZON.CO.UK QX2H64TO5
OXFORDSHIRE CC,"CHILDRENS, YOUNG PEOPLE AND FAMILIES","	LOOKED AFTER CITY 2",OTHER TRANSPORT ARRANGEMENTS,12/06/2020,9102889271,45,IZ  ROYAL CARS OXFORD
OXFORDSHIRE CC,"CHILDRENS, YOUNG PEOPLE AND FAMILIES",EYNSHAM,CATERING PROVISIONS,12/06/2020,9102889303,16,SAINSBURYS SACAT 0632
OXFORDSHIRE CC,"CHILDRENS, YOUNG PEOPLE AND FAMILIES","	LOOKED AFTER SOUTH",HIRE OF ACCOMMODATION AND FACILITIES,12/06/2020,9102888343,207.9,COURTYARD BY MARRIOTT
OXFORDSHIRE CC,"CHILDRENS, YOUNG PEOPLE AND FAMILIES","	LOOKED AFTER SOUTH",MATERIALS,12/06/2020,9102889361,5.99,AMAZON.CO.UK QS2910245
OXFORDSHIRE CC,CORPORATE CORE,INCOME TEAM,PAYMENT TO GOVERNMENT DEPARTMENTS,12/06/2020,9102889397,11,GEN REGISTER OFFICE
OXFORDSHIRE CC,"CHILDRENS, YOUNG PEOPLE AND FAMILIES",WITNEY,CATERING PROVISIONS,12/06/2020,9102887591,5.5,SAINSBURYS SACAT 0632
OXFORDSHIRE CC,SOCIAL AND COMMUNITY SERVICES,CSS - ABINGDON,MATERIALS,12/06/2020,9102887597,10.79,AMZNMKTPLACE
OXFORDSHIRE CC,ENVIRONMENT AND ECONOMY,"	NAT TRAILS GENERAL",VEHICLE FUEL,12/06/2020,9102887633,21.65,TESCO PAY AT PUMP 2488
OXFORDSHIRE CC,"CHILDRENS, YOUNG PEOPLE AND FAMILIES","	RESIDENTIAL STRATEGY",CATERING PROVISIONS,12/06/2020,9102887645,15,SAINSBURYS SACAT 0631
OXFORDSHIRE CC,ENVIRONMENT AND ECONOMY,"	COUNTY PRINT FINSHRS",MATERIALS,12/06/2020,9102887659,95,AMAZON.CO.UK JY54S5B05
OXFORDSHIRE CC,"CHILDRENS, YOUNG PEOPLE AND FAMILIES",CSS WALLINGFORD,CATERING PROVISIONS,12/06/2020,9102887679,72.6,B&M 250 - WANTAGE
OXFORDSHIRE CC,"CHILDRENS, YOUNG PEOPLE AND FAMILIES",CSS - DIDCOT,CATERING PROVISIONS,12/06/2020,9102887693,40,SAINSBURYS SACAT 2244
OXFORDSHIRE CC,"CHILDRENS, YOUNG PEOPLE AND FAMILIES",CSS WALLINGFORD,MATERIALS,12/06/2020,9102887707,26.67,HOME BARGAINS
OXFORDSHIRE CC,SOCIAL AND COMMUNITY SERVICES,CSS WANTAGE,MATERIALS,12/06/2020,9102888843,69.42,B&M 250 - WANTAGE
OXFORDSHIRE CC,SOCIAL AND COMMUNITY SERVICES,DIDCOT MOVE-ON HOME,CATERING PROVISIONS,12/06/2020,9102888059,15.56,SAINSBURYS SACAT 2067
OXFORDSHIRE CC,CORPORATE CORE,LIBRARY COLLECTIONS,"BOOKS, DVDS AND CDS",12/06/2020,9102888065,"1,959.75",OVERDRIVE DIST
OXFORDSHIRE CC,CORPORATE CORE,LIBRARY COLLECTIONS,"BOOKS, DVDS AND CDS",12/06/2020,9102888069,137.45,OVERDRIVE DIST
OXFORDSHIRE CC,SOCIAL AND COMMUNITY SERVICES,CSS - OXFORD,MATERIALS,12/06/2020,9102888095,39.96,AMZNMKTPLACE
OXFORDSHIRE CC,SOCIAL AND COMMUNITY SERVICES,CSS - OXFORD,MATERIALS,12/06/2020,9102888099,10.99,AMZNMKTPLACE
OXFORDSHIRE CC,SOCIAL AND COMMUNITY SERVICES,CSS WANTAGE,CATERING PROVISIONS,12/06/2020,9102888851,16,SAINSBURYS SACAT 2244
OXFORDSHIRE CC,SOCIAL AND COMMUNITY SERVICES,CSS WANTAGE,MATERIALS,12/06/2020,9102888861,5.92,HOME BARGAINS
OXFORDSHIRE CC,"CHILDRENS, YOUNG PEOPLE AND FAMILIES","	LEAVING CARE NORTH",MATERIALS,12/06/2020,9102888105,18,AMZNMKTPLACE AMAZON.CO
OXFORDSHIRE CC,"CHILDRENS, YOUNG PEOPLE AND FAMILIES","	LEAVING CARE NORTH",MATERIALS,12/06/2020,9102888111,49.99,AMZNMKTPLACE AMAZON.CO
OXFORDSHIRE CC,"CHILDRENS, YOUNG PEOPLE AND FAMILIES","	LOOKED AFTER NORTH",CLOTHING AND UNIFORMS,12/06/2020,9102888117,42.95,NIKE
OXFORDSHIRE CC,"CHILDRENS, YOUNG PEOPLE AND FAMILIES","	LOOKED AFTER CITY 2",OTHER EXPENSES,12/06/2020,9102888193,10,SMARTY CO UK
OXFORDSHIRE CC,"CHILDRENS, YOUNG PEOPLE AND FAMILIES","	FAM SUPP CITY 1",MATERIALS,12/06/2020,9102889077,7.45,AMZNMKTPLACE AMAZON.CO
OXFORDSHIRE CC,"CHILDRENS, YOUNG PEOPLE AND FAMILIES","	40 THE MOORS",MATERIALS,12/06/2020,9102889095,130,CURRYS ONLINE
OXFORDSHIRE CC,"CHILDRENS, YOUNG PEOPLE AND FAMILIES","	40 THE MOORS",CATERING,12/06/2020,9102889105,58.95,WWW.PAPAJOHNS.CO.UK
OXFORDSHIRE CC,SOCIAL AND COMMUNITY SERVICES,CSS BICESTER,HARDWARE AND CROCKERY,12/06/2020,9102887491,70,HOMEBASE
OXFORDSHIRE CC,"CHILDRENS, YOUNG PEOPLE AND FAMILIES",STH EARLY HELP-ABNDN,MATERIALS,12/06/2020,9102887501,108.8,FAMILY LINKS
OXFORDSHIRE CC,ENVIRONMENT AND ECONOMY,TRO TEAM,MATERIALS,12/06/2020,9102887511,-19.57,AMZ ARA-GLOBAL
OXFORDSHIRE CC,"CHILDRENS, YOUNG PEOPLE AND FAMILIES",ATV ADOPTION WOODLEY,HIRE OF ACCOMMODATION AND FACILITIES,12/06/2020,9102887575,714,BERKSHIRE ROOMS LTD
OXFORDSHIRE CC,"CHILDRENS, YOUNG PEOPLE AND FAMILIES",UASC 16&17,MATERIALS,12/06/2020,9102888205,59.99,AMZNMKTPLACE
OXFORDSHIRE CC,"CHILDRENS, YOUNG PEOPLE AND FAMILIES","	HOME SUPPORT",MATERIALS,12/06/2020,9102888227,18.97,AMZNMKTPLACE
OXFORDSHIRE CC,"CHILDRENS, YOUNG PEOPLE AND FAMILIES",CNTL EARLY HELP-BRTN,IT SOFTWARE,12/06/2020,9102888283,160.19,COMPAREMANVAN
OXFORDSHIRE CC,"CHILDRENS, YOUNG PEOPLE AND FAMILIES",CNTL EARLY HELP-BRTN,"PUBLICITY, PROMOTIONS AND ADVERTISEMENT",12/06/2020,9102888289,22.97,AMZ ALCOSENSE.CO.UK
OXFORDSHIRE CC,SOCIAL AND COMMUNITY SERVICES,CSS - ABINGDON,EQUIPMENT,12/06/2020,9102887725,6.94,AMAZON.CO.UK NU2806DU5
OXFORDSHIRE CC,ENVIRONMENT AND ECONOMY,HARD FM,EQUIPMENT,12/06/2020,9102887739,28.75,NEWEY & EYRE
OXFORDSHIRE CC,ENVIRONMENT AND ECONOMY,HARD FM,HARDWARE AND CROCKERY,12/06/2020,9102887749,57.62,WICKES OXFORD
OXFORDSHIRE CC,ENVIRONMENT AND ECONOMY,HARD FM,HARDWARE AND CROCKERY,12/06/2020,9102887757,22.98,TOOLSTATION LTD
OXFORDSHIRE CC,ENVIRONMENT AND ECONOMY,HARD FM,HARDWARE AND CROCKERY,12/06/2020,9102887787,24,B & Q 1156
OXFORDSHIRE CC,ENVIRONMENT AND ECONOMY,HARD FM,HARDWARE AND CROCKERY,12/06/2020,9102887799,36.1,SCREWFIX DIRECT
OXFORDSHIRE CC,ENVIRONMENT AND ECONOMY,HARD FM,IT SOFTWARE,12/06/2020,9102887809,258,ETI LTD
OXFORDSHIRE CC,"CHILDRENS, YOUNG PEOPLE AND FAMILIES",THAME E&A HOME,VEHICLE FUEL,12/06/2020,9102887819,16.65,THAME BP SF CONNECT
OXFORDSHIRE CC,ENVIRONMENT AND ECONOMY,HARD FM,HARDWARE AND CROCKERY,12/06/2020,9102887829,31.64,B AND Q
OXFORDSHIRE CC,CORPORATE CORE,"	MEMBERS SERVICES",MATERIALS,12/06/2020,9102888469,32.99,AMAZON.CO.UK 7K4D941D5
OXFORDSHIRE CC,"CHILDRENS, YOUNG PEOPLE AND FAMILIES",CSC COVID-19,OTHER PREMISES RELATED COSTS,12/06/2020,9102888521,515.82,WWW.UKPOS.COM
OXFORDSHIRE CC,"CHILDRENS, YOUNG PEOPLE AND FAMILIES","	LOOKED AFTER CITY 2",TELEPHONE - EQUIPMENT,12/06/2020,9102889461,10,VESTA VODAFONE
OXFORDSHIRE CC,SOCIAL AND COMMUNITY SERVICES,CSS - OXFORD,CATERING PROVISIONS,12/06/2020,9102887845,147.63,TESCO STORES 2008
OXFORDSHIRE CC,SOCIAL AND COMMUNITY SERVICES,CSS - OXFORD,HARDWARE AND CROCKERY,12/06/2020,9102887851,3,HOMEBASE LTD 091
OXFORDSHIRE CC,CORPORATE CORE,"	LEGAL SERVICES",EDUCATIONAL AND VOCATIONAL TRAINING ,12/06/2020,9102888597,364,CHARTERED INSTITUTE OF
OXFORDSHIRE CC,"CHILDRENS, YOUNG PEOPLE AND FAMILIES","	RESIDENTIAL STRATEGY",MATERIALS,12/06/2020,9102888635,2.99,WH SMITH
OXFORDSHIRE CC,"CHILDRENS, YOUNG PEOPLE AND FAMILIES","	40 THE MOORS",MATERIALS,12/06/2020,9102887897,199.99,AMZNMKTPLACE
OXFORDSHIRE CC,"CHILDRENS, YOUNG PEOPLE AND FAMILIES","	LEAVING CARE CITY 1",HIRE OF ACCOMMODATION AND FACILITIES,12/06/2020,9102887913,784,GALAXIE HOTEL
OXFORDSHIRE CC,"CHILDRENS, YOUNG PEOPLE AND FAMILIES","	LEAVING CARE CITY 1",HIRE OF ACCOMMODATION AND FACILITIES,12/06/2020,9102887917,784,GALAXIE HOTEL
OXFORDSHIRE CC,SOCIAL AND COMMUNITY SERVICES,DIDCOT MOVE-ON HOME,MATERIALS,12/06/2020,9102887927,11.49,AMZNMKTPLACE AMAZON.CO
OXFORDSHIRE CC,"CHILDRENS, YOUNG PEOPLE AND FAMILIES","	FAM SUPP CITY 1",MATERIALS,12/06/2020,9102887933,179.99,AMZNMKTPLACE AMAZON.CO
OXFORDSHIRE CC,"CHILDRENS, YOUNG PEOPLE AND FAMILIES",CNTL EARLY HELP-RHIL,MATERIALS,12/06/2020,9102887941,8.27,AMZNMKTPLACE
OXFORDSHIRE CC,"CHILDRENS, YOUNG PEOPLE AND FAMILIES","	FAM SUPP CITY 1",REGISTRATION AND INSPECTION FEES,12/06/2020,9102887949,11,OXFORDSHIRE CC MOTO1
OXFORDSHIRE CC,"CHILDRENS, YOUNG PEOPLE AND FAMILIES",CSC COVID-19,TELEPHONE - EQUIPMENT,12/06/2020,9102887957,30,O2 PREPAY TOP-UP
OXFORDSHIRE CC,"CHILDRENS, YOUNG PEOPLE AND FAMILIES",CNTL EARLY HELP-RHIL,MATERIALS,12/06/2020,9102887963,239.99,ARGOS LTD
OXFORDSHIRE CC,"CHILDRENS, YOUNG PEOPLE AND FAMILIES",CSC COVID-19,SERVICE CHARGES - PREMISES,12/06/2020,9102887973,191.75,VALE OF WHITEHORSE
OXFORDSHIRE CC,"CHILDRENS, YOUNG PEOPLE AND FAMILIES",DIDCOT MOVE-ON HOME,CATERING PROVISIONS,12/06/2020,9102888015,3.6,SAINSBURYS SACAT 2067
OXFORDSHIRE CC,"CHILDRENS, YOUNG PEOPLE AND FAMILIES",DIDCOT MOVE-ON HOME,CATERING PROVISIONS,12/06/2020,9102888023,0.75,SAINSBURYS SACAT 2067
OXFORDSHIRE CC,"CHILDRENS, YOUNG PEOPLE AND FAMILIES",WITNEY,OTHER EXPENSES,11/06/2020,9100166033,33.03,THE WORKS
OXFORDSHIRE CC,"CHILDRENS, YOUNG PEOPLE AND FAMILIES",WITNEY,VEHICLE FUEL,11/06/2020,9100166041,1.5,SHELL WITNEY
OXFORDSHIRE CC,"CHILDRENS, YOUNG PEOPLE AND FAMILIES","	40 THE MOORS",TELEPHONE - EQUIPMENT,11/06/2020,9100166087,46.5,EE LIMITED
OXFORDSHIRE CC,SOCIAL AND COMMUNITY SERVICES,CSS WITNEY,MATERIALS,11/06/2020,9100166131,13.5,AMAZON.CO.UK FH69F8FT5
OXFORDSHIRE CC,SOCIAL AND COMMUNITY SERVICES,CSS WITNEY,MATERIALS,11/06/2020,9100166135,5.5,AMAZON.CO.UK Q14SK91M5
OXFORDSHIRE CC,SOCIAL AND COMMUNITY SERVICES,CSS WITNEY,MATERIALS,11/06/2020,9100166143,10.6,AMAZON.CO.UK B39G29HB5
OXFORDSHIRE CC,SOCIAL AND COMMUNITY SERVICES,CSS WITNEY,MATERIALS,11/06/2020,9100166151,6.99,AMZNMKTPLACE
OXFORDSHIRE CC,"CHILDRENS, YOUNG PEOPLE AND FAMILIES","	AAC EQUIPMENT",PURCHASE OF IT EQUIPMENT,11/06/2020,9100166157,119.41,AMAZON.CO.UK EB5KT3065
OXFORDSHIRE CC,"CHILDRENS, YOUNG PEOPLE AND FAMILIES",EYNSHAM,OTHER EXPENSES,11/06/2020,9100166257,5,EVENLODE DIY
OXFORDSHIRE CC,"CHILDRENS, YOUNG PEOPLE AND FAMILIES",DIDCOT MOVE-ON HOME,CATERING PROVISIONS,11/06/2020,9100166271,46.15,SAINSBURYS 2067
OXFORDSHIRE CC,"CHILDRENS, YOUNG PEOPLE AND FAMILIES","	LOOKED AFTER CITY 2",OTHER TRANSPORT ARRANGEMENTS,11/06/2020,9100166307,10,IZ  ROYAL CARS OXFORD
OXFORDSHIRE CC,"CHILDRENS, YOUNG PEOPLE AND FAMILIES","	LEAVING CARE CITY 2",OTHER TRANSPORT ARRANGEMENTS,11/06/2020,9100166313,10,IZ  ROYAL CARS OXFORD
OXFORDSHIRE CC,SOCIAL AND COMMUNITY SERVICES,"	PUBLIC HEALTH GENERA","SUPPLIES, STATIONERY AND MATERIALS",11/06/2020,9100166317,39.89,EUROFFICE.CO.UK
OXFORDSHIRE CC,"CHILDRENS, YOUNG PEOPLE AND FAMILIES","	LEAVING CARE SOUTH",PAYMENT TO GOVERNMENT DEPARTMENTS,11/06/2020,9100166329,96.25,VALE OF WHITE HORS
OXFORDSHIRE CC,"CHILDRENS, YOUNG PEOPLE AND FAMILIES",EYNSHAM,CATERING PROVISIONS,11/06/2020,9100166351,153.19,TESCO STORES 2008
OXFORDSHIRE CC,"CHILDRENS, YOUNG PEOPLE AND FAMILIES",THAME E&A HOME,CATERING PROVISIONS,11/06/2020,9100166363,20,WAITROSE 206
OXFORDSHIRE CC,"CHILDRENS, YOUNG PEOPLE AND FAMILIES",EYNSHAM,CATERING PROVISIONS,11/06/2020,9100166375,12.98,CO-OPERATIVE FOOD
OXFORDSHIRE CC,SOCIAL AND COMMUNITY SERVICES,CSS - BANBURY,CATERING PROVISIONS,11/06/2020,9100165419,3.3,SAINSBURYS 0642
OXFORDSHIRE CC,"CHILDRENS, YOUNG PEOPLE AND FAMILIES",THAME E&A HOME,MATERIALS,11/06/2020,9100165441,32.99,AMZNMKTPLACE
OXFORDSHIRE CC,"CHILDRENS, YOUNG PEOPLE AND FAMILIES",THAME E&A HOME,MATERIALS,11/06/2020,9100165443,8.8,AMAZON.CO.UK MF65M7EV5
OXFORDSHIRE CC,"CHILDRENS, YOUNG PEOPLE AND FAMILIES",EYNSHAM,FURNITURE,11/06/2020,9100166425,46.79,AMZNMKTPLACE AMAZON.CO
OXFORDSHIRE CC,"CHILDRENS, YOUNG PEOPLE AND FAMILIES",EYNSHAM,FURNITURE,11/06/2020,9100166429,46.79,AMZNMKTPLACE AMAZON.CO
OXFORDSHIRE CC,CORPORATE CORE,,"SUPPLIES, STATIONERY AND MATERIALS",11/06/2020,9100166433,28.86,LYRECO UK LTD
OXFORDSHIRE CC,CORPORATE CORE,,"SUPPLIES, STATIONERY AND MATERIALS",11/06/2020,9100166439,25.34,LYRECO UK LTD
OXFORDSHIRE CC,CORPORATE CORE,,"SUPPLIES, STATIONERY AND MATERIALS",11/06/2020,9100166441,12.67,LYRECO UK LTD
OXFORDSHIRE CC,"CHILDRENS, YOUNG PEOPLE AND FAMILIES",THAME E&A HOME,MATERIALS,11/06/2020,9100165447,51.76,AMZNMKTPLACE
OXFORDSHIRE CC,"CHILDRENS, YOUNG PEOPLE AND FAMILIES",THAME E&A HOME,MATERIALS,11/06/2020,9100165449,7.98,AMZNMKTPLACE
OXFORDSHIRE CC,"CHILDRENS, YOUNG PEOPLE AND FAMILIES","	FAMILY SUPPORT CITY3",MATERIALS,11/06/2020,9100165473,-7.99,AMAZON PRIME
OXFORDSHIRE CC,SOCIAL AND COMMUNITY SERVICES,CSS - ABINGDON,MATERIALS,11/06/2020,9100165487,6.26,AMZNMKTPLACE
OXFORDSHIRE CC,SOCIAL AND COMMUNITY SERVICES,CSS - ABINGDON,MATERIALS,11/06/2020,9100165493,21.56,AMZNMKTPLACE
OXFORDSHIRE CC,CORPORATE CORE,,"SUPPLIES, STATIONERY AND MATERIALS",11/06/2020,9100166445,38.02,LYRECO UK LTD
OXFORDSHIRE CC,SOCIAL AND COMMUNITY SERVICES,CSS - ABINGDON,FURNITURE,11/06/2020,9100165501,60.91,BLINDS 2 GO LTD
OXFORDSHIRE CC,SOCIAL AND COMMUNITY SERVICES,CSS - ABINGDON,EQUIPMENT,11/06/2020,9100165505,144.13,AMZNMKTPLACE
OXFORDSHIRE CC,"CHILDRENS, YOUNG PEOPLE AND FAMILIES","	LOOKED AFTER CITY 1",CATERING,11/06/2020,9100165517,7.39,MCDONALDS
OXFORDSHIRE CC,ENVIRONMENT AND ECONOMY,HARD FM,VEHICLES REPAIRS AND MAINTENANCE,11/06/2020,9100165527,354.98,ALLEN FORD - SWINDON S
OXFORDSHIRE CC,ENVIRONMENT AND ECONOMY,HARD FM,HARDWARE AND CROCKERY,11/06/2020,9100165531,19.1,WICKES OXFORD
OXFORDSHIRE CC,ENVIRONMENT AND ECONOMY,HARD FM,HARDWARE AND CROCKERY,11/06/2020,9100165537,21.76,B AND Q
OXFORDSHIRE CC,ENVIRONMENT AND ECONOMY,HARD FM,HARDWARE AND CROCKERY,11/06/2020,9100165539,81.73,B & Q 1062
OXFORDSHIRE CC,ENVIRONMENT AND ECONOMY,HARD FM,MATERIALS,11/06/2020,9100165543,181.81,AMZNMKTPLACE
OXFORDSHIRE CC,ENVIRONMENT AND ECONOMY,HARD FM,MATERIALS,11/06/2020,9100165547,78,CLOVERS OF BERINSFIELD
OXFORDSHIRE CC,"CHILDRENS, YOUNG PEOPLE AND FAMILIES",ICT INFORMATION,EDUCATIONAL AND VOCATIONAL TRAINING ,11/06/2020,9100165549,-11,OXFORDSHIRE CC MOTO1
OXFORDSHIRE CC,"CHILDRENS, YOUNG PEOPLE AND FAMILIES",THAME E&A HOME,DRUGS AND MEDICAL SUPPLIES,11/06/2020,9100165553,3.49,SUPERDRUG STORES PLC
OXFORDSHIRE CC,"CHILDRENS, YOUNG PEOPLE AND FAMILIES","	LEAVING CARE NORTH",MATERIALS,11/06/2020,9100165557,30,SOUTHERN ELECTRIC
OXFORDSHIRE CC,"CHILDRENS, YOUNG PEOPLE AND FAMILIES",WITNEY,CATERING PROVISIONS,11/06/2020,9100165619,19,SAINSBURYS SACAT 0632
OXFORDSHIRE CC,CORPORATE CORE,LIBRARY COLLECTIONS,"BOOKS, DVDS AND CDS",11/06/2020,9100165651,"1,913.85",BOLINDA PUBLISHING
OXFORDSHIRE CC,SOCIAL AND COMMUNITY SERVICES,CSS BICESTER,MATERIALS,11/06/2020,9100165679,119.88,AMZNMKTPLACE AMAZON.CO
OXFORDSHIRE CC,SOCIAL AND COMMUNITY SERVICES,CSS BICESTER,MATERIALS,11/06/2020,9100165683,60.69,AMZNMKTPLACE
OXFORDSHIRE CC,CORPORATE CORE,"	COMMUNICATIONS",PHOTOCOPYING,11/06/2020,9100165699,29,STK SHUTTERSTOCK
OXFORDSHIRE CC,ENVIRONMENT AND ECONOMY,"	MOUNT HOUSE",MATERIALS,11/06/2020,9100165703,19.8,AMAZON.CO.UK G50CR9SI5
OXFORDSHIRE CC,CORPORATE CORE,COVID-19 PPE,MATERIALS,11/06/2020,9100165711,300.5,AMZNMKTPLACE AMAZON.CO
OXFORDSHIRE CC,CORPORATE CORE,CENTRAL BUYING TEAM,MATERIALS,11/06/2020,9100165715,4.95,AMZNMKTPLACE
OXFORDSHIRE CC,"CHILDRENS, YOUNG PEOPLE AND FAMILIES",KINGFISHER,OTHER TRANSPORT ARRANGEMENTS,11/06/2020,9100165731,137.88,STORAGEBASE
OXFORDSHIRE CC,"CHILDRENS, YOUNG PEOPLE AND FAMILIES",KINGFISHER,CATERING PROVISIONS,11/06/2020,9100165735,20.95,WAITROSE DIRECT
OXFORDSHIRE CC,"CHILDRENS, YOUNG PEOPLE AND FAMILIES",STH EARLY HELP-DDCOT,CAR LEASING - PRIVATE RENTALS,11/06/2020,9100165741,53,AFFILIATED AUTO RENTAL
OXFORDSHIRE CC,"CHILDRENS, YOUNG PEOPLE AND FAMILIES","	LEAVING CARE CITY 2",MATERIALS,11/06/2020,9100165765,59.99,AMZNMKTPLACE AMAZON.CO
OXFORDSHIRE CC,ENVIRONMENT AND ECONOMY,"	LIBRARY PROJECTS",EDUCATIONAL AND VOCATIONAL TRAINING ,11/06/2020,9100165787,-5.25,OXFORDSHIRE CC WEB1
OXFORDSHIRE CC,ENVIRONMENT AND ECONOMY,"	LIBRARY PROJECTS",EDUCATIONAL AND VOCATIONAL TRAINING ,11/06/2020,9100165791,-39.27,OXFORDSHIRE CC WEB1
OXFORDSHIRE CC,"CHILDRENS, YOUNG PEOPLE AND FAMILIES",THAME E&A HOME,CATERING PROVISIONS,11/06/2020,9100165805,15.54,AL-KHIR GROCERS
OXFORDSHIRE CC,SOCIAL AND COMMUNITY SERVICES,COMMENTS&INFORMATION,EQUIPMENT,11/06/2020,9100165809,15.08,AMZNMKTPLACE
OXFORDSHIRE CC,"CHILDRENS, YOUNG PEOPLE AND FAMILIES",UASC POST 18,OTHER EXPENSES,11/06/2020,9100165823,11.98,AMZNMKTPLACE AMAZON.CO
OXFORDSHIRE CC,"CHILDRENS, YOUNG PEOPLE AND FAMILIES",HOUSE PROJECT,"PUBLICITY, PROMOTIONS AND ADVERTISEMENT",11/06/2020,9100165835,99.96,AMZ LAPTOPS DIRECT
OXFORDSHIRE CC,SHARED SERVICES,CSC SUPP & SERVICES,MATERIALS,11/06/2020,9100165839,11.99,AMZNMKTPLACE AMAZON.CO
OXFORDSHIRE CC,SHARED SERVICES,CSC SUPP & SERVICES,MATERIALS,11/06/2020,9100165843,147.98,AMZNMKTPLACE AMAZON.CO
OXFORDSHIRE CC,ENVIRONMENT AND ECONOMY,"	COUNTY HALL",MATERIALS,11/06/2020,9100165997,21.11,UPS LTD
OXFORDSHIRE CC,SOCIAL AND COMMUNITY SERVICES,CSS - OXFORD,CATERING PROVISIONS,10/06/2020,9097758295,36.45,TESCO STORE 2994
OXFORDSHIRE CC,SOCIAL AND COMMUNITY SERVICES,CSS - OXFORD,CATERING PROVISIONS,10/06/2020,9097758299,15.72,TESCO STORE 2994
OXFORDSHIRE CC,"CHILDRENS, YOUNG PEOPLE AND FAMILIES","	LOOKED AFTER SOUTH",PAYMENT TO GOVERNMENT DEPARTMENTS,10/06/2020,9097758307,58.5,HM PASSPORT OFFICE
OXFORDSHIRE CC,CORPORATE CORE,SCHOOLS FM,MATERIALS,10/06/2020,9097758019,39.95,AMZNMKTPLACE AMAZON.CO
OXFORDSHIRE CC,CORPORATE CORE,SCHOOLS FM,MATERIALS,10/06/2020,9097758023,9.95,AMZNMKTPLACE AMAZON.CO
OXFORDSHIRE CC,"CHILDRENS, YOUNG PEOPLE AND FAMILIES","	LEAVING CARE CITY 2",OTHER TRANSPORT ARRANGEMENTS,10/06/2020,9097758709,30,IZ  ROYAL CARS OXFORD
OXFORDSHIRE CC,SOCIAL AND COMMUNITY SERVICES,DIDCOT MOVE-ON HOME,CATERING PROVISIONS,10/06/2020,9097758093,5.1,SAINSBURYS SACAT 2067
OXFORDSHIRE CC,SOCIAL AND COMMUNITY SERVICES,"	ASSESSMENT TEAM NORT",OTHER EXPENSES,10/06/2020,9097758613,47.98,ARGOS LTD
OXFORDSHIRE CC,"CHILDRENS, YOUNG PEOPLE AND FAMILIES",NRPF & HOMELESSNESS,HIRE OF ACCOMMODATION AND FACILITIES,10/06/2020,9097758635,609,WWW.ARMASHORTSTAYS.CO.
OXFORDSHIRE CC,SOCIAL AND COMMUNITY SERVICES,"	MUSEUMS COLLECTIONS",CATERING PROVISIONS,10/06/2020,9097758097,-1.56,MILK&MORE
OXFORDSHIRE CC,"CHILDRENS, YOUNG PEOPLE AND FAMILIES","	DISABILITIES TEAM-C",OTHER EXPENSES,10/06/2020,9097758105,144.99,CURRYS ONLINE
OXFORDSHIRE CC,SOCIAL AND COMMUNITY SERVICES,CSS BICESTER,MATERIALS,10/06/2020,9097758125,9.19,AMZNMKTPLACE
OXFORDSHIRE CC,"CHILDRENS, YOUNG PEOPLE AND FAMILIES",CSC COVID-19,TELEPHONE - EQUIPMENT,10/06/2020,9097758135,15,WWW.THREE.CO.UK
OXFORDSHIRE CC,"CHILDRENS, YOUNG PEOPLE AND FAMILIES","	40 THE MOORS",EDUCATIONAL AND VOCATIONAL TRAINING ,10/06/2020,9097758151,550,THE LEARNING STATION
OXFORDSHIRE CC,SOCIAL AND COMMUNITY SERVICES,"	PUBLIC HEALTH GENERA",MATERIALS,10/06/2020,9097758715,16,AMZNMKTPLACE
OXFORDSHIRE CC,"CHILDRENS, YOUNG PEOPLE AND FAMILIES","	LEAVING CARE SOUTH",CATERING PROVISIONS,10/06/2020,9097758723,3,TESCO STORE 2990
OXFORDSHIRE CC,"CHILDRENS, YOUNG PEOPLE AND FAMILIES","	LEAVING CARE SOUTH",OTHER TRANSPORT ARRANGEMENTS,10/06/2020,9097758727,2.5,CITY CAR PARKS
OXFORDSHIRE CC,CORPORATE CORE,INCOME TEAM,PAYMENT TO GOVERNMENT DEPARTMENTS,10/06/2020,9097758739,22,GEN REGISTER OFFICE
OXFORDSHIRE CC,CORPORATE CORE,,"SUPPLIES, STATIONERY AND MATERIALS",10/06/2020,9097758749,479.44,LYRECO UK LTD
OXFORDSHIRE CC,SOCIAL AND COMMUNITY SERVICES,CSS - BANBURY,MATERIALS,10/06/2020,9097758155,19.16,AMZNMKTPLACE AMAZON.CO
OXFORDSHIRE CC,SOCIAL AND COMMUNITY SERVICES,CSS - BANBURY,MATERIALS,10/06/2020,9097758161,79.9,AMZNMKTPLACE AMAZON.CO
OXFORDSHIRE CC,SOCIAL AND COMMUNITY SERVICES,"	HISTORY SERVICE",FURNITURE,10/06/2020,9097758167,259.97,AMAZON.CO.UK NR5NM6965
OXFORDSHIRE CC,SOCIAL AND COMMUNITY SERVICES,CSS WALLINGFORD,CATERING PROVISIONS,10/06/2020,9097758175,14,WAITROSE 675
OXFORDSHIRE CC,"CHILDRENS, YOUNG PEOPLE AND FAMILIES","	LOOKED AFTER NORTH",MATERIALS,10/06/2020,9097758181,119.99,AMAZON.CO.UK V18XU0AJ5
OXFORDSHIRE CC,CORPORATE CORE,,"SUPPLIES, STATIONERY AND MATERIALS",10/06/2020,9097758753,25.16,LYRECO UK LTD
OXFORDSHIRE CC,CORPORATE CORE,,"SUPPLIES, STATIONERY AND MATERIALS",10/06/2020,9097758757,22.36,LYRECO UK LTD
OXFORDSHIRE CC,CORPORATE CORE,,"SUPPLIES, STATIONERY AND MATERIALS",10/06/2020,9097758759,44.78,LYRECO UK LTD
OXFORDSHIRE CC,ENTERPRISEVC,,CAR LEASING - PRIVATE RENTALS,10/06/2020,9097758761,89.81,ENTERPRISE RENT-A-CAR
OXFORDSHIRE CC,"CHILDRENS, YOUNG PEOPLE AND FAMILIES","	RESIDENTIAL STRATEGY",POSTAGE AND DELIVERY,10/06/2020,9097758239,1.15,POST OFFICE COUNTER
OXFORDSHIRE CC,ENVIRONMENT AND ECONOMY,"	LIBRARY PROJECTS",EDUCATIONAL AND VOCATIONAL TRAINING ,10/06/2020,9097758253,5.25,OXFORDSHIRE CC WEB1
OXFORDSHIRE CC,ENVIRONMENT AND ECONOMY,"	LIBRARY PROJECTS",EDUCATIONAL AND VOCATIONAL TRAINING ,10/06/2020,9097758255,39.27,OXFORDSHIRE CC WEB1
OXFORDSHIRE CC,"CHILDRENS, YOUNG PEOPLE AND FAMILIES","	40 THE MOORS",CATERING PROVISIONS,10/06/2020,9097758267,137.49,SAINSBURYS (2243)
OXFORDSHIRE CC,"CHILDRENS, YOUNG PEOPLE AND FAMILIES",UASC POST 18,OTHER EXPENSES,10/06/2020,9097758269,19.09,AMZNMKTPLACE AMAZON.CO
OXFORDSHIRE CC,"CHILDRENS, YOUNG PEOPLE AND FAMILIES",UASC POST 18,OTHER EXPENSES,10/06/2020,9097758273,11.99,AMZNMKTPLACE AMAZON.CO
OXFORDSHIRE CC,"CHILDRENS, YOUNG PEOPLE AND FAMILIES",UASC POST 18,OTHER EXPENSES,10/06/2020,9097758277,27.92,AMZNMKTPLACE AMAZON.CO
OXFORDSHIRE CC,"CHILDRENS, YOUNG PEOPLE AND FAMILIES",DIDCOT MOVE-ON HOME,CATERING PROVISIONS,10/06/2020,9097758645,5,SAINSBURYS SACAT 2067
OXFORDSHIRE CC,"CHILDRENS, YOUNG PEOPLE AND FAMILIES",DIDCOT MOVE-ON HOME,CATERING PROVISIONS,10/06/2020,9097758653,2.2,SAINSBURYS SACAT 2067
OXFORDSHIRE CC,"CHILDRENS, YOUNG PEOPLE AND FAMILIES",DIDCOT MOVE-ON HOME,MATERIALS,10/06/2020,9097758659,36,B & M RETAIL
OXFORDSHIRE CC,SOCIAL AND COMMUNITY SERVICES,"	VISUAL IMP. TEAM",MATERIALS,10/06/2020,9097758379,51.99,AMAZON.CO.UK PK6KA9JE5
OXFORDSHIRE CC,SOCIAL AND COMMUNITY SERVICES,CSS WITNEY,CATERING PROVISIONS,10/06/2020,9097757925,11.5,SAINSBURYS 0632
OXFORDSHIRE CC,SOCIAL AND COMMUNITY SERVICES,CSS BICESTER,CATERING PROVISIONS,10/06/2020,9097757937,13,TESCO STORES 4480
OXFORDSHIRE CC,SOCIAL AND COMMUNITY SERVICES,CSS - ABINGDON,MATERIALS,10/06/2020,9097757949,9.98,AMZNMKTPLACE
OXFORDSHIRE CC,ENVIRONMENT AND ECONOMY,"	COUNTY PRINT FINSHRS",MATERIALS,10/06/2020,9097757961,47.48,AMAZON.CO.UK DV0U19WF5
OXFORDSHIRE CC,CORPORATE CORE,"	LEGAL SERVICES",MATERIALS,10/06/2020,9097758485,65.94,AMAZON.CO.UK YX1500EN5
OXFORDSHIRE CC,ENVIRONMENT AND ECONOMY,"	MUSEUM SERV MANAGER",SUBSCRIPTIONS,10/06/2020,9097758501,205,MUSEUMS ASCTN
OXFORDSHIRE CC,SOCIAL AND COMMUNITY SERVICES,"	MUSEUMS COLLECTIONS",EQUIPMENT,10/06/2020,9097758511,-7.15,AZPACK LTD
OXFORDSHIRE CC,ENVIRONMENT AND ECONOMY,HARD FM,VEHICLES REPAIRS AND MAINTENANCE,10/06/2020,9097757969,12,CROWMARSH TYRE CENTRE
OXFORDSHIRE CC,ENVIRONMENT AND ECONOMY,HARD FM,FURNITURE,10/06/2020,9097757973,442.66,SAFELINCS
OXFORDSHIRE CC,ENVIRONMENT AND ECONOMY,HARD FM,HARDWARE AND CROCKERY,10/06/2020,9097757979,22.47,SCREWFIX DIRECT
OXFORDSHIRE CC,ENVIRONMENT AND ECONOMY,HARD FM,HARDWARE AND CROCKERY,10/06/2020,9097757983,67.45,SCREWFIX DIRECT
OXFORDSHIRE CC,"CHILDRENS, YOUNG PEOPLE AND FAMILIES",ICT INFORMATION,IT SOFTWARE,10/06/2020,9097757987,11,OXFORDSHIRE CC WEB1
OXFORDSHIRE CC,"CHILDRENS, YOUNG PEOPLE AND FAMILIES",THAME E&A HOME,OTHER TRANSPORT ARRANGEMENTS,10/06/2020,9097757993,1.6,CHERWELL
OXFORDSHIRE CC,"CHILDRENS, YOUNG PEOPLE AND FAMILIES",CNTL EARLY HELP-RHIL,MATERIALS,10/06/2020,9097758013,44,AMAZON.CO.UK 1M5F94TG5
OXFORDSHIRE CC,"CHILDRENS, YOUNG PEOPLE AND FAMILIES","	FAM SUPP CITY 1",MATERIALS,10/06/2020,9097758015,12.99,AMZNMKTPLACE
OXFORDSHIRE CC,"CHILDRENS, YOUNG PEOPLE AND FAMILIES",CSC COVID-19,"SUPPLIES, STATIONERY AND MATERIALS",09/06/2020,9095757947,29.94,AMZNMKTPLACE
OXFORDSHIRE CC,"CHILDRENS, YOUNG PEOPLE AND FAMILIES",CSC COVID-19,"SUPPLIES, STATIONERY AND MATERIALS",09/06/2020,9095757949,103.79,AMZNMKTPLACE
OXFORDSHIRE CC,"CHILDRENS, YOUNG PEOPLE AND FAMILIES",CSC COVID-19,"SUPPLIES, STATIONERY AND MATERIALS",09/06/2020,9095757951,161.18,AMZNMKTPLACE
OXFORDSHIRE CC,"CHILDRENS, YOUNG PEOPLE AND FAMILIES",CSC COVID-19,"SUPPLIES, STATIONERY AND MATERIALS",09/06/2020,9095757953,123.52,AMZNMKTPLACE
OXFORDSHIRE CC,"CHILDRENS, YOUNG PEOPLE AND FAMILIES",CSC COVID-19,"SUPPLIES, STATIONERY AND MATERIALS",09/06/2020,9095757955,156.92,AMZNMKTPLACE
OXFORDSHIRE CC,"CHILDRENS, YOUNG PEOPLE AND FAMILIES","	RESIDENTIAL STRATEGY",MATERIALS,09/06/2020,9095757969,-309,AMZ TOOLSTOP_LTD
OXFORDSHIRE CC,"CHILDRENS, YOUNG PEOPLE AND FAMILIES",EYNSHAM,CATERING PROVISIONS,09/06/2020,9095758021,134.95,SAINSBURYS 0632
OXFORDSHIRE CC,"CHILDRENS, YOUNG PEOPLE AND FAMILIES",DIDCOT MOVE-ON HOME,CATERING PROVISIONS,09/06/2020,9095758031,10.13,SAINSBURYS SACAT 2067
OXFORDSHIRE CC,"CHILDRENS, YOUNG PEOPLE AND FAMILIES",DIDCOT MOVE-ON HOME,CATERING PROVISIONS,09/06/2020,9095758033,10.5,SAINSBURYS SACAT 2067
OXFORDSHIRE CC,"CHILDRENS, YOUNG PEOPLE AND FAMILIES",VULNERABLE LEARNERS,MATERIALS,09/06/2020,9095758037,30,KATHY BRODIE
OXFORDSHIRE CC,"CHILDRENS, YOUNG PEOPLE AND FAMILIES",CSC COVID-19,MATERIALS,09/06/2020,9095758045,10,TESCO ONLINE
OXFORDSHIRE CC,"CHILDRENS, YOUNG PEOPLE AND FAMILIES","	LEAVING CARE CITY 2",OTHER EXPENSES,09/06/2020,9095758057,244.44,AMZNMKTPLACE
OXFORDSHIRE CC,"CHILDRENS, YOUNG PEOPLE AND FAMILIES",THAME E&A HOME,CATERING PROVISIONS,09/06/2020,9095758059,2.9,SAINSBURYS 2096
OXFORDSHIRE CC,"CHILDRENS, YOUNG PEOPLE AND FAMILIES","	LEAVING CARE NORTH",OTHER EXPENSES,09/06/2020,9095758061,319.98,CURRYS ONLINE
OXFORDSHIRE CC,"CHILDRENS, YOUNG PEOPLE AND FAMILIES","	LEAVING CARE NORTH",OTHER TRANSPORT ARRANGEMENTS,09/06/2020,9095758063,-14.8,PAYPAL  TRAINLINE
OXFORDSHIRE CC,"CHILDRENS, YOUNG PEOPLE AND FAMILIES","	LOOKED AFTER NORTH",MATERIALS,09/06/2020,9095758069,13.4,AMAZON.CO.UK KH9L879O5
OXFORDSHIRE CC,CORPORATE CORE,"	COMMUNICATIONS",IT SOFTWARE,09/06/2020,9095758071,23.26,WIX.COM
OXFORDSHIRE CC,CORPORATE CORE,"	COMMUNICATIONS",IT SOFTWARE,09/06/2020,9095758073,66.62,WIX.COM
OXFORDSHIRE CC,CORPORATE CORE,"	COMMUNICATIONS",IT SOFTWARE,09/06/2020,9095758075,23.26,WIX.COM
OXFORDSHIRE CC,CORPORATE CORE,,"SUPPLIES, STATIONERY AND MATERIALS",09/06/2020,9095758077,5.65,LYRECO UK LTD
OXFORDSHIRE CC,CORPORATE CORE,,"SUPPLIES, STATIONERY AND MATERIALS",09/06/2020,9095758079,52.84,LYRECO UK LTD
OXFORDSHIRE CC,CORPORATE CORE,,"SUPPLIES, STATIONERY AND MATERIALS",09/06/2020,9095758081,13.79,LYRECO UK LTD
OXFORDSHIRE CC,CORPORATE CORE,,"SUPPLIES, STATIONERY AND MATERIALS",09/06/2020,9095758083,11.76,LYRECO UK LTD
OXFORDSHIRE CC,CORPORATE CORE,,"SUPPLIES, STATIONERY AND MATERIALS",09/06/2020,9095758085,35.94,LYRECO UK LTD
OXFORDSHIRE CC,SOCIAL AND COMMUNITY SERVICES,CSS - BANBURY,CATERING PROVISIONS,09/06/2020,9095757779,2.3,TESCO-STORES-5812
OXFORDSHIRE CC,SOCIAL AND COMMUNITY SERVICES,CSS - BANBURY,MATERIALS,09/06/2020,9095757781,89.99,ARGOS LTD
OXFORDSHIRE CC,SOCIAL AND COMMUNITY SERVICES,CSS - BANBURY,MATERIALS,09/06/2020,9095757869,22.97,AMZNMKTPLACE AMAZON.CO
OXFORDSHIRE CC,SOCIAL AND COMMUNITY SERVICES,"	HISTORY SERVICE",MATERIALS,09/06/2020,9095757871,4.02,AMAZON.CO.UK RS3SU7VC5
OXFORDSHIRE CC,SOCIAL AND COMMUNITY SERVICES,"	HISTORY SERVICE",FURNITURE,09/06/2020,9095757873,51.18,AMAZON.CO.UK 6J1PK7GK5
OXFORDSHIRE CC,SOCIAL AND COMMUNITY SERVICES,"	HISTORY SERVICE","BOOKS, DVDS AND CDS",09/06/2020,9095757875,33.27,AMAZON.CO.UK WO31K31R5
OXFORDSHIRE CC,"CHILDRENS, YOUNG PEOPLE AND FAMILIES","	LOOKED AFTER NORTH",MATERIALS,09/06/2020,9095757877,317.99,CURRYS ONLINE
OXFORDSHIRE CC,ENVIRONMENT AND ECONOMY,P&S OPERATIONAL REV,PAYMENTS TO VOLUNTARY BODIES,09/06/2020,9095757879,-250.44,PAYPAL  RTPI
OXFORDSHIRE CC,"CHILDRENS, YOUNG PEOPLE AND FAMILIES",THAME E&A HOME,CATERING PROVISIONS,09/06/2020,9095757893,9.6,THAME BP SF CONNECT
OXFORDSHIRE CC,"CHILDRENS, YOUNG PEOPLE AND FAMILIES",THAME E&A HOME,CATERING PROVISIONS,09/06/2020,9095757895,127.99,TESCO STORES 2038
OXFORDSHIRE CC,"CHILDRENS, YOUNG PEOPLE AND FAMILIES",THAME E&A HOME,MATERIALS,09/06/2020,9095757897,4.98,AMZNMKTPLACE AMAZON.CO
OXFORDSHIRE CC,"CHILDRENS, YOUNG PEOPLE AND FAMILIES","	HOME SUPPORT",MATERIALS,09/06/2020,9095757901,18.97,AMZNMKTPLACE
OXFORDSHIRE CC,"CHILDRENS, YOUNG PEOPLE AND FAMILIES","	FAMILY SUPPORT CITY3","PUBLICITY, PROMOTIONS AND ADVERTISEMENT",09/06/2020,9095757905,69.99,AMZ ALCOSENSE.CO.UK
OXFORDSHIRE CC,SOCIAL AND COMMUNITY SERVICES,LOOKED AFTER NORTH,MATERIALS,09/06/2020,9095757909,12.99,AMAZON.CO.UK KY18M70X5
OXFORDSHIRE CC,"CHILDRENS, YOUNG PEOPLE AND FAMILIES",THAME E&A HOME,POSTAGE AND DELIVERY,09/06/2020,9095757785,4.7,POST OFFICE COUNTER
OXFORDSHIRE CC,SOCIAL AND COMMUNITY SERVICES,CSS WITNEY,CATERING PROVISIONS,09/06/2020,9095757789,51.56,SAINSBURYS 0632
OXFORDSHIRE CC,SOCIAL AND COMMUNITY SERVICES,CSS - DIDCOT,CATERING PROVISIONS,09/06/2020,9095757791,18.45,SAINSBURYS SACAT 2244
OXFORDSHIRE CC,ENVIRONMENT AND ECONOMY,"	COUNTY PRINT FINSHRS",MATERIALS,09/06/2020,9095757795,178.95,AMZNMKTPLACE AMAZON.CO
OXFORDSHIRE CC,SOCIAL AND COMMUNITY SERVICES,CSS - ABINGDON,POSTAGE AND DELIVERY,09/06/2020,9095757797,16.62,POST OFFICE COUNTER
OXFORDSHIRE CC,"CHILDRENS, YOUNG PEOPLE AND FAMILIES",UASC 16&17,RESIDENTIAL ACTIVITIES,09/06/2020,9095757805,25.94,AMZNMKTPLACE AMAZON.CO
OXFORDSHIRE CC,ENVIRONMENT AND ECONOMY,HARD FM,HARDWARE AND CROCKERY,09/06/2020,9095757807,11.98,SCREWFIX DIRECT
OXFORDSHIRE CC,ENVIRONMENT AND ECONOMY,HARD FM,HARDWARE AND CROCKERY,09/06/2020,9095757809,75.6,CITY PLUMBING
OXFORDSHIRE CC,ENVIRONMENT AND ECONOMY,HARD FM,HARDWARE AND CROCKERY,09/06/2020,9095757811,37.54,SCREWFIX DIRECT
OXFORDSHIRE CC,ENVIRONMENT AND ECONOMY,HARD FM,HARDWARE AND CROCKERY,09/06/2020,9095757813,56.6,SCREWFIX DIRECT
OXFORDSHIRE CC,"CHILDRENS, YOUNG PEOPLE AND FAMILIES",THAME E&A HOME,CATERING PROVISIONS,09/06/2020,9095757815,8,MARKS&SPENCER PLC SACA
OXFORDSHIRE CC,ENVIRONMENT AND ECONOMY,COUNTY LIBRARY,GENERAL MAINTENANCE,09/06/2020,9095757817,34.03,WOLSELEY UK
OXFORDSHIRE CC,"CHILDRENS, YOUNG PEOPLE AND FAMILIES",CSC COVID-19,MATERIALS,09/06/2020,9095757825,34,HALFORDS ON LINE
OXFORDSHIRE CC,"CHILDRENS, YOUNG PEOPLE AND FAMILIES",EYNSHAM,CATERING PROVISIONS,09/06/2020,9095757833,6.3,CO-OPERATIVE FOOD
OXFORDSHIRE CC,ENTERPRISEVC,BUSINESS SYST STAFF,TELEPHONE - EQUIPMENT,09/06/2020,9095757839,39,BT WI-FI
OXFORDSHIRE CC,"CHILDRENS, YOUNG PEOPLE AND FAMILIES","	LOOKED AFTER CITY 1",OTHER TRANSPORT ARRANGEMENTS,09/06/2020,9095757841,1.6,PARKING FEE
OXFORDSHIRE CC,"CHILDRENS, YOUNG PEOPLE AND FAMILIES","	LOOKED AFTER CITY 1",PAYMENT TO GOVERNMENT DEPARTMENTS,09/06/2020,9095757847,49,HM PASSPORT OFFICE
OXFORDSHIRE CC,CORPORATE CORE,LIBRARY COLLECTIONS,"BOOKS, DVDS AND CDS",09/06/2020,9095757849,"3,388.30",OVERDRIVE DIST
OXFORDSHIRE CC,CORPORATE CORE,LIBRARY COLLECTIONS,"BOOKS, DVDS AND CDS",09/06/2020,9095757851,486.5,OVERDRIVE DIST
OXFORDSHIRE CC,"CHILDRENS, YOUNG PEOPLE AND FAMILIES",NORTH FSS- BANBURY,MATERIALS,09/06/2020,9095757861,269.99,ARGOS LTD
OXFORDSHIRE CC,"CHILDRENS, YOUNG PEOPLE AND FAMILIES",NTH FAM SUPRT-BCSTR,MATERIALS,09/06/2020,9095757863,398.92,AMZNMKTPLACE
OXFORDSHIRE CC,CORPORATE CORE,COVID-19 PPE,MATERIALS,09/06/2020,9095757865,497.9,AMZNMKTPLACE AMAZON.CO
OXFORDSHIRE CC,SOCIAL AND COMMUNITY SERVICES,CSS - BANBURY,MATERIALS,09/06/2020,9095757867,139.8,AMZNMKTPLACE AMAZON.CO
OXFORDSHIRE CC,SOCIAL AND COMMUNITY SERVICES,LEAVING CARE NORTH,OTHER PREMISES RELATED COSTS,09/06/2020,9095757971,200,7 SEAS PROPERTY LTD
OXFORDSHIRE CC,CORPORATE CORE,"	LEGAL SERVICES",EDUCATIONAL AND VOCATIONAL TRAINING ,08/06/2020,9092774205,11,OXFORDSHIRE CC MOTO1
OXFORDSHIRE CC,"CHILDRENS, YOUNG PEOPLE AND FAMILIES",THAME E&A HOME,CATERING,08/06/2020,9092774209,3.75,COSTA COFFEE 43039930
OXFORDSHIRE CC,SOCIAL AND COMMUNITY SERVICES,LEAVING CARE NORTH,CATERING,08/06/2020,9092774211,27.08,DELIVEROO.CO.UK
OXFORDSHIRE CC,SOCIAL AND COMMUNITY SERVICES,LEAVING CARE NORTH,MATERIALS,08/06/2020,9092774215,293,AO RETAIL LIMITED
OXFORDSHIRE CC,ENVIRONMENT AND ECONOMY,OMNICAV,DRUGS AND MEDICAL SUPPLIES,08/06/2020,9092773935,78.3,WWW.MEDESIGN.CO.UK
OXFORDSHIRE CC,ENVIRONMENT AND ECONOMY,OMNICAV,DRUGS AND MEDICAL SUPPLIES,08/06/2020,9092773937,78.3,WWW.MEDESIGN.CO.UK
OXFORDSHIRE CC,CORPORATE CORE,"	COMMUNICATIONS",IT SOFTWARE,08/06/2020,9092773943,20.45,ZAPIER.COM/CHARGE
OXFORDSHIRE CC,CORPORATE CORE,"	COMMUNICATIONS",MATERIALS,08/06/2020,9092773945,183.12,MAILCHIMP    MONTHLY
OXFORDSHIRE CC,CORPORATE CORE,"	COMMUNICATIONS",IT SOFTWARE,08/06/2020,9092773947,8.17,RSS.APP
OXFORDSHIRE CC,"CHILDRENS, YOUNG PEOPLE AND FAMILIES",CSC COVID-19,"SUPPLIES, STATIONERY AND MATERIALS",08/06/2020,9092774179,40.94,AMZNMKTPLACE
OXFORDSHIRE CC,"CHILDRENS, YOUNG PEOPLE AND FAMILIES",CSC COVID-19,"SUPPLIES, STATIONERY AND MATERIALS",08/06/2020,9092774183,30.88,AMZNMKTPLACE
OXFORDSHIRE CC,"CHILDRENS, YOUNG PEOPLE AND FAMILIES",CSC COVID-19,"SUPPLIES, STATIONERY AND MATERIALS",08/06/2020,9092774185,154.4,AMZNMKTPLACE
OXFORDSHIRE CC,"CHILDRENS, YOUNG PEOPLE AND FAMILIES",CSC COVID-19,"SUPPLIES, STATIONERY AND MATERIALS",08/06/2020,9092774187,45.98,AMZNMKTPLACE
OXFORDSHIRE CC,"CHILDRENS, YOUNG PEOPLE AND FAMILIES",CSC COVID-19,"SUPPLIES, STATIONERY AND MATERIALS",08/06/2020,9092774189,137.25,AMZNMKTPLACE
OXFORDSHIRE CC,"CHILDRENS, YOUNG PEOPLE AND FAMILIES","	LEAVING CARE CITY 2",DRUGS AND MEDICAL SUPPLIES,08/06/2020,9092774191,18.99,HOLLAND & BARRETT
OXFORDSHIRE CC,"CHILDRENS, YOUNG PEOPLE AND FAMILIES",DIDCOT MOVE-ON HOME,CATERING PROVISIONS,08/06/2020,9092774425,17.9,SAINSBURYS SACAT 2067
OXFORDSHIRE CC,"CHILDRENS, YOUNG PEOPLE AND FAMILIES",STEP INTO TRAINING,IT SERVICES,08/06/2020,9092774435,149.88,CREATE.NET BRIGHTON
OXFORDSHIRE CC,"CHILDRENS, YOUNG PEOPLE AND FAMILIES",0-5 STDS & PROGRESS,"SUPPLIES, STATIONERY AND MATERIALS",08/06/2020,9092774441,6.86,AMAZON.CO.UK NJ0A584X5
OXFORDSHIRE CC,"CHILDRENS, YOUNG PEOPLE AND FAMILIES",UASC 16&17,RESIDENTIAL ACTIVITIES,08/06/2020,9092773765,10.39,AMAZON.CO.UK PL86074H5
OXFORDSHIRE CC,"CHILDRENS, YOUNG PEOPLE AND FAMILIES",UASC 16&17,RESIDENTIAL ACTIVITIES,08/06/2020,9092773767,23.08,AMZNMKTPLACE AMAZON.CO
OXFORDSHIRE CC,ENVIRONMENT AND ECONOMY,HARD FM,HARDWARE AND CROCKERY,08/06/2020,9092773769,30.48,WICKES BANBURY
OXFORDSHIRE CC,SOCIAL AND COMMUNITY SERVICES,OPERATIONAL DEVT & B,HIRE OF ACCOMMODATION AND FACILITIES,08/06/2020,9092773953,-290,PREMIER INN
OXFORDSHIRE CC,SOCIAL AND COMMUNITY SERVICES,CSS WALLINGFORD,MATERIALS,08/06/2020,9092773963,11.99,AMAZON.CO.UK DS95G1NT5
OXFORDSHIRE CC,SOCIAL AND COMMUNITY SERVICES,CSS WALLINGFORD,MATERIALS,08/06/2020,9092773965,13.25,AMZNMKTPLACE
OXFORDSHIRE CC,SOCIAL AND COMMUNITY SERVICES,CSS WALLINGFORD,MATERIALS,08/06/2020,9092773969,9.95,AMZNMKTPLACE
OXFORDSHIRE CC,"CHILDRENS, YOUNG PEOPLE AND FAMILIES","	40 THE MOORS",CATERING PROVISIONS,08/06/2020,9092774073,150.19,SAINSBURYS TO YOU 0600
OXFORDSHIRE CC,"CHILDRENS, YOUNG PEOPLE AND FAMILIES",UASC POST 18,OTHER EXPENSES,08/06/2020,9092774085,229.99,ARGOS LTD
OXFORDSHIRE CC,"CHILDRENS, YOUNG PEOPLE AND FAMILIES",UASC POST 18,OTHER EXPENSES,08/06/2020,9092774087,265.95,ARGOS LTD
OXFORDSHIRE CC,"CHILDRENS, YOUNG PEOPLE AND FAMILIES",UASC POST 18,OTHER EXPENSES,08/06/2020,9092774089,219.99,ARGOS LTD
OXFORDSHIRE CC,"CHILDRENS, YOUNG PEOPLE AND FAMILIES",CSS WALLINGFORD,CATERING PROVISIONS,08/06/2020,9092773705,9.8,WAITROSE 675
OXFORDSHIRE CC,"CHILDRENS, YOUNG PEOPLE AND FAMILIES",THAME E&A HOME,MATERIALS,08/06/2020,9092773707,5.29,AMAZON.CO.UK 8Y00L86T5
OXFORDSHIRE CC,"CHILDRENS, YOUNG PEOPLE AND FAMILIES","	LOOKED AFTER CITY 2",OTHER TRANSPORT ARRANGEMENTS,08/06/2020,9092774463,135,IZ  ROYAL CARS OXFORD
OXFORDSHIRE CC,ENVIRONMENT AND ECONOMY,HARD FM,HARDWARE AND CROCKERY,08/06/2020,9092773773,47.92,WICKES OXFORD
OXFORDSHIRE CC,ENVIRONMENT AND ECONOMY,HARD FM,HARDWARE AND CROCKERY,08/06/2020,9092773779,29.99,SCREWFIX DIRECT
OXFORDSHIRE CC,"CHILDRENS, YOUNG PEOPLE AND FAMILIES",ICT INFORMATION,IT SOFTWARE,08/06/2020,9092773785,-11,OXFORDSHIRE CC MOTO1
OXFORDSHIRE CC,"CHILDRENS, YOUNG PEOPLE AND FAMILIES","	LEAVING CARE NORTH",PAYMENTS TO VOLUNTARY BODIES,08/06/2020,9092773787,396.48,ALLPAY  SOVEREIGN HOUS
OXFORDSHIRE CC,"CHILDRENS, YOUNG PEOPLE AND FAMILIES","	LOOKED AFTER NORTH",CLOTHING AND UNIFORMS,08/06/2020,9092773791,102.79,BOOHOO.COM
OXFORDSHIRE CC,SOCIAL AND COMMUNITY SERVICES,RESIDENTIAL STRATEGY,CATERING PROVISIONS,08/06/2020,9092773793,20.75,SAINSBURYS SACAT 0631
OXFORDSHIRE CC,SOCIAL AND COMMUNITY SERVICES,RESIDENTIAL STRATEGY,CATERING PROVISIONS,08/06/2020,9092773797,7.5,SAINSBURYS 0632
OXFORDSHIRE CC,SOCIAL AND COMMUNITY SERVICES,RESIDENTIAL STRATEGY,HARDWARE AND CROCKERY,08/06/2020,9092773799,9.99,WICKES OXFORD
OXFORDSHIRE CC,SOCIAL AND COMMUNITY SERVICES,RESIDENTIAL STRATEGY,CATERING PROVISIONS,08/06/2020,9092773801,4.98,CO-OPERATIVE FOOD
OXFORDSHIRE CC,SOCIAL AND COMMUNITY SERVICES,CSS - OXFORD,CATERING PROVISIONS,08/06/2020,9092773807,78.25,SAINSBURYS (2305)
OXFORDSHIRE CC,"CHILDRENS, YOUNG PEOPLE AND FAMILIES",THAME E&A HOME,CATERING PROVISIONS,08/06/2020,9092773997,235.91,TESCO STORES 4480
OXFORDSHIRE CC,"CHILDRENS, YOUNG PEOPLE AND FAMILIES","	LOOKED AFTER CITY 1",OTHER EXPENSES,08/06/2020,9092774011,49,HM PASSPORT OFFICE
OXFORDSHIRE CC,"CHILDRENS, YOUNG PEOPLE AND FAMILIES","	LOOKED AFTER CITY 1",OTHER EXPENSES,08/06/2020,9092774013,49,HM PASSPORT OFFICE
OXFORDSHIRE CC,"CHILDRENS, YOUNG PEOPLE AND FAMILIES","	LOOKED AFTER CITY 1",OTHER EXPENSES,08/06/2020,9092774017,158.69,SCOTTISH POWER
OXFORDSHIRE CC,"CHILDRENS, YOUNG PEOPLE AND FAMILIES","	LEAVING CARE SOUTH",MATERIALS,08/06/2020,9092774493,47.94,ARGOS LTD
OXFORDSHIRE CC,"CHILDRENS, YOUNG PEOPLE AND FAMILIES","	LEAVING CARE SOUTH",MATERIALS,08/06/2020,9092774497,65.95,ARGOS LTD
OXFORDSHIRE CC,CORPORATE CORE,ICT OPERATIONS & MAI,MATERIALS,08/06/2020,9092774499,24.92,AMAZON.CO.UK LY1Q50M15
OXFORDSHIRE CC,"CHILDRENS, YOUNG PEOPLE AND FAMILIES",EYNSHAM,CATERING PROVISIONS,08/06/2020,9092774505,137.88,TESCO STORES 2008
OXFORDSHIRE CC,"CHILDRENS, YOUNG PEOPLE AND FAMILIES",EYNSHAM,IT SOFTWARE,08/06/2020,9092774507,13,MAYFIELD EGGS
OXFORDSHIRE CC,SOCIAL AND COMMUNITY SERVICES,CSS - OXFORD,CATERING PROVISIONS,08/06/2020,9092773813,1,SAINSBURYS 0600
OXFORDSHIRE CC,"CHILDRENS, YOUNG PEOPLE AND FAMILIES",THAME E&A HOME,CATERING PROVISIONS,08/06/2020,9092773825,51.6,SAINSBURYS 2096
OXFORDSHIRE CC,"CHILDRENS, YOUNG PEOPLE AND FAMILIES",THAME E&A HOME,CATERING PROVISIONS,08/06/2020,9092773829,9.35,SAINSBURYS 2096
OXFORDSHIRE CC,"CHILDRENS, YOUNG PEOPLE AND FAMILIES","	MUSIC UNALLOCABLE",PROFESSIONAL SUBSCRIPTIONS,08/06/2020,9092774021,166.96,PPL PRS LTD
OXFORDSHIRE CC,SOCIAL AND COMMUNITY SERVICES,CSS WITNEY,MATERIALS,08/06/2020,9092774307,13.89,AMZNMKTPLACE AMAZON.CO
OXFORDSHIRE CC,"CHILDRENS, YOUNG PEOPLE AND FAMILIES",EYNSHAM,CATERING PROVISIONS,08/06/2020,9092774527,22.43,CO-OPERATIVE FOOD
OXFORDSHIRE CC,ENVIRONMENT AND ECONOMY,EET SERVICE,IT SERVICES,08/06/2020,9092774541,"3,632.37","LIVEPERSON, INC"
OXFORDSHIRE CC,"CHILDRENS, YOUNG PEOPLE AND FAMILIES","	LEAVING CARE NORTH",BIRTHDAY ALLOWANCE,08/06/2020,9092774543,44,WM MORRISONS STORE
OXFORDSHIRE CC,"CHILDRENS, YOUNG PEOPLE AND FAMILIES",EDT,HIRE OF ACCOMMODATION AND FACILITIES,08/06/2020,9092774547,200,THAMES RIVIERA HOTEL
OXFORDSHIRE CC,CORPORATE CORE,INCOME TEAM,PAYMENT TO GOVERNMENT DEPARTMENTS,08/06/2020,9092774549,1.5,WWW.GOV.UK
OXFORDSHIRE CC,"CHILDRENS, YOUNG PEOPLE AND FAMILIES",UASC 16&17,TELEPHONE - EQUIPMENT,08/06/2020,9092774035,20,SMARTY CO UK
OXFORDSHIRE CC,"CHILDRENS, YOUNG PEOPLE AND FAMILIES","	HOME SUPPORT",MATERIALS,08/06/2020,9092774043,22.47,AMZNMKTPLACE AMAZON.CO
OXFORDSHIRE CC,"CHILDRENS, YOUNG PEOPLE AND FAMILIES",THAME E&A HOME,OTHER SALES,08/06/2020,9092774053,4.77,RECTORY FARM
OXFORDSHIRE CC,"CHILDRENS, YOUNG PEOPLE AND FAMILIES","	LOOKED AFTER NORTH",PURCHASE OF IT EQUIPMENT,08/06/2020,9092774557,256.08,HP INC UK LIMITED
OXFORDSHIRE CC,"CHILDRENS, YOUNG PEOPLE AND FAMILIES",EYNSHAM,FURNITURE,08/06/2020,9092774569,80,DUNELM
OXFORDSHIRE CC,"CHILDRENS, YOUNG PEOPLE AND FAMILIES",THAME E&A HOME,CATERING PROVISIONS,08/06/2020,9092773865,24,ASDA STORE 4442
OXFORDSHIRE CC,"CHILDRENS, YOUNG PEOPLE AND FAMILIES",LEGAL BUDGET,PAYMENT TO GOVERNMENT DEPARTMENTS,08/06/2020,9092773867,155,OXFORD291OFFICE
OXFORDSHIRE CC,"CHILDRENS, YOUNG PEOPLE AND FAMILIES",DIDCOT MOVE-ON HOME,CATERING PROVISIONS,08/06/2020,9092773871,3.4,SAINSBURYS SACAT 0730
OXFORDSHIRE CC,"CHILDRENS, YOUNG PEOPLE AND FAMILIES",DIDCOT MOVE-ON HOME,CATERING PROVISIONS,08/06/2020,9092773873,28.38,SAINSBURYS SACAT 2067
OXFORDSHIRE CC,"CHILDRENS, YOUNG PEOPLE AND FAMILIES",DIDCOT MOVE-ON HOME,CATERING PROVISIONS,08/06/2020,9092773875,10.2,SAINSBURYS SACAT 2067
OXFORDSHIRE CC,"CHILDRENS, YOUNG PEOPLE AND FAMILIES",DIDCOT MOVE-ON HOME,CATERING PROVISIONS,08/06/2020,9092773879,19.8,SAINSBURYS SACAT 2067
OXFORDSHIRE CC,SOCIAL AND COMMUNITY SERVICES,COMMENTS&INFORMATION,EQUIPMENT,08/06/2020,9092774059,19.96,BUYITDIRECT CO UK
OXFORDSHIRE CC,SOCIAL AND COMMUNITY SERVICES,CSS - OXFORD,EQUIPMENT,08/06/2020,9092774153,52.99,AMAZON.CO.UK Z314L2105
OXFORDSHIRE CC,ENVIRONMENT AND ECONOMY,"	COUNTY HALL",MATERIALS,08/06/2020,9092774157,2.4,UPS LTD
OXFORDSHIRE CC,"CHILDRENS, YOUNG PEOPLE AND FAMILIES",CSC COVID-19,"SUPPLIES, STATIONERY AND MATERIALS",08/06/2020,9092774171,206.54,AMZNMKTPLACE
OXFORDSHIRE CC,"CHILDRENS, YOUNG PEOPLE AND FAMILIES",CSC COVID-19,"SUPPLIES, STATIONERY AND MATERIALS",08/06/2020,9092774173,69.97,AMZNMKTPLACE
OXFORDSHIRE CC,"CHILDRENS, YOUNG PEOPLE AND FAMILIES",CSC COVID-19,"SUPPLIES, STATIONERY AND MATERIALS",08/06/2020,9092774175,219.56,AMZNMKTPLACE
OXFORDSHIRE CC,"CHILDRENS, YOUNG PEOPLE AND FAMILIES",WITNEY,CATERING PROVISIONS,08/06/2020,9092773883,82.05,SAINSBURYS SACAT 0632
OXFORDSHIRE CC,"CHILDRENS, YOUNG PEOPLE AND FAMILIES",UASC POST 18,OTHER EXPENSES,08/06/2020,9092774091,77.93,ARGOS LTD
OXFORDSHIRE CC,"CHILDRENS, YOUNG PEOPLE AND FAMILIES",UASC POST 18,OTHER EXPENSES,08/06/2020,9092774093,249.99,ARGOS LTD
OXFORDSHIRE CC,"CHILDRENS, YOUNG PEOPLE AND FAMILIES",UASC POST 18,OTHER EXPENSES,08/06/2020,9092774097,315.95,ARGOS LTD
OXFORDSHIRE CC,"CHILDRENS, YOUNG PEOPLE AND FAMILIES",HOUSE PROJECT,CATERING PROVISIONS,08/06/2020,9092774099,30,CO-OPERATIVE FOOD
OXFORDSHIRE CC,ENVIRONMENT AND ECONOMY,"	NAT TRAILS GENERAL",MATERIALS,08/06/2020,9092773743,11.16,AMZNMKTPLACE
OXFORDSHIRE CC,ENVIRONMENT AND ECONOMY,"	COUNTY PRINT FINSHRS",MATERIALS,08/06/2020,9092773747,537,AMZNMKTPLACE AMAZON.CO
OXFORDSHIRE CC,ENVIRONMENT AND ECONOMY,"	COUNTY PRINT FINSHRS",MATERIALS,08/06/2020,9092773749,123.57,AMAZON.CO.UK O72LK0Y35
OXFORDSHIRE CC,"CHILDRENS, YOUNG PEOPLE AND FAMILIES","	LOOKED AFTER SOUTH",POSTAGE AND DELIVERY,08/06/2020,9092773753,63.5,POST OFFICE COUNTER
OXFORDSHIRE CC,SOCIAL AND COMMUNITY SERVICES,CSS - ABINGDON,CATERING PROVISIONS,08/06/2020,9092773759,15.49,WAITROSE 211
OXFORDSHIRE CC,"CHILDRENS, YOUNG PEOPLE AND FAMILIES",UASC 16&17,OTHER EXPENSES,08/06/2020,9092773763,28.44,AMZNMKTPLACE
OXFORDSHIRE CC,"CHILDRENS, YOUNG PEOPLE AND FAMILIES","	DISABILITIES TEAM-C",OTHER EXPENSES,08/06/2020,9092773913,272.99,CURRYS ONLINE
OXFORDSHIRE CC,SOCIAL AND COMMUNITY SERVICES,CSS BICESTER,MATERIALS,08/06/2020,9092773925,4.94,AMZNMKTPLACE
OXFORDSHIRE CC,"CHILDRENS, YOUNG PEOPLE AND FAMILIES",NTH FAM SUPRT-BCSTR,PAYMENT TO GOVERNMENT DEPARTMENTS,08/06/2020,9092773929,14,GEN REGISTER OFFICE
OXFORDSHIRE CC,ENVIRONMENT AND ECONOMY,OMNICAV,DRUGS AND MEDICAL SUPPLIES,08/06/2020,9092773933,78.3,WWW.MEDESIGN.CO.UK
OXFORDSHIRE CC,"CHILDRENS, YOUNG PEOPLE AND FAMILIES",NTH EARLY HELP-WITNY,MATERIALS,08/06/2020,9092774333,31.95,AMAZON.CO.UK JR8AH0QI5
OXFORDSHIRE CC,ENVIRONMENT AND ECONOMY,"	FLEET OPERATIONS",ROAD FUND LICENCES AND MOTS,05/06/2020,7205314234,267.5,DVLA VEHICLE TAX
OXFORDSHIRE CC,ENVIRONMENT AND ECONOMY,"	FLEET OPERATIONS",ROAD FUND LICENCES AND MOTS,05/06/2020,7205314236,267.5,DVLA VEHICLE TAX
OXFORDSHIRE CC,"CHILDRENS, YOUNG PEOPLE AND FAMILIES","	FAM SUPP CITY 1",MATERIALS,05/06/2020,7205314300,29.48,AMZNMKTPLACE
OXFORDSHIRE CC,"CHILDRENS, YOUNG PEOPLE AND FAMILIES",THAME E&A HOME,CATERING PROVISIONS,05/06/2020,7205313648,31.42,TESCO STORES 4480
OXFORDSHIRE CC,"CHILDRENS, YOUNG PEOPLE AND FAMILIES",THAME E&A HOME,MATERIALS,05/06/2020,7205313656,9,POUNDLAND LTD 1505
OXFORDSHIRE CC,"CHILDRENS, YOUNG PEOPLE AND FAMILIES",CNTL EARLY HELP-RHIL,"SUPPLIES, STATIONERY AND MATERIALS",05/06/2020,7205313368,6.22,AMAZON.CO.UK CX8Y70OT5
OXFORDSHIRE CC,"CHILDRENS, YOUNG PEOPLE AND FAMILIES","	FAM SUPP CITY 1",MATERIALS,05/06/2020,7205313376,131.98,PAYPAL  CARPETKING EBA
OXFORDSHIRE CC,"CHILDRENS, YOUNG PEOPLE AND FAMILIES",CSC COVID-19,OTHER SERVICES,05/06/2020,7205313380,20,TESCO ONLINE
OXFORDSHIRE CC,CORPORATE CORE,"	ORGANISATIONAL DEV'T",OTHER TRAINING COURSES AND QUALIFICATION,05/06/2020,7205314026,390,WWW.PMGLTD.CO.UK
OXFORDSHIRE CC,"CHILDRENS, YOUNG PEOPLE AND FAMILIES","	RESIDENTIAL STRATEGY",CATERING PROVISIONS,05/06/2020,7205314062,24.64,ASDA STORES 4920
OXFORDSHIRE CC,"CHILDRENS, YOUNG PEOPLE AND FAMILIES","	RESIDENTIAL STRATEGY",HARDWARE AND CROCKERY,05/06/2020,7205314068,255,B & Q 1176
OXFORDSHIRE CC,ENTERPRISEVC,,CAR LEASING - PRIVATE RENTALS,05/06/2020,7205314566,86.03,ENTERPRISE RENT-A-CAR
OXFORDSHIRE CC,ENTERPRISEVC,,CAR LEASING - PRIVATE RENTALS,05/06/2020,7205314570,411.6,ENTERPRISE RENT-A-CAR
OXFORDSHIRE CC,ENTERPRISEVC,,CAR LEASING - PRIVATE RENTALS,05/06/2020,7205314574,415.97,ENTERPRISE RENT-A-CAR
OXFORDSHIRE CC,ENTERPRISEVC,,CAR LEASING - PRIVATE RENTALS,05/06/2020,7205314580,415.97,ENTERPRISE RENT-A-CAR
OXFORDSHIRE CC,ENTERPRISEVC,,CAR LEASING - PRIVATE RENTALS,05/06/2020,7205314588,411.6,ENTERPRISE RENT-A-CAR
OXFORDSHIRE CC,ENTERPRISEVC,,CAR LEASING - PRIVATE RENTALS,05/06/2020,7205314596,411.6,ENTERPRISE RENT-A-CAR
OXFORDSHIRE CC,ENTERPRISEVC,,CAR LEASING - PRIVATE RENTALS,05/06/2020,7205314602,415.97,ENTERPRISE RENT-A-CAR
OXFORDSHIRE CC,ENTERPRISEVC,,CAR LEASING - PRIVATE RENTALS,05/06/2020,7205314606,488.54,ENTERPRISE RENT-A-CAR
OXFORDSHIRE CC,"CHILDRENS, YOUNG PEOPLE AND FAMILIES",UASC POST 18,"SUPPLIES, STATIONERY AND MATERIALS",05/06/2020,7205313784,241.94,WWW.JOHNLEWIS.COM
OXFORDSHIRE CC,"CHILDRENS, YOUNG PEOPLE AND FAMILIES","	LEAVING CARE SOUTH",PAYMENTS TO VOLUNTARY BODIES,05/06/2020,7205314390,409.04,ALLPAY  SOVEREIGN HOUS
OXFORDSHIRE CC,"CHILDRENS, YOUNG PEOPLE AND FAMILIES",EYNSHAM,CLOTHING AND UNIFORMS,05/06/2020,7205314398,7.79,ERIC
OXFORDSHIRE CC,"CHILDRENS, YOUNG PEOPLE AND FAMILIES",EYNSHAM,CATERING PROVISIONS,05/06/2020,7205314402,97.46,ASDA STORES 4920
OXFORDSHIRE CC,ENVIRONMENT AND ECONOMY,SIP MANAGEMENT,EDUCATIONAL AND VOCATIONAL TRAINING ,05/06/2020,7205314440,270,WESTMINSTER INSIGHT
OXFORDSHIRE CC,"CHILDRENS, YOUNG PEOPLE AND FAMILIES",THAME E&A HOME,CATERING PROVISIONS,05/06/2020,7205314448,12.4,SAINSBURYS 2096
OXFORDSHIRE CC,"CHILDRENS, YOUNG PEOPLE AND FAMILIES",THAME E&A HOME,CATERING PROVISIONS,05/06/2020,7205314452,2.99,MARTIN MCCOLL
OXFORDSHIRE CC,"CHILDRENS, YOUNG PEOPLE AND FAMILIES",DEPUTY DIRECTOR &MAN,EDUCATIONAL AND VOCATIONAL TRAINING ,05/06/2020,7205314468,396.78,GOVERNMENT EVENTS
OXFORDSHIRE CC,ENVIRONMENT AND ECONOMY,HARD FM,HARDWARE AND CROCKERY,05/06/2020,7205313304,35.05,HOMEBASE LTD 091
OXFORDSHIRE CC,ENVIRONMENT AND ECONOMY,HARD FM,HARDWARE AND CROCKERY,05/06/2020,7205313308,74.93,B & Q 1062
OXFORDSHIRE CC,ENVIRONMENT AND ECONOMY,HARD FM,HARDWARE AND CROCKERY,05/06/2020,7205313310,56.92,WICKES BANBURY
OXFORDSHIRE CC,"CHILDRENS, YOUNG PEOPLE AND FAMILIES",ICT INFORMATION,EDUCATIONAL AND VOCATIONAL TRAINING ,05/06/2020,7205313312,11,OXFORDSHIRE CC WEB1
OXFORDSHIRE CC,"CHILDRENS, YOUNG PEOPLE AND FAMILIES",ICT INFORMATION,EDUCATIONAL AND VOCATIONAL TRAINING ,05/06/2020,7205313320,11,OXFORDSHIRE CC WEB1
OXFORDSHIRE CC,"CHILDRENS, YOUNG PEOPLE AND FAMILIES",ICT INFORMATION,EDUCATIONAL AND VOCATIONAL TRAINING ,05/06/2020,7205313324,11,OXFORDSHIRE CC WEB1
OXFORDSHIRE CC,"CHILDRENS, YOUNG PEOPLE AND FAMILIES",ICT INFORMATION,EDUCATIONAL AND VOCATIONAL TRAINING ,05/06/2020,7205313328,-11,OXFORDSHIRE CC MOTO1
OXFORDSHIRE CC,"CHILDRENS, YOUNG PEOPLE AND FAMILIES",ICT INFORMATION,EDUCATIONAL AND VOCATIONAL TRAINING ,05/06/2020,7205313330,-11,OXFORDSHIRE CC MOTO1
OXFORDSHIRE CC,"CHILDRENS, YOUNG PEOPLE AND FAMILIES",THAME E&A HOME,VEHICLE FUEL,05/06/2020,7205313336,3.39,THAME BP SF CONNECT
OXFORDSHIRE CC,"CHILDRENS, YOUNG PEOPLE AND FAMILIES",THAME E&A HOME,CATERING PROVISIONS,05/06/2020,7205313338,11.35,SAINSBURYS 2096
OXFORDSHIRE CC,"CHILDRENS, YOUNG PEOPLE AND FAMILIES",THAME E&A HOME,MATERIALS,05/06/2020,7205313454,7.99,AMAZON PRIME 8J7L26MB5
OXFORDSHIRE CC,"CHILDRENS, YOUNG PEOPLE AND FAMILIES",DIDCOT MOVE-ON HOME,CATERING PROVISIONS,05/06/2020,7205313468,18.54,SAINSBURYS SACAT 2067
OXFORDSHIRE CC,SOCIAL AND COMMUNITY SERVICES,FINDS LIAISON OFFCER,MATERIALS,05/06/2020,7205314080,-179.95,JESSOPSMOTO
OXFORDSHIRE CC,SOCIAL AND COMMUNITY SERVICES,"	MUSEUMS COLLECTIONS",CATERING PROVISIONS,05/06/2020,7205313492,1.56,MILK&MORE
OXFORDSHIRE CC,SOCIAL AND COMMUNITY SERVICES,CSS WITNEY,MATERIALS,05/06/2020,7205314156,9.99,AMZNMKTPLACE AMAZON.CO
OXFORDSHIRE CC,SOCIAL AND COMMUNITY SERVICES,CSS WITNEY,MATERIALS,05/06/2020,7205314164,25,AMAZON.CO.UK EX0M853U5
OXFORDSHIRE CC,SOCIAL AND COMMUNITY SERVICES,CSS WITNEY,MATERIALS,05/06/2020,7205314166,10.5,AMAZON.CO.UK RP6A44HO5
OXFORDSHIRE CC,SOCIAL AND COMMUNITY SERVICES,CSS WITNEY,MATERIALS,05/06/2020,7205314170,6.3,AMAZON.CO.UK 2Q0536YQ5
OXFORDSHIRE CC,SOCIAL AND COMMUNITY SERVICES,CSS WITNEY,MATERIALS,05/06/2020,7205314174,32.94,AMZNMKTPLACE
OXFORDSHIRE CC,SOCIAL AND COMMUNITY SERVICES,CSS BICESTER,MATERIALS,05/06/2020,7205313528,15.98,AMZNMKTPLACE
OXFORDSHIRE CC,SOCIAL AND COMMUNITY SERVICES,CSS BICESTER,HARDWARE AND CROCKERY,05/06/2020,7205313536,34.6,HOMEBASE
OXFORDSHIRE CC,ENVIRONMENT AND ECONOMY,"	MOUNT HOUSE",MATERIALS,05/06/2020,7205313574,9,AMAZON.CO.UK TK0UI6485
OXFORDSHIRE CC,"CHILDRENS, YOUNG PEOPLE AND FAMILIES","	LEAVING CARE NORTH",CLOTHING AND UNIFORMS,05/06/2020,7205313580,37.99,SPORTSDIRECT.COM
OXFORDSHIRE CC,"CHILDRENS, YOUNG PEOPLE AND FAMILIES",EYNSHAM,MATERIALS,05/06/2020,7205314538,15.46,AMAZON.CO.UK H01FW3GB5
OXFORDSHIRE CC,CORPORATE CORE,,"SUPPLIES, STATIONERY AND MATERIALS",05/06/2020,7205314548,110.5,LYRECO UK LTD
OXFORDSHIRE CC,CORPORATE CORE,,"SUPPLIES, STATIONERY AND MATERIALS",05/06/2020,7205314550,31.45,LYRECO UK LTD
OXFORDSHIRE CC,CORPORATE CORE,,"SUPPLIES, STATIONERY AND MATERIALS",05/06/2020,7205314556,87.28,LYRECO UK LTD
OXFORDSHIRE CC,CORPORATE CORE,,"SUPPLIES, STATIONERY AND MATERIALS",05/06/2020,7205314562,-21.68,LYRECO UK LTD
OXFORDSHIRE CC,"CHILDRENS, YOUNG PEOPLE AND FAMILIES",KINGFISHER,EDUCATIONAL AND VOCATIONAL TRAINING ,05/06/2020,7205313352,29,OFCOURSE / NEW SKILLS
OXFORDSHIRE CC,"CHILDRENS, YOUNG PEOPLE AND FAMILIES","	40 THE MOORS",CATERING,05/06/2020,7205313360,39.67,WWW.PAPAJOHNS.CO.UK
OXFORDSHIRE CC,SOCIAL AND COMMUNITY SERVICES,"	KINGFISHER",CATERING PROVISIONS,05/06/2020,7205313696,25.22,ALDI STORES 775-142
OXFORDSHIRE CC,"CHILDRENS, YOUNG PEOPLE AND FAMILIES",NTH EARLY HELP-WITNY,HIRE OF EQUIPMENT,05/06/2020,7205313192,150,K J MILLARD PLANT
OXFORDSHIRE CC,"CHILDRENS, YOUNG PEOPLE AND FAMILIES",THAME E&A HOME,MATERIALS,05/06/2020,7205313212,5.23,AMAZON.CO.UK HU5SE9N15
OXFORDSHIRE CC,"CHILDRENS, YOUNG PEOPLE AND FAMILIES",CSS - ABINGDON,CATERING PROVISIONS,05/06/2020,7205313754,11.2,TESCO STORES 2008
OXFORDSHIRE CC,"CHILDRENS, YOUNG PEOPLE AND FAMILIES",CNTL EARLY HELP-BRTN,MATERIALS,05/06/2020,7205313766,19.38,AMZNMKTPLACE
OXFORDSHIRE CC,"CHILDRENS, YOUNG PEOPLE AND FAMILIES",CNTL EARLY HELP-BRTN,MATERIALS,05/06/2020,7205313774,11.9,AMZNMKTPLACE
OXFORDSHIRE CC,"CHILDRENS, YOUNG PEOPLE AND FAMILIES","	LOOKED AFTER CITY 2",OTHER TRANSPORT ARRANGEMENTS,05/06/2020,7205314370,45,IZ  ROYAL CARS OXFORD
OXFORDSHIRE CC,ENVIRONMENT AND ECONOMY,"	NAT TRAILS GENERAL",VEHICLE FUEL,05/06/2020,7205313292,58.41,SAINSBURYS OPT 0184
OXFORDSHIRE CC,SOCIAL AND COMMUNITY SERVICES,CSS - ABINGDON,MATERIALS,05/06/2020,7205313296,3.96,HOME BARGAINS
OXFORDSHIRE CC,"CHILDRENS, YOUNG PEOPLE AND FAMILIES","	AAC EQUIPMENT",PURCHASE OF IT EQUIPMENT,04/06/2020,7203104076,100,AMAZON.CO.UK JU2HB80Z5
OXFORDSHIRE CC,"CHILDRENS, YOUNG PEOPLE AND FAMILIES","	AAC EQUIPMENT",PURCHASE OF IT EQUIPMENT,04/06/2020,7203104080,50,AMAZON.CO.UK Q28Q26XH5
OXFORDSHIRE CC,"CHILDRENS, YOUNG PEOPLE AND FAMILIES","	AAC EQUIPMENT",PURCHASE OF IT EQUIPMENT,04/06/2020,7203104088,50,AMAZON.CO.UK SR2W33MW5
OXFORDSHIRE CC,"CHILDRENS, YOUNG PEOPLE AND FAMILIES",CSS WALLINGFORD,CATERING PROVISIONS,04/06/2020,7203101714,3.75,WAITROSE 675
OXFORDSHIRE CC,"CHILDRENS, YOUNG PEOPLE AND FAMILIES",THAME E&A HOME,MATERIALS,04/06/2020,7203101724,59.94,AMZNMKTPLACE
OXFORDSHIRE CC,"CHILDRENS, YOUNG PEOPLE AND FAMILIES",THAME E&A HOME,MATERIALS,04/06/2020,7203101740,109.99,AMZNMKTPLACE AMAZON.CO
OXFORDSHIRE CC,"CHILDRENS, YOUNG PEOPLE AND FAMILIES",THAME E&A HOME,MATERIALS,04/06/2020,7203101748,26.85,AMAZON.CO.UK OO7WF1QE5
OXFORDSHIRE CC,SOCIAL AND COMMUNITY SERVICES,LOOKED AFTER NORTH,MATERIALS,04/06/2020,7203103328,9.99,CURRYS ONLINE
OXFORDSHIRE CC,SOCIAL AND COMMUNITY SERVICES,LOOKED AFTER NORTH,MATERIALS,04/06/2020,7203103340,493.98,CURRYS ONLINE
OXFORDSHIRE CC,SOCIAL AND COMMUNITY SERVICES,LOOKED AFTER NORTH,MATERIALS,04/06/2020,7203103356,52.99,SPORTSDIRECT.COM
OXFORDSHIRE CC,"CHILDRENS, YOUNG PEOPLE AND FAMILIES","	AAC EQUIPMENT",PURCHASE OF IT EQUIPMENT,04/06/2020,7203104094,100,AMAZON.CO.UK WZ00Z7YW5
OXFORDSHIRE CC,"CHILDRENS, YOUNG PEOPLE AND FAMILIES","	AAC EQUIPMENT",PURCHASE OF IT EQUIPMENT,04/06/2020,7203104098,25,AMAZON.CO.UK 6R7DP1RX5
OXFORDSHIRE CC,ENVIRONMENT AND ECONOMY,"	E&I STAFF",EDUCATIONAL AND VOCATIONAL TRAINING ,04/06/2020,7203104196,358.8,THE KNOWLEDGE ACADEMY
OXFORDSHIRE CC,ENVIRONMENT AND ECONOMY,"	NAT TRAILS GENERAL",VEHICLE FUEL,04/06/2020,7203101960,72.74,ALLSTAR BUSINESS SOLUT
OXFORDSHIRE CC,"CHILDRENS, YOUNG PEOPLE AND FAMILIES",WITNEY,MATERIALS,04/06/2020,7203102028,-7.99,AMAZON PRIME
OXFORDSHIRE CC,SOCIAL AND COMMUNITY SERVICES,CSS - ABINGDON,MATERIALS,04/06/2020,7203102104,26,WILKO RETAIL LIMITED
OXFORDSHIRE CC,SOCIAL AND COMMUNITY SERVICES,CSS - ABINGDON,MATERIALS,04/06/2020,7203102118,4,POUNDLAND LTD
OXFORDSHIRE CC,ENVIRONMENT AND ECONOMY,HARD FM,HARDWARE AND CROCKERY,04/06/2020,7203102132,202.92,SCREWFIX DIRECT
OXFORDSHIRE CC,ENVIRONMENT AND ECONOMY,HARD FM,MATERIALS,04/06/2020,7203102156,169.38,PAYPAL  KJPLUMBINGF
OXFORDSHIRE CC,ENVIRONMENT AND ECONOMY,HARD FM,HARDWARE AND CROCKERY,04/06/2020,7203102164,31.48,SCREWFIX DIRECT
OXFORDSHIRE CC,ENVIRONMENT AND ECONOMY,HARD FM,HARDWARE AND CROCKERY,04/06/2020,7203102176,6.99,SCREWFIX DIRECT
OXFORDSHIRE CC,ENVIRONMENT AND ECONOMY,HARD FM,HARDWARE AND CROCKERY,04/06/2020,7203102200,84.7,WICKES OXFORD
OXFORDSHIRE CC,SOCIAL AND COMMUNITY SERVICES,CSS - OXFORD,HARDWARE AND CROCKERY,04/06/2020,7203102234,113.45,HOMEBASE LTD 091
OXFORDSHIRE CC,"CHILDRENS, YOUNG PEOPLE AND FAMILIES","	40 THE MOORS",DRUGS AND MEDICAL SUPPLIES,04/06/2020,7203102256,3.9,LLOYDS PHARMACY
OXFORDSHIRE CC,"CHILDRENS, YOUNG PEOPLE AND FAMILIES","	LOOKED AFTER CITY 1",MATERIALS,04/06/2020,7203102980,-19.99,WWW.STUDIO.CO.UK
OXFORDSHIRE CC,"CHILDRENS, YOUNG PEOPLE AND FAMILIES","	RIVERSIDE CENTRE",MATERIALS,04/06/2020,7203103058,35.78,AMZNMKTPLACE AMAZON.CO
OXFORDSHIRE CC,"CHILDRENS, YOUNG PEOPLE AND FAMILIES","	LEAVING CARE CITY 2",FURNITURE,04/06/2020,7203103108,656.96,CURRYS ONLINE
OXFORDSHIRE CC,"CHILDRENS, YOUNG PEOPLE AND FAMILIES",KINGFISHER,VEHICLE FUEL,04/06/2020,7203103962,59.79,BP MOTO DONCASTER F/ST
OXFORDSHIRE CC,"CHILDRENS, YOUNG PEOPLE AND FAMILIES",FAMILY SUPPORT 2,MATERIALS,04/06/2020,7203104728,379.98,ARGOS LTD
OXFORDSHIRE CC,"CHILDRENS, YOUNG PEOPLE AND FAMILIES",EYNSHAM,MATERIALS,04/06/2020,7203104738,3.57,AMAZON.CO.UK Z276K99T5
OXFORDSHIRE CC,CORPORATE CORE,,"SUPPLIES, STATIONERY AND MATERIALS",04/06/2020,7203104744,48,LYRECO UK LTD
OXFORDSHIRE CC,CORPORATE CORE,,"SUPPLIES, STATIONERY AND MATERIALS",04/06/2020,7203104748,25.39,LYRECO UK LTD
OXFORDSHIRE CC,CORPORATE CORE,,"SUPPLIES, STATIONERY AND MATERIALS",04/06/2020,7203104752,11.93,LYRECO UK LTD
OXFORDSHIRE CC,CORPORATE CORE,,"SUPPLIES, STATIONERY AND MATERIALS",04/06/2020,7203104754,129.48,LYRECO UK LTD
OXFORDSHIRE CC,"CHILDRENS, YOUNG PEOPLE AND FAMILIES","	RESIDENTIAL STRATEGY",CATERING PROVISIONS,04/06/2020,7203103226,14,TESCO STORE 2788
OXFORDSHIRE CC,"CHILDRENS, YOUNG PEOPLE AND FAMILIES",THAME E&A HOME,OTHER TRANSPORT ARRANGEMENTS,04/06/2020,7203103252,3.7,BUCKINGHAMSHIRE COUNTY
OXFORDSHIRE CC,"CHILDRENS, YOUNG PEOPLE AND FAMILIES",CSS - ABINGDON,GENERAL MAINTENANCE,04/06/2020,7203103266,32.03,SYDENHAMS LTD
OXFORDSHIRE CC,"CHILDRENS, YOUNG PEOPLE AND FAMILIES",CSS - ABINGDON,PREMISES REPAIRS,04/06/2020,7203103272,19.35,B & Q 1156
OXFORDSHIRE CC,"CHILDRENS, YOUNG PEOPLE AND FAMILIES",CSC COVID-19,"SUPPLIES, STATIONERY AND MATERIALS",04/06/2020,7203103282,14.99,AMAZON.CO.UK VW9Z28BL5
OXFORDSHIRE CC,"CHILDRENS, YOUNG PEOPLE AND FAMILIES","	AAC EQUIPMENT",PURCHASE OF IT EQUIPMENT,04/06/2020,7203104066,25,AMAZON.CO.UK FF4787G25
OXFORDSHIRE CC,"CHILDRENS, YOUNG PEOPLE AND FAMILIES",DIDCOT MOVE-ON HOME,CATERING PROVISIONS,04/06/2020,7203104248,1.2,SAINSBURYS SACAT 2067
OXFORDSHIRE CC,"CHILDRENS, YOUNG PEOPLE AND FAMILIES",DIDCOT MOVE-ON HOME,CATERING PROVISIONS,04/06/2020,7203104250,22.45,SAINSBURYS SACAT 2067
OXFORDSHIRE CC,ENVIRONMENT AND ECONOMY,"	TVERC",PAYMENT TO GOVERNMENT DEPARTMENTS,04/06/2020,7203104304,3,LAND REGISTRY
OXFORDSHIRE CC,SOCIAL AND COMMUNITY SERVICES,CSS BICESTER,MATERIALS,04/06/2020,7203102620,17.94,AMZNMKTPLACE
OXFORDSHIRE CC,SOCIAL AND COMMUNITY SERVICES,CSS BICESTER,MATERIALS,04/06/2020,7203102646,16.99,AMZNMKTPLACE
OXFORDSHIRE CC,"CHILDRENS, YOUNG PEOPLE AND FAMILIES",CSC COVID-19,MATERIALS,04/06/2020,7203102674,20,TESCO ONLINE
OXFORDSHIRE CC,CORPORATE CORE,"	COMMUNICATIONS",HIRED AND CONTRACTED SERVICES,04/06/2020,7203102694,21.98,CANVA  02710-3554110
OXFORDSHIRE CC,ENVIRONMENT AND ECONOMY,"	MOUNT HOUSE",MATERIALS,04/06/2020,7203102722,9,AMAZON.CO.UK HP97Z4OP5
OXFORDSHIRE CC,SOCIAL AND COMMUNITY SERVICES,"	HISTORY SERVICE","BOOKS, DVDS AND CDS",04/06/2020,7203102782,45,AMAZON.CO.UK 1S6ZL1TR5
OXFORDSHIRE CC,ENVIRONMENT AND ECONOMY,"	ROW MAINT",VEHICLE FUEL,04/06/2020,7203103540,78,TESCO PAY AT PUMP 2488
OXFORDSHIRE CC,"CHILDRENS, YOUNG PEOPLE AND FAMILIES","	HEARING IMPAIRMENT",DISABILITY AIDS AND EQUIPMENT,04/06/2020,7203103550,5.5,SAINSBURYS SACAT 0631
OXFORDSHIRE CC,ENVIRONMENT AND ECONOMY,"	TVERC",PAYMENT TO GOVERNMENT DEPARTMENTS,04/06/2020,7203104312,3,LAND REGISTRY
OXFORDSHIRE CC,"CHILDRENS, YOUNG PEOPLE AND FAMILIES","	LOOKED AFTER CITY 2",CLOTHING AND UNIFORMS,04/06/2020,7203104358,44.5,PAYPAL  ASDASTORESL
OXFORDSHIRE CC,"CHILDRENS, YOUNG PEOPLE AND FAMILIES",EYNSHAM,MATERIALS,04/06/2020,7203104390,40.06,AMAZON.CO.UK N500O2VK5
OXFORDSHIRE CC,"CHILDRENS, YOUNG PEOPLE AND FAMILIES",EYNSHAM,CATERING PROVISIONS,04/06/2020,7203104540,4,WILKO RETAIL LIMITED
OXFORDSHIRE CC,"CHILDRENS, YOUNG PEOPLE AND FAMILIES","	LEAVING CARE NORTH",OTHER TRANSPORT ARRANGEMENTS,04/06/2020,7203104586,15.55,PAYPAL  TRAINLINE
OXFORDSHIRE CC,CORPORATE CORE,"	LEGAL SERVICES",EDUCATIONAL AND VOCATIONAL TRAINING ,04/06/2020,7203103782,79.5,CHARTERED INSTITUTE OF
OXFORDSHIRE CC,"CHILDRENS, YOUNG PEOPLE AND FAMILIES",THAME E&A HOME,CATERING PROVISIONS,04/06/2020,7203103806,19.13,TESCO STORES 4377
OXFORDSHIRE CC,"CHILDRENS, YOUNG PEOPLE AND FAMILIES",EYNSHAM,FURNITURE,04/06/2020,7203101832,4,WILKO RETAIL LIMITED
OXFORDSHIRE CC,"CHILDRENS, YOUNG PEOPLE AND FAMILIES",EYNSHAM,FURNITURE,04/06/2020,7203101842,5.98,HOMESENSE
OXFORDSHIRE CC,"CHILDRENS, YOUNG PEOPLE AND FAMILIES",WITNEY,CATERING PROVISIONS,04/06/2020,7203101858,7.4,CO-OP GROUP 070582
OXFORDSHIRE CC,"CHILDRENS, YOUNG PEOPLE AND FAMILIES",WITNEY,CATERING PROVISIONS,04/06/2020,7203101882,36.45,CO-OP GROUP 070582
OXFORDSHIRE CC,"CHILDRENS, YOUNG PEOPLE AND FAMILIES",THAME E&A HOME,MATERIALS,04/06/2020,7203101752,13.96,AMZNMKTPLACE
OXFORDSHIRE CC,"CHILDRENS, YOUNG PEOPLE AND FAMILIES",THAME E&A HOME,MATERIALS,04/06/2020,7203101764,8.99,AMZNMKTPLACE
OXFORDSHIRE CC,"CHILDRENS, YOUNG PEOPLE AND FAMILIES",THAME E&A HOME,MATERIALS,04/06/2020,7203101772,10.99,AMZNMKTPLACE
OXFORDSHIRE CC,"CHILDRENS, YOUNG PEOPLE AND FAMILIES",THAME E&A HOME,MATERIALS,04/06/2020,7203101776,9.12,AMZNMKTPLACE
OXFORDSHIRE CC,"CHILDRENS, YOUNG PEOPLE AND FAMILIES",THAME E&A HOME,CATERING PROVISIONS,04/06/2020,7203101780,36,ASDA GEORGE COM LEEDS
OXFORDSHIRE CC,"CHILDRENS, YOUNG PEOPLE AND FAMILIES",ATV ADOPTION WOODLEY,POSTAGE AND DELIVERY,04/06/2020,7203101826,16.74,POST OFFICE COUNTER
OXFORDSHIRE CC,"CHILDRENS, YOUNG PEOPLE AND FAMILIES",EYNSHAM,CATERING PROVISIONS,04/06/2020,7203102422,16.9,CO-OPERATIVE FOOD
OXFORDSHIRE CC,"CHILDRENS, YOUNG PEOPLE AND FAMILIES",NTH EARLY HELP-BNRBY,MATERIALS,04/06/2020,7203102438,70.32,AMAZON.CO.UK JI20S0RT5
OXFORDSHIRE CC,"CHILDRENS, YOUNG PEOPLE AND FAMILIES",CSC COVID-19,NON-STAFF SUBSISTENCE AND EXPENSES,04/06/2020,7203102456,73.9,ARGOS LTD
OXFORDSHIRE CC,"CHILDRENS, YOUNG PEOPLE AND FAMILIES","	DISABILITIES TEAM-N",MATERIALS,04/06/2020,7203102538,37.93,ARGOS LTD
OXFORDSHIRE CC,CORPORATE CORE,LIBRARY COLLECTIONS,"NEWSPAPERS, PERIODICALS AND PUBLICATIONS",04/06/2020,7203102570,"2,186.87",BOLINDA PUBLISHING
OXFORDSHIRE CC,"CHILDRENS, YOUNG PEOPLE AND FAMILIES",CSC COVID-19,MATERIALS,04/06/2020,7203102600,45,TESCO ONLINE
OXFORDSHIRE CC,,,,04/06/2020,7203103418,"-141,661.59",
OXFORDSHIRE CC,"CHILDRENS, YOUNG PEOPLE AND FAMILIES",KINGFISHER,CATERING PROVISIONS,03/06/2020,7200847276,12.3,TESCO STORES 5200
OXFORDSHIRE CC,"CHILDRENS, YOUNG PEOPLE AND FAMILIES",KINGFISHER,CATERING,03/06/2020,7200847288,1.35,COSTA COFFEE 43043010
OXFORDSHIRE CC,SOCIAL AND COMMUNITY SERVICES,CSS WITNEY,DRUGS AND MEDICAL SUPPLIES,03/06/2020,7200847448,32.75,AGE CO IADVISORS
OXFORDSHIRE CC,"CHILDRENS, YOUNG PEOPLE AND FAMILIES",NORTH FSS- WITNEY,OTHER TRANSPORT ARRANGEMENTS,03/06/2020,7200847526,55,STAGECOACH SERVICE
OXFORDSHIRE CC,"CHILDRENS, YOUNG PEOPLE AND FAMILIES","	FAM SUPP SOUTH",CAR LEASING - PRIVATE RENTALS,03/06/2020,7200846424,53,AFFILIATED AUTO RENTAL
OXFORDSHIRE CC,"CHILDRENS, YOUNG PEOPLE AND FAMILIES","	MUSIC UNALLOCABLE",MATERIALS,03/06/2020,7200846462,8.99,AMAZON.CO.UK PJ7DE3QD5
OXFORDSHIRE CC,CORPORATE CORE,INCOME TEAM,PAYMENT TO GOVERNMENT DEPARTMENTS,03/06/2020,7200846506,14,GEN REGISTER OFFICE
OXFORDSHIRE CC,SOCIAL AND COMMUNITY SERVICES,RESIDENTIAL STRATEGY,CATERING PROVISIONS,03/06/2020,7200846532,16,TESCO STORE 2788
OXFORDSHIRE CC,"CHILDRENS, YOUNG PEOPLE AND FAMILIES",CNTL EARLY HELP-BRTN,"SUPPLIES, STATIONERY AND MATERIALS",03/06/2020,7200846548,254.98,HIPPOBAG
OXFORDSHIRE CC,"CHILDRENS, YOUNG PEOPLE AND FAMILIES","	40 THE MOORS",MATERIALS,03/06/2020,7200846574,179.99,CURRYS ONLINE
OXFORDSHIRE CC,"CHILDRENS, YOUNG PEOPLE AND FAMILIES",FIELDWORK UASC,POSTAGE AND DELIVERY,03/06/2020,7200846588,20.69,POST OFFICE COUNTER
OXFORDSHIRE CC,"CHILDRENS, YOUNG PEOPLE AND FAMILIES",FIELDWORK UASC,OTHER TRANSPORT ARRANGEMENTS,03/06/2020,7200846596,22.1,ROYAL CARS
OXFORDSHIRE CC,"CHILDRENS, YOUNG PEOPLE AND FAMILIES",CSS WALLINGFORD,MATERIALS,03/06/2020,7200846638,8.99,HOME BARGAINS
OXFORDSHIRE CC,"CHILDRENS, YOUNG PEOPLE AND FAMILIES",THAME E&A HOME,MATERIALS,03/06/2020,7200845894,9,AMAZON.CO.UK 4953W32S5
OXFORDSHIRE CC,"CHILDRENS, YOUNG PEOPLE AND FAMILIES","	LOOKED AFTER SOUTH",OTHER TRANSPORT ARRANGEMENTS,03/06/2020,7200845938,78.75,WWW.THEKEY.CO.UK
OXFORDSHIRE CC,"CHILDRENS, YOUNG PEOPLE AND FAMILIES",WITNEY,MATERIALS,03/06/2020,7200845956,25,ARGOS LTD
OXFORDSHIRE CC,"CHILDRENS, YOUNG PEOPLE AND FAMILIES",UASC 16&17,OTHER EXPENSES,03/06/2020,7200845984,2.3,TESCO STORE 2990
OXFORDSHIRE CC,"CHILDRENS, YOUNG PEOPLE AND FAMILIES","	LOOKED AFTER CITY 2",OTHER EXPENSES,03/06/2020,7200847896,29.99,AMZNMKTPLACE AMAZON.CO
OXFORDSHIRE CC,"CHILDRENS, YOUNG PEOPLE AND FAMILIES","	LOOKED AFTER CITY 2",OTHER TRANSPORT ARRANGEMENTS,03/06/2020,7200847912,15,IZ  ROYAL CARS OXFORD
OXFORDSHIRE CC,"CHILDRENS, YOUNG PEOPLE AND FAMILIES",UASC 16&17,OTHER EXPENSES,03/06/2020,7200845990,75.81,SAINSBURYS 0600
OXFORDSHIRE CC,ENVIRONMENT AND ECONOMY,HARD FM,EQUIPMENT,03/06/2020,7200846000,307.18,WWW.BES.CO.UK
OXFORDSHIRE CC,ENVIRONMENT AND ECONOMY,HARD FM,HARDWARE AND CROCKERY,03/06/2020,7200846014,67.71,SCREWFIX DIRECT
OXFORDSHIRE CC,ENVIRONMENT AND ECONOMY,HARD FM,HARDWARE AND CROCKERY,03/06/2020,7200846024,18.07,SCREWFIX DIRECT
OXFORDSHIRE CC,ENVIRONMENT AND ECONOMY,HARD FM,HARDWARE AND CROCKERY,03/06/2020,7200846030,5.29,SCREWFIX DIRECT
OXFORDSHIRE CC,ENVIRONMENT AND ECONOMY,HARD FM,HARDWARE AND CROCKERY,03/06/2020,7200846036,414.95,SCREWFIX DIRECT
OXFORDSHIRE CC,"CHILDRENS, YOUNG PEOPLE AND FAMILIES",THAME E&A HOME,CATERING PROVISIONS,03/06/2020,7200846048,48.8,LIGHT/MINI IN THE BOX
OXFORDSHIRE CC,ENVIRONMENT AND ECONOMY,HARD FM,MATERIALS,03/06/2020,7200846054,300,A & C SERVICES (OXFORD
OXFORDSHIRE CC,CORPORATE CORE,ICT OPERATIONS & MAI,FURNITURE,03/06/2020,7200848014,206.88,NOTIONS CREATIVE
OXFORDSHIRE CC,CORPORATE CORE,ICT OPERATIONS & MAI,IT SERVICES,03/06/2020,7200848026,300,COMMS365 LIMITED
OXFORDSHIRE CC,"CHILDRENS, YOUNG PEOPLE AND FAMILIES",WITNEY,CATERING PROVISIONS,03/06/2020,7200848048,12,SAINSBURYS 0632
OXFORDSHIRE CC,"CHILDRENS, YOUNG PEOPLE AND FAMILIES",WITNEY,CATERING PROVISIONS,03/06/2020,7200848056,2.5,SAINSBURYS 0632
OXFORDSHIRE CC,"CHILDRENS, YOUNG PEOPLE AND FAMILIES",UASC 16&17,"SUPPLIES, STATIONERY AND MATERIALS",03/06/2020,7200846832,103.27,AMAZON.CO.UK X14QY4HF5
OXFORDSHIRE CC,"CHILDRENS, YOUNG PEOPLE AND FAMILIES",UASC 16&17,"SUPPLIES, STATIONERY AND MATERIALS",03/06/2020,7200846838,284.29,AMZNMKTPLACE
OXFORDSHIRE CC,"CHILDRENS, YOUNG PEOPLE AND FAMILIES",UASC 16&17,"SUPPLIES, STATIONERY AND MATERIALS",03/06/2020,7200846844,42.1,AMZNMKTPLACE
OXFORDSHIRE CC,"CHILDRENS, YOUNG PEOPLE AND FAMILIES",UASC 16&17,"SUPPLIES, STATIONERY AND MATERIALS",03/06/2020,7200846846,134.75,AMZNMKTPLACE
OXFORDSHIRE CC,"CHILDRENS, YOUNG PEOPLE AND FAMILIES",UASC 16&17,"SUPPLIES, STATIONERY AND MATERIALS",03/06/2020,7200846856,4.21,AMZNMKTPLACE
OXFORDSHIRE CC,"CHILDRENS, YOUNG PEOPLE AND FAMILIES",UASC 16&17,"SUPPLIES, STATIONERY AND MATERIALS",03/06/2020,7200846862,25.96,AMZNMKTPLACE
OXFORDSHIRE CC,"CHILDRENS, YOUNG PEOPLE AND FAMILIES","	LEAVING CARE CITY 2",OTHER EXPENSES,03/06/2020,7200846880,52.5,ASDA STORE 4442
OXFORDSHIRE CC,"CHILDRENS, YOUNG PEOPLE AND FAMILIES","	RIVERSIDE CENTRE",DRUGS AND MEDICAL SUPPLIES,03/06/2020,7200847000,10,COWLEY PHARMACY
OXFORDSHIRE CC,CORPORATE CORE,HISTORY SERVICE,FURNITURE,03/06/2020,7200847046,29,WISESERVE LTD
OXFORDSHIRE CC,"CHILDRENS, YOUNG PEOPLE AND FAMILIES","	40 THE MOORS",MATERIALS,03/06/2020,7200847070,17.98,AMZNMKTPLACE AMAZON.CO
OXFORDSHIRE CC,SOCIAL AND COMMUNITY SERVICES,"	MUSEUMS COLLECTIONS",OTHER SERVICES,03/06/2020,7200847122,306.07,AZPACK LTD
OXFORDSHIRE CC,"CHILDRENS, YOUNG PEOPLE AND FAMILIES",THAME E&A HOME,CATERING PROVISIONS,03/06/2020,7200846118,6.65,SAINSBURYS 2096
OXFORDSHIRE CC,SOCIAL AND COMMUNITY SERVICES,DIDCOT MOVE-ON HOME,CATERING PROVISIONS,03/06/2020,7200846130,12.94,SAINSBURYS SACAT 2067
OXFORDSHIRE CC,"CHILDRENS, YOUNG PEOPLE AND FAMILIES",CSC COVID-19,OTHER SERVICES,03/06/2020,7200846174,20,TESCO ONLINE
OXFORDSHIRE CC,"CHILDRENS, YOUNG PEOPLE AND FAMILIES",CSC COVID-19,OTHER EXPENSES,03/06/2020,7200848098,59.99,AMZNMKTPLACE AMAZON.CO
OXFORDSHIRE CC,"CHILDRENS, YOUNG PEOPLE AND FAMILIES",CSC COVID-19,OTHER EXPENSES,03/06/2020,7200848100,0.01,AMZNMKTPLACE AMAZON.CO
OXFORDSHIRE CC,"CHILDRENS, YOUNG PEOPLE AND FAMILIES",DEPUTY DIRECTOR &MAN,EDUCATIONAL AND VOCATIONAL TRAINING ,03/06/2020,7200848128,474,WWW.PMGLTD.CO.UK
OXFORDSHIRE CC,CORPORATE CORE,INCOME TEAM,PAYMENT TO GOVERNMENT DEPARTMENTS,03/06/2020,7200848182,11,GEN REGISTER OFFICE
OXFORDSHIRE CC,SOCIAL AND COMMUNITY SERVICES,SCHOOLS FM,MATERIALS,03/06/2020,7200846196,23.01,AMAZON.CO.UK 4F21Y08V5
OXFORDSHIRE CC,CORPORATE CORE,LIBRARY COLLECTIONS,"NEWSPAPERS, PERIODICALS AND PUBLICATIONS",03/06/2020,7200846252,26.78,GUARDIAN NEWS & MEDIA
OXFORDSHIRE CC,SOCIAL AND COMMUNITY SERVICES,CSS BICESTER,MATERIALS,03/06/2020,7200846282,5.28,AMZNMKTPLACE AMAZON.CO
OXFORDSHIRE CC,SOCIAL AND COMMUNITY SERVICES,CSS BICESTER,MATERIALS,03/06/2020,7200846298,66,AMZNMKTPLACE
OXFORDSHIRE CC,"CHILDRENS, YOUNG PEOPLE AND FAMILIES",FAMILY SUPPORT 2,CATERING PROVISIONS,03/06/2020,7200848202,5.95,CO-OPERATIVE FOOD
OXFORDSHIRE CC,CORPORATE CORE,,"SUPPLIES, STATIONERY AND MATERIALS",03/06/2020,7200848208,43.13,LYRECO UK LTD
OXFORDSHIRE CC,CORPORATE CORE,,"SUPPLIES, STATIONERY AND MATERIALS",03/06/2020,7200848218,8.04,LYRECO UK LTD
OXFORDSHIRE CC,SOCIAL AND COMMUNITY SERVICES,CSS BICESTER,MATERIALS,03/06/2020,7200846304,10.99,AMAZON.CO.UK EX21Y5IM5
OXFORDSHIRE CC,SOCIAL AND COMMUNITY SERVICES,CSS BICESTER,MATERIALS,03/06/2020,7200846310,85.35,AMZNMKTPLACE
OXFORDSHIRE CC,CORPORATE CORE,"	COMMUNICATIONS",IT SOFTWARE,03/06/2020,7200846316,119,FSPRG.NL
OXFORDSHIRE CC,"CHILDRENS, YOUNG PEOPLE AND FAMILIES","	LEAVING CARE NORTH",CATERING PROVISIONS,03/06/2020,7200846330,4.05,MOONPIG
OXFORDSHIRE CC,"CHILDRENS, YOUNG PEOPLE AND FAMILIES","	LEAVING CARE NORTH",FURNITURE,03/06/2020,7200846342,256.05,BEDWORLD
OXFORDSHIRE CC,"CHILDRENS, YOUNG PEOPLE AND FAMILIES",NTH EARLY HELP-WITNY,GAS,03/06/2020,7200845814,16.01,ALLSTAR BUSINESS SOLUT
OXFORDSHIRE CC,"CHILDRENS, YOUNG PEOPLE AND FAMILIES",THAME E&A HOME,MATERIALS,03/06/2020,7200845872,14.99,AMZNMKTPLACE
OXFORDSHIRE CC,"CHILDRENS, YOUNG PEOPLE AND FAMILIES",THAME E&A HOME,MATERIALS,03/06/2020,7200845878,26.76,AMAZON.CO.UK 657HM7VR5
OXFORDSHIRE CC,"CHILDRENS, YOUNG PEOPLE AND FAMILIES",THAME E&A HOME,MATERIALS,03/06/2020,7200845882,5.62,AMZNMKTPLACE
OXFORDSHIRE CC,"CHILDRENS, YOUNG PEOPLE AND FAMILIES",THAME E&A HOME,MATERIALS,03/06/2020,7200845888,3.36,AMZNMKTPLACE
OXFORDSHIRE CC,"CHILDRENS, YOUNG PEOPLE AND FAMILIES",THAME E&A HOME,MATERIALS,02/06/2020,7198427130,16.98,AMZNMKTPLACE
OXFORDSHIRE CC,"CHILDRENS, YOUNG PEOPLE AND FAMILIES",THAME E&A HOME,CATERING,02/06/2020,7198427480,5.5,SAN REMO OUTDOORS LTD
OXFORDSHIRE CC,SOCIAL AND COMMUNITY SERVICES,CSS - OXFORD,HARDWARE AND CROCKERY,02/06/2020,7198427260,51.98,HOMEBASE LTD 091
OXFORDSHIRE CC,SOCIAL AND COMMUNITY SERVICES,CSS - OXFORD,CATERING PROVISIONS,02/06/2020,7198427266,9.99,WAITROSE 479
OXFORDSHIRE CC,SOCIAL AND COMMUNITY SERVICES,CSS BICESTER,CATERING PROVISIONS,02/06/2020,7198427268,4.03,ALDI 49 775
OXFORDSHIRE CC,"CHILDRENS, YOUNG PEOPLE AND FAMILIES","	40 THE MOORS",TELEPHONE - EQUIPMENT,02/06/2020,7198427508,30,EE TOPUP  VESTA
OXFORDSHIRE CC,ENVIRONMENT AND ECONOMY,"	BRIDGES GENERAL",MATERIALS,02/06/2020,7198427570,26.44,AMAZON.CO.UK MU7I95EQ5
OXFORDSHIRE CC,"CHILDRENS, YOUNG PEOPLE AND FAMILIES",UASC 16&17,"SUPPLIES, STATIONERY AND MATERIALS",02/06/2020,7198427610,5.98,AMZNMKTPLACE
OXFORDSHIRE CC,"CHILDRENS, YOUNG PEOPLE AND FAMILIES",UASC 16&17,"SUPPLIES, STATIONERY AND MATERIALS",02/06/2020,7198427620,17.94,AMZNMKTPLACE
OXFORDSHIRE CC,CORPORATE CORE,REGISTRAR,MATERIALS,02/06/2020,7198427272,101.94,AMZNMKTPLACE AMAZON.CO
OXFORDSHIRE CC,ENVIRONMENT AND ECONOMY,HARD FM,FURNITURE,02/06/2020,7198427320,"3,000.00",ANCO STORAGE EQUIPMENT
OXFORDSHIRE CC,ENVIRONMENT AND ECONOMY,HARD FM,FURNITURE,02/06/2020,7198427328,335.83,ANCO STORAGE EQUIPMENT
OXFORDSHIRE CC,SOCIAL AND COMMUNITY SERVICES,WITNEY MOVE ON HOME,CATERING PROVISIONS,02/06/2020,7198427332,5.5,SAINSBURYS 0632
OXFORDSHIRE CC,"CHILDRENS, YOUNG PEOPLE AND FAMILIES",NTH FAM SUPRT-BCSTR,MATERIALS,02/06/2020,7198427364,23.96,AMZNMKTPLACE AMAZON.CO
OXFORDSHIRE CC,"CHILDRENS, YOUNG PEOPLE AND FAMILIES",KINGFISHER,CATERING PROVISIONS,02/06/2020,7198427416,30,MARKS&SPENCER PLC
OXFORDSHIRE CC,"CHILDRENS, YOUNG PEOPLE AND FAMILIES",THAME E&A HOME,CATERING PROVISIONS,02/06/2020,7198427428,136.41,TESCO STORES 2038
OXFORDSHIRE CC,"CHILDRENS, YOUNG PEOPLE AND FAMILIES",THAME E&A HOME,CATERING,02/06/2020,7198427478,3.5,SAN REMO CATERING AT B
OXFORDSHIRE CC,"CHILDRENS, YOUNG PEOPLE AND FAMILIES",THAME E&A HOME,VEHICLE FUEL,02/06/2020,7198427712,4.09,CO-OPERATIVE FUEL
OXFORDSHIRE CC,CORPORATE CORE,HISTORY SERVICE,FURNITURE,02/06/2020,7198427738,21.9,WWW.PRESERVATIONEQUIPM
OXFORDSHIRE CC,CORPORATE CORE,HISTORY SERVICE,FURNITURE,02/06/2020,7198427738,101.52,WWW.PRESERVATIONEQUIPM
OXFORDSHIRE CC,SOCIAL AND COMMUNITY SERVICES,CSS - BANBURY,CATERING PROVISIONS,02/06/2020,7198427110,1.15,TESCO-STORES-5812
OXFORDSHIRE CC,"CHILDRENS, YOUNG PEOPLE AND FAMILIES",CSS WALLINGFORD,CATERING PROVISIONS,02/06/2020,7198427116,22.74,WAITROSE 675
OXFORDSHIRE CC,"CHILDRENS, YOUNG PEOPLE AND FAMILIES",THAME E&A HOME,MATERIALS,02/06/2020,7198427124,15.03,AMAZON.CO.UK WE1LL4KT5
OXFORDSHIRE CC,"CHILDRENS, YOUNG PEOPLE AND FAMILIES","	RIVERSIDE CENTRE",CATERING PROVISIONS,02/06/2020,7198427684,9.44,TESCO STORES 4377
OXFORDSHIRE CC,"CHILDRENS, YOUNG PEOPLE AND FAMILIES","	RIVERSIDE CENTRE",MATERIALS,02/06/2020,7198427694,10,SUMMERTOWN CYCLES
OXFORDSHIRE CC,"CHILDRENS, YOUNG PEOPLE AND FAMILIES","	RIVERSIDE CENTRE",VEHICLE FUEL,02/06/2020,7198427702,64.01,SAINSBURYS PFS0180
OXFORDSHIRE CC,"CHILDRENS, YOUNG PEOPLE AND FAMILIES","	40 THE MOORS",CATERING PROVISIONS,02/06/2020,7198428074,2.3,CO-OPERATIVE FOOD
OXFORDSHIRE CC,"CHILDRENS, YOUNG PEOPLE AND FAMILIES",NRPF & HOMELESSNESS,HIRE OF ACCOMMODATION AND FACILITIES,02/06/2020,7198428086,609,WWW.ARMASHORTSTAYS.CO.
OXFORDSHIRE CC,"CHILDRENS, YOUNG PEOPLE AND FAMILIES",DIDCOT MOVE-ON HOME,CATERING PROVISIONS,02/06/2020,7198428100,6.75,SAINSBURYS SACAT 2067
OXFORDSHIRE CC,ENVIRONMENT AND ECONOMY,"	TVERC",IT SOFTWARE,02/06/2020,7198428158,8.38,COGNITO-PRO
OXFORDSHIRE CC,"CHILDRENS, YOUNG PEOPLE AND FAMILIES","	LOOKED AFTER CITY 2",OTHER EXPENSES,02/06/2020,7198428178,21.99,AMZNMKTPLACE AMAZON.CO
OXFORDSHIRE CC,"CHILDRENS, YOUNG PEOPLE AND FAMILIES","	LEAVING CARE SOUTH",MATERIALS,02/06/2020,7198428188,107.45,ARGOS LTD
OXFORDSHIRE CC,"CHILDRENS, YOUNG PEOPLE AND FAMILIES",EYNSHAM,CATERING PROVISIONS,02/06/2020,7198428196,237.61,TESCO STORES 2008
OXFORDSHIRE CC,"CHILDRENS, YOUNG PEOPLE AND FAMILIES",EYNSHAM,MATERIALS,02/06/2020,7198428214,13.99,AMZNMKTPLACE AMAZON.CO
OXFORDSHIRE CC,"CHILDRENS, YOUNG PEOPLE AND FAMILIES","	LEAVING CARE NORTH",PAYMENTS TO TRANSPORT OPERATORS,02/06/2020,7198428246,-8,PAYPAL  TRAINLINE
OXFORDSHIRE CC,"CHILDRENS, YOUNG PEOPLE AND FAMILIES",EYNSHAM,TELEPHONE - EQUIPMENT,02/06/2020,7198428338,10,VESTA VODAFONE
OXFORDSHIRE CC,CORPORATE CORE,,"SUPPLIES, STATIONERY AND MATERIALS",02/06/2020,7198428346,21.68,LYRECO UK LTD
OXFORDSHIRE CC,CORPORATE CORE,,"SUPPLIES, STATIONERY AND MATERIALS",02/06/2020,7198428354,94.8,LYRECO UK LTD
OXFORDSHIRE CC,CORPORATE CORE,,"SUPPLIES, STATIONERY AND MATERIALS",02/06/2020,7198428358,2.54,LYRECO UK LTD
OXFORDSHIRE CC,CORPORATE CORE,,"SUPPLIES, STATIONERY AND MATERIALS",02/06/2020,7198428362,10.06,LYRECO UK LTD
OXFORDSHIRE CC,"CHILDRENS, YOUNG PEOPLE AND FAMILIES",CSS WALLINGFORD,CATERING PROVISIONS,02/06/2020,7198427212,25.25,SAINSBURYS SACAT 2244
OXFORDSHIRE CC,SOCIAL AND COMMUNITY SERVICES,CSS WITNEY,MATERIALS,02/06/2020,7198427904,28.99,AMZNMKTPLACE AMAZON.CO
OXFORDSHIRE CC,SOCIAL AND COMMUNITY SERVICES,CSS WITNEY,MATERIALS,02/06/2020,7198427912,24.94,AMAZON.CO.UK RZ8Q04HZ5
OXFORDSHIRE CC,"CHILDRENS, YOUNG PEOPLE AND FAMILIES",CSC COVID-19,MATERIALS,02/06/2020,7198427230,-43.99,AMZ GLORY OF KINGS
OXFORDSHIRE CC,"CHILDRENS, YOUNG PEOPLE AND FAMILIES",CSC COVID-19,OTHER EXPENSES,02/06/2020,7198427236,-43.99,AMZNMKTPLACE AMAZON.CO
OXFORDSHIRE CC,ENVIRONMENT AND ECONOMY,HARD FM,HARDWARE AND CROCKERY,02/06/2020,7198427244,55,WICKES OXFORD
OXFORDSHIRE CC,"CHILDRENS, YOUNG PEOPLE AND FAMILIES",S&A INTERVENTION GRT,"PUBLICITY, PROMOTIONS AND ADVERTISEMENT",01/06/2020,7194775286,10,FACEBK  Z7VYYRWXA2
OXFORDSHIRE CC,"CHILDRENS, YOUNG PEOPLE AND FAMILIES",NTH EARLY HELP-WITNY,MATERIALS,01/06/2020,7194775004,21.48,AMZNMKTPLACE AMAZON.CO
OXFORDSHIRE CC,SOCIAL AND COMMUNITY SERVICES,CSS WANTAGE,DAY ACTIVITIES,01/06/2020,7194775006,34.95,CHARLTON PARK GDN
OXFORDSHIRE CC,"CHILDRENS, YOUNG PEOPLE AND FAMILIES",THAME E&A HOME,MATERIALS,01/06/2020,7194775054,48.79,NAIO NAIO CO UK
OXFORDSHIRE CC,"CHILDRENS, YOUNG PEOPLE AND FAMILIES","	40 THE MOORS",MATERIALS,01/06/2020,7194775358,14.99,ARGOS LTD
OXFORDSHIRE CC,"CHILDRENS, YOUNG PEOPLE AND FAMILIES",DIDCOT MOVE-ON HOME,CATERING PROVISIONS,01/06/2020,7194775364,3.35,SAINSBURYS SACAT 2067
OXFORDSHIRE CC,"CHILDRENS, YOUNG PEOPLE AND FAMILIES",DIDCOT MOVE-ON HOME,CATERING PROVISIONS,01/06/2020,7194775366,57.05,SAINSBURYS 2067
OXFORDSHIRE CC,"CHILDRENS, YOUNG PEOPLE AND FAMILIES",EYNSHAM,CATERING,01/06/2020,7194775376,28.5,IZ  ADAM SOFT ICE CREA
OXFORDSHIRE CC,"CHILDRENS, YOUNG PEOPLE AND FAMILIES",THAME E&A HOME,CATERING PROVISIONS,01/06/2020,7194775056,93.5,SAINSBURYS 2096
OXFORDSHIRE CC,SOCIAL AND COMMUNITY SERVICES,DIDCOT MOVE-ON HOME,CATERING PROVISIONS,01/06/2020,7194775058,30.49,TESCO STORE 2413
OXFORDSHIRE CC,"CHILDRENS, YOUNG PEOPLE AND FAMILIES",EYNSHAM,CATERING PROVISIONS,01/06/2020,7194775060,13.5,IZ  RZ ENTERPRISES
OXFORDSHIRE CC,"CHILDRENS, YOUNG PEOPLE AND FAMILIES",EYNSHAM,CATERING PROVISIONS,01/06/2020,7194775062,1.85,CO-OPERATIVE FOOD
OXFORDSHIRE CC,"CHILDRENS, YOUNG PEOPLE AND FAMILIES",THAME E&A HOME,CATERING PROVISIONS,01/06/2020,7194775064,2.42,MPS CHINNOR CONVENIENC
OXFORDSHIRE CC,"CHILDRENS, YOUNG PEOPLE AND FAMILIES",CSC COVID-19,OTHER TRANSPORT ARRANGEMENTS,01/06/2020,7194775070,53.93,THETRAINLINE.COM
OXFORDSHIRE CC,"CHILDRENS, YOUNG PEOPLE AND FAMILIES",STH EARLY HELP-DDCOT,CAR LEASING - PRIVATE RENTALS,01/06/2020,7194775072,95,HURLEY MOTORS
OXFORDSHIRE CC,"CHILDRENS, YOUNG PEOPLE AND FAMILIES",WITNEY,CATERING PROVISIONS,01/06/2020,7194775074,13.15,SAINSBURYS SACAT 0632
OXFORDSHIRE CC,"CHILDRENS, YOUNG PEOPLE AND FAMILIES",WITNEY,CATERING PROVISIONS,01/06/2020,7194775230,5,SAINSBURYS SACAT 0632
OXFORDSHIRE CC,"CHILDRENS, YOUNG PEOPLE AND FAMILIES","	FOSTER CARE RECRUIT","PUBLICITY, PROMOTIONS AND ADVERTISEMENT",01/06/2020,7194775232,50,FACEBK  PTE2QTE6L2
OXFORDSHIRE CC,CORPORATE CORE,"	LEGAL SERVICES",EDUCATIONAL AND VOCATIONAL TRAINING ,01/06/2020,7194775236,11,OXFORDSHIRE CC MOTO1
OXFORDSHIRE CC,CORPORATE CORE,"	LEGAL SERVICES",PROFESSIONAL SUBSCRIPTIONS,01/06/2020,7194775238,456,WWW.CIPFA.ORG.UK/PFMCO
OXFORDSHIRE CC,"CHILDRENS, YOUNG PEOPLE AND FAMILIES","	RIVERSIDE CENTRE",CATERING PROVISIONS,01/06/2020,7194775240,4.28,CO-OPERATIVE FOOD
OXFORDSHIRE CC,"CHILDRENS, YOUNG PEOPLE AND FAMILIES",THAME E&A HOME,CATERING PROVISIONS,01/06/2020,7194775242,7.98,OXFORD PEARTREE KFC
OXFORDSHIRE CC,"CHILDRENS, YOUNG PEOPLE AND FAMILIES","	RIVERSIDE CENTRE",ROAD FUND LICENCES AND MOTS,01/06/2020,7194775424,167.5,DVLA VEHICLE TAX
OXFORDSHIRE CC,ENVIRONMENT AND ECONOMY,P&S OPERATIONAL REV,PAYMENTS TO VOLUNTARY BODIES,01/06/2020,7194775122,-45.9,PAYPAL  RTPI
OXFORDSHIRE CC,"CHILDRENS, YOUNG PEOPLE AND FAMILIES",KINGFISHER,VEHICLE FUEL,01/06/2020,7194775128,15,THAME BP SF CONNECT
OXFORDSHIRE CC,"CHILDRENS, YOUNG PEOPLE AND FAMILIES",KINGFISHER,MATERIALS,01/06/2020,7194775130,14.17,AMZNMKTPLACE
OXFORDSHIRE CC,SOCIAL AND COMMUNITY SERVICES,CSS BICESTER,CATERING PROVISIONS,01/06/2020,7194775136,14,WILKO RETAIL LIMITED
OXFORDSHIRE CC,"CHILDRENS, YOUNG PEOPLE AND FAMILIES",THAME E&A HOME,CATERING PROVISIONS,01/06/2020,7194775138,27.7,SAINSBURYS 2096
OXFORDSHIRE CC,"CHILDRENS, YOUNG PEOPLE AND FAMILIES",EET SERVICE,MATERIALS,01/06/2020,7194775144,33.49,MAILCHIMP    MONTHLY
OXFORDSHIRE CC,"CHILDRENS, YOUNG PEOPLE AND FAMILIES",FAMILY TIME COSTS,OTHER TRANSPORT ARRANGEMENTS,01/06/2020,7194775148,25.69,TRAINLINE
OXFORDSHIRE CC,SOCIAL AND COMMUNITY SERVICES,CSS WITNEY,CATERING PROVISIONS,01/06/2020,7194775010,7.79,CO-OPERATIVE FOOD
OXFORDSHIRE CC,"CHILDRENS, YOUNG PEOPLE AND FAMILIES",ATV ADOPTION WOODLEY,POSTAGE AND DELIVERY,01/06/2020,7194775012,35.55,POST OFFICE COUNTER
OXFORDSHIRE CC,"CHILDRENS, YOUNG PEOPLE AND FAMILIES","	LOOKED AFTER CITY 2",HIRE OF ACCOMMODATION AND FACILITIES,01/06/2020,7194775014,75.05,HOLIDAY INN DERBY RIVE
OXFORDSHIRE CC,"CHILDRENS, YOUNG PEOPLE AND FAMILIES",EYNSHAM,FURNITURE,01/06/2020,7194775016,51.96,AMZNMKTPLACE AMAZON.CO
OXFORDSHIRE CC,"CHILDRENS, YOUNG PEOPLE AND FAMILIES",EYNSHAM,FURNITURE,01/06/2020,7194775018,21.48,AMAZON.CO.UK 4189C64G5
OXFORDSHIRE CC,"CHILDRENS, YOUNG PEOPLE AND FAMILIES",STH EARLY HELP-ABNDN,MATERIALS,01/06/2020,7194775020,53.94,ARGOS LTD
OXFORDSHIRE CC,ENVIRONMENT AND ECONOMY,"	NAT TRAILS GENERAL",MATERIALS,01/06/2020,7194775028,10.38,AMZNMKTPLACE AMAZON.CO
OXFORDSHIRE CC,"CHILDRENS, YOUNG PEOPLE AND FAMILIES","	MANAGEMENT & ADMIN",OTHER TRANSPORT ARRANGEMENTS,01/06/2020,7194775030,15.05,PARCELFORCE WL
OXFORDSHIRE CC,"CHILDRENS, YOUNG PEOPLE AND FAMILIES","	MANAGEMENT & ADMIN",OTHER TRANSPORT ARRANGEMENTS,01/06/2020,7194775032,15.05,PARCELFORCE WL
OXFORDSHIRE CC,"CHILDRENS, YOUNG PEOPLE AND FAMILIES",THAME E&A HOME,VEHICLE FUEL,01/06/2020,7194775034,10.03,SHELL GROVEBURY
OXFORDSHIRE CC,"CHILDRENS, YOUNG PEOPLE AND FAMILIES","	40 THE MOORS",MATERIALS,01/06/2020,7194775340,7.99,AMAZON PRIME UG7N90G15
OXFORDSHIRE CC,"CHILDRENS, YOUNG PEOPLE AND FAMILIES",EYNSHAM,MATERIALS,01/06/2020,7194775342,23.18,AMZNMKTPLACE
OXFORDSHIRE CC,ENVIRONMENT AND ECONOMY,HARD FM,HARDWARE AND CROCKERY,01/06/2020,7194775038,23.99,SCREWFIX DIRECT
OXFORDSHIRE CC,ENVIRONMENT AND ECONOMY,HARD FM,HARDWARE AND CROCKERY,01/06/2020,7194775040,39.17,SCREWFIX DIRECT
OXFORDSHIRE CC,"CHILDRENS, YOUNG PEOPLE AND FAMILIES",THAME E&A HOME,MATERIALS,01/06/2020,7194775042,7.99,AMAZON PRIME 8O8BS3425
OXFORDSHIRE CC,"CHILDRENS, YOUNG PEOPLE AND FAMILIES",THAME E&A HOME,CATERING PROVISIONS,01/06/2020,7194775044,4,SAINSBURYS SACAT 2096
OXFORDSHIRE CC,"CHILDRENS, YOUNG PEOPLE AND FAMILIES",THAME E&A HOME,CATERING PROVISIONS,01/06/2020,7194775046,40.31,CO-OPERATIVE FOOD
OXFORDSHIRE CC,"CHILDRENS, YOUNG PEOPLE AND FAMILIES",THAME E&A HOME,RESIDENTIAL ACTIVITIES,01/06/2020,7194775048,20.05,TESCO PFS 2488
OXFORDSHIRE CC,ENVIRONMENT AND ECONOMY,HARD FM,HARDWARE AND CROCKERY,01/06/2020,7194775050,17.89,WICKES OXFORD
OXFORDSHIRE CC,ENVIRONMENT AND ECONOMY,COUNTY LIBRARY,HARDWARE AND CROCKERY,01/06/2020,7194775052,17.99,SCREWFIX DIRECT
OXFORDSHIRE CC,ENVIRONMENT AND ECONOMY,SERVICE DEV OFFICER,"PUBLICITY, PROMOTIONS AND ADVERTISEMENT",01/06/2020,7194775156,49.68,FACEBK  WCSRZREW52
OXFORDSHIRE CC,"CHILDRENS, YOUNG PEOPLE AND FAMILIES","	HOME SUPPORT",MATERIALS,01/06/2020,7194775160,64.82,AMZNMKTPLACE
OXFORDSHIRE CC,"CHILDRENS, YOUNG PEOPLE AND FAMILIES","	RESIDENTIAL STRATEGY",CATERING PROVISIONS,01/06/2020,7194775164,3.7,SAINSBURYS 0600
OXFORDSHIRE CC,SOCIAL AND COMMUNITY SERVICES,COMMENTS&INFORMATION,EQUIPMENT,01/06/2020,7194775166,24.3,POSTURITE LTD
OXFORDSHIRE CC,"CHILDRENS, YOUNG PEOPLE AND FAMILIES","	FAMILY SUPPORT CITY3",PAYMENT TO GOVERNMENT DEPARTMENTS,01/06/2020,7194775168,14,GEN REGISTER OFFICE
OXFORDSHIRE CC,"CHILDRENS, YOUNG PEOPLE AND FAMILIES","	40 THE MOORS",CATERING PROVISIONS,01/06/2020,7194775178,111.35,SAINSBURYS TO YOU 0600
OXFORDSHIRE CC,"CHILDRENS, YOUNG PEOPLE AND FAMILIES","	40 THE MOORS",CATERING PROVISIONS,01/06/2020,7194775180,97.27,SAINSBURYS (2243)
OXFORDSHIRE CC,ENVIRONMENT AND ECONOMY,"	TVERC",PAYMENT TO GOVERNMENT DEPARTMENTS,01/06/2020,7194775392,6,LAND REGISTRY
OXFORDSHIRE CC,ENVIRONMENT AND ECONOMY,"	TVERC",PAYMENT TO GOVERNMENT DEPARTMENTS,01/06/2020,7194775394,6,LAND REGISTRY
OXFORDSHIRE CC,"CHILDRENS, YOUNG PEOPLE AND FAMILIES","	LEAVING CARE CITY 2",OTHER EXPENSES,01/06/2020,7194775396,51,ARGOS LTD
OXFORDSHIRE CC,"CHILDRENS, YOUNG PEOPLE AND FAMILIES",CSC COVID-19,OTHER EXPENSES,01/06/2020,7194775080,357,CURRYS ONLINE
OXFORDSHIRE CC,CORPORATE CORE,LIBRARY COLLECTIONS,"NEWSPAPERS, PERIODICALS AND PUBLICATIONS",01/06/2020,7194775082,32.7,GUARDIAN NEWS & MEDIA
OXFORDSHIRE CC,CORPORATE CORE,LIBRARY COLLECTIONS,"NEWSPAPERS, PERIODICALS AND PUBLICATIONS",01/06/2020,7194775084,32.7,GUARDIAN NEWS & MEDIA
OXFORDSHIRE CC,CORPORATE CORE,LIBRARY COLLECTIONS,"NEWSPAPERS, PERIODICALS AND PUBLICATIONS",01/06/2020,7194775086,32.7,GUARDIAN NEWS & MEDIA
OXFORDSHIRE CC,CORPORATE CORE,LIBRARY COLLECTIONS,"NEWSPAPERS, PERIODICALS AND PUBLICATIONS",01/06/2020,7194775088,32.7,GUARDIAN NEWS & MEDIA
OXFORDSHIRE CC,CORPORATE CORE,LIBRARY COLLECTIONS,"NEWSPAPERS, PERIODICALS AND PUBLICATIONS",01/06/2020,7194775090,32.7,GUARDIAN NEWS & MEDIA
OXFORDSHIRE CC,CORPORATE CORE,LIBRARY COLLECTIONS,"NEWSPAPERS, PERIODICALS AND PUBLICATIONS",01/06/2020,7194775092,32.7,GUARDIAN NEWS & MEDIA
OXFORDSHIRE CC,CORPORATE CORE,LIBRARY COLLECTIONS,"NEWSPAPERS, PERIODICALS AND PUBLICATIONS",01/06/2020,7194775094,32.7,GUARDIAN NEWS & MEDIA
OXFORDSHIRE CC,"CHILDRENS, YOUNG PEOPLE AND FAMILIES","	LEAVING CARE CITY 2",OTHER EXPENSES,01/06/2020,7194775398,211.95,ARGOS LTD
OXFORDSHIRE CC,CORPORATE CORE,ICT OPERATIONS & MAI,MATERIALS,01/06/2020,7194775400,"1,312.00",AMAZON.CO.UK EK6LY8FP5
OXFORDSHIRE CC,"CHILDRENS, YOUNG PEOPLE AND FAMILIES",WITNEY,CATERING PROVISIONS,01/06/2020,7194775402,53.55,SAINSBURYS 0632
OXFORDSHIRE CC,"CHILDRENS, YOUNG PEOPLE AND FAMILIES",WITNEY,CATERING PROVISIONS,01/06/2020,7194775404,107.08,SAINSBURYS 0632
OXFORDSHIRE CC,"CHILDRENS, YOUNG PEOPLE AND FAMILIES",WITNEY,HARDWARE AND CROCKERY,01/06/2020,7194775406,113,B & Q 1176
OXFORDSHIRE CC,"CHILDRENS, YOUNG PEOPLE AND FAMILIES",EYNSHAM,IT SOFTWARE,01/06/2020,7194775408,13,MAYFIELD EGGS
OXFORDSHIRE CC,"CHILDRENS, YOUNG PEOPLE AND FAMILIES",EYNSHAM,MATERIALS,01/06/2020,7194775410,28.88,AMZNMKTPLACE
OXFORDSHIRE CC,"CHILDRENS, YOUNG PEOPLE AND FAMILIES",HOUSE PROJECT,TELEPHONE - EQUIPMENT,01/06/2020,7194775412,10,VESTA VODAFONE
OXFORDSHIRE CC,"CHILDRENS, YOUNG PEOPLE AND FAMILIES",UASC 16&17,"SUPPLIES, STATIONERY AND MATERIALS",01/06/2020,7194775416,16.75,AMAZON.CO.UK K85CF5WB5
OXFORDSHIRE CC,CORPORATE CORE,LIBRARY COLLECTIONS,"NEWSPAPERS, PERIODICALS AND PUBLICATIONS",01/06/2020,7194775096,32.7,GUARDIAN NEWS & MEDIA
OXFORDSHIRE CC,"CHILDRENS, YOUNG PEOPLE AND FAMILIES",NTH FAM SUPRT-BCSTR,"BOOKS, DVDS AND CDS",01/06/2020,7194775102,55.99,AMZN DIGITAL
OXFORDSHIRE CC,"CHILDRENS, YOUNG PEOPLE AND FAMILIES",NTH FAM SUPRT-BCSTR,MATERIALS,01/06/2020,7194775104,18.49,AMZNMKTPLACE
OXFORDSHIRE CC,"CHILDRENS, YOUNG PEOPLE AND FAMILIES",NTH FAM SUPRT-BCSTR,MATERIALS,01/06/2020,7194775106,419.98,AMZNMKTPLACE AMAZON.CO
OXFORDSHIRE CC,"CHILDRENS, YOUNG PEOPLE AND FAMILIES",NTH FAM SUPRT-BCSTR,"BOOKS, DVDS AND CDS",01/06/2020,7194775108,55.99,AMZN DIGITAL
OXFORDSHIRE CC,"CHILDRENS, YOUNG PEOPLE AND FAMILIES",NTH FAM SUPRT-BCSTR,MATERIALS,01/06/2020,7194775110,419.98,AMZNMKTPLACE
OXFORDSHIRE CC,"CHILDRENS, YOUNG PEOPLE AND FAMILIES",NTH FAM SUPRT-BCSTR,MATERIALS,01/06/2020,7194775112,7.99,AMAZON.CO.UK KB2QR4G45
OXFORDSHIRE CC,"CHILDRENS, YOUNG PEOPLE AND FAMILIES",NTH FAM SUPRT-BCSTR,MATERIALS,01/06/2020,7194775114,15.97,AMZNMKTPLACE
OXFORDSHIRE CC,"CHILDRENS, YOUNG PEOPLE AND FAMILIES",UASC 16&17,"SUPPLIES, STATIONERY AND MATERIALS",01/06/2020,7194775418,6.64,AMAZON.CO.UK 8O7CL0ZF5
OXFORDSHIRE CC,SOCIAL AND COMMUNITY SERVICES,"	MUSEUMS COLLECTIONS",OTHER SERVICES,29/05/2020,7192228342,21.48,AMZNMKTPLACE
OXFORDSHIRE CC,"CHILDRENS, YOUNG PEOPLE AND FAMILIES","	40 THE MOORS",MATERIALS,29/05/2020,7192228378,299,CURRYS ONLINE
OXFORDSHIRE CC,"CHILDRENS, YOUNG PEOPLE AND FAMILIES","	40 THE MOORS",CATERING PROVISIONS,29/05/2020,7192228380,20,TESCO STORE 2788
OXFORDSHIRE CC,"CHILDRENS, YOUNG PEOPLE AND FAMILIES","	40 THE MOORS",CATERING,29/05/2020,7192228382,49.46,WWW.PAPAJOHNS.CO.UK
OXFORDSHIRE CC,"CHILDRENS, YOUNG PEOPLE AND FAMILIES",DIDCOT MOVE-ON HOME,CATERING PROVISIONS,29/05/2020,7192228388,11,SAINSBURYS SACAT 2067
OXFORDSHIRE CC,ENVIRONMENT AND ECONOMY,"	TVERC",PAYMENT TO GOVERNMENT DEPARTMENTS,29/05/2020,7192228482,3,LAND REGISTRY
OXFORDSHIRE CC,ENVIRONMENT AND ECONOMY,"	TVERC",PAYMENT TO GOVERNMENT DEPARTMENTS,29/05/2020,7192228498,3,LAND REGISTRY
OXFORDSHIRE CC,ENVIRONMENT AND ECONOMY,"	TVERC",PAYMENT TO GOVERNMENT DEPARTMENTS,29/05/2020,7192228508,3,LAND REGISTRY
OXFORDSHIRE CC,ENVIRONMENT AND ECONOMY,"	TVERC",PAYMENT TO GOVERNMENT DEPARTMENTS,29/05/2020,7192228518,6,LAND REGISTRY
OXFORDSHIRE CC,ENVIRONMENT AND ECONOMY,"	TVERC",PAYMENT TO GOVERNMENT DEPARTMENTS,29/05/2020,7192228526,6,LAND REGISTRY
OXFORDSHIRE CC,"CHILDRENS, YOUNG PEOPLE AND FAMILIES","	LOOKED AFTER CITY 2",OTHER TRANSPORT ARRANGEMENTS,29/05/2020,7192228546,70,IZ  ROYAL CARS OXFORD
OXFORDSHIRE CC,CORPORATE CORE,ICT OPERATIONS & MAI,MATERIALS,29/05/2020,7192228568,76,AMZNMKTPLACE AMAZON.CO
OXFORDSHIRE CC,"CHILDRENS, YOUNG PEOPLE AND FAMILIES",EYNSHAM,CATERING PROVISIONS,29/05/2020,7192228598,112.25,TESCO STORES 2008
OXFORDSHIRE CC,"CHILDRENS, YOUNG PEOPLE AND FAMILIES",THAME E&A HOME,VEHICLE FUEL,29/05/2020,7192228606,5.75,THAME BP SF CONNECT
OXFORDSHIRE CC,CORPORATE CORE,MOTOR FLEET,MOTOR IF OWN DAMAGE,29/05/2020,7192228616,"1,692.34",WHOLESALE AUTOPARTS
OXFORDSHIRE CC,CORPORATE CORE,MOTOR FLEET,MOTOR IF OWN DAMAGE,29/05/2020,7192228626,"1,103.54",WHOLESALE AUTOPARTS
OXFORDSHIRE CC,CORPORATE CORE,MOTOR FLEET,MOTOR IF OWN DAMAGE,29/05/2020,7192228628,"1,023.62",WHOLESALE AUTOPARTS
OXFORDSHIRE CC,"CHILDRENS, YOUNG PEOPLE AND FAMILIES",EYNSHAM,CATERING PROVISIONS,29/05/2020,7192228634,4.4,CO-OPERATIVE FOOD
OXFORDSHIRE CC,"CHILDRENS, YOUNG PEOPLE AND FAMILIES",CNTL EARLY HELP-RHIL,MATERIALS,29/05/2020,7192228636,10.28,AMAZON.CO.UK E62QA42W5
OXFORDSHIRE CC,CORPORATE CORE,,"SUPPLIES, STATIONERY AND MATERIALS",29/05/2020,7192228644,171.65,LYRECO UK LTD
OXFORDSHIRE CC,CORPORATE CORE,,"SUPPLIES, STATIONERY AND MATERIALS",29/05/2020,7192228646,74.83,LYRECO UK LTD
OXFORDSHIRE CC,CORPORATE CORE,,"SUPPLIES, STATIONERY AND MATERIALS",29/05/2020,7192228648,3.79,LYRECO UK LTD
OXFORDSHIRE CC,ENTERPRISEVC,,CAR LEASING - PRIVATE RENTALS,29/05/2020,7192228650,46.85,ENTERPRISE RENT-A-CAR
OXFORDSHIRE CC,ENTERPRISEVC,,CAR LEASING - PRIVATE RENTALS,29/05/2020,7192228652,411.6,ENTERPRISE RENT-A-CAR
OXFORDSHIRE CC,ENTERPRISEVC,,CAR LEASING - PRIVATE RENTALS,29/05/2020,7192228656,411.6,ENTERPRISE RENT-A-CAR
OXFORDSHIRE CC,ENTERPRISEVC,,CAR LEASING - PRIVATE RENTALS,29/05/2020,7192228662,411.6,ENTERPRISE RENT-A-CAR
OXFORDSHIRE CC,ENTERPRISEVC,,CAR LEASING - PRIVATE RENTALS,29/05/2020,7192228666,415.97,ENTERPRISE RENT-A-CAR
OXFORDSHIRE CC,ENTERPRISEVC,,CAR LEASING - PRIVATE RENTALS,29/05/2020,7192228672,80.44,ENTERPRISE RENT-A-CAR
OXFORDSHIRE CC,ENTERPRISEVC,,CAR LEASING - PRIVATE RENTALS,29/05/2020,7192228676,46.85,ENTERPRISE RENT-A-CAR
OXFORDSHIRE CC,ENTERPRISEVC,,CAR LEASING - PRIVATE RENTALS,29/05/2020,7192228684,401.11,ENTERPRISE RENT-A-CAR
OXFORDSHIRE CC,ENTERPRISEVC,,CAR LEASING - PRIVATE RENTALS,29/05/2020,7192228688,210.68,ENTERPRISE RENT-A-CAR
OXFORDSHIRE CC,ENTERPRISEVC,,CAR LEASING - PRIVATE RENTALS,29/05/2020,7192228690,139.42,ENTERPRISE RENT-A-CAR
OXFORDSHIRE CC,ENTERPRISEVC,,CAR LEASING - PRIVATE RENTALS,29/05/2020,7192228694,488.54,ENTERPRISE RENT-A-CAR
OXFORDSHIRE CC,ENTERPRISEVC,,CAR LEASING - PRIVATE RENTALS,29/05/2020,7192228696,415.97,ENTERPRISE RENT-A-CAR
OXFORDSHIRE CC,"CHILDRENS, YOUNG PEOPLE AND FAMILIES",NORTH FSS- WITNEY,MEDICAL AND COUNSELLING FEES,29/05/2020,7192228106,95,WWW.ALERETOXICOLOGY.CO
OXFORDSHIRE CC,SOCIAL AND COMMUNITY SERVICES,CSS BICESTER,MATERIALS,29/05/2020,7192228112,45.54,AMZNMKTPLACE AMAZON.CO
OXFORDSHIRE CC,"CHILDRENS, YOUNG PEOPLE AND FAMILIES",EYNSHAM,CATERING,29/05/2020,7192228130,13.64,CO-OPERATIVE FOOD
OXFORDSHIRE CC,"CHILDRENS, YOUNG PEOPLE AND FAMILIES","	OSCB",MATERIALS,29/05/2020,7192228132,24.57,AMAZON.CO.UK JT6G77DJ5
OXFORDSHIRE CC,ENVIRONMENT AND ECONOMY,"	NAT TRAILS GENERAL",HEALTH AND SAFETY EQUIPMENT,29/05/2020,7192228134,340.7,KLARNA  GUSTHARTS COM
OXFORDSHIRE CC,ENVIRONMENT AND ECONOMY,"	NAT TRAILS GENERAL",MATERIALS,29/05/2020,7192228136,264,M & M SKIP HIRE
OXFORDSHIRE CC,SOCIAL AND COMMUNITY SERVICES,CSS - ABINGDON,MATERIALS,29/05/2020,7192228138,8.99,AMZNMKTPLACE
OXFORDSHIRE CC,"CHILDRENS, YOUNG PEOPLE AND FAMILIES",MEMBERS ALLOWANCES,MATERIALS,29/05/2020,7192228140,27.99,WWW.THEWORKS.CO.UK
OXFORDSHIRE CC,"CHILDRENS, YOUNG PEOPLE AND FAMILIES",UASC 16&17,OTHER EXPENSES,29/05/2020,7192228144,20,TESCO STORE 2994
OXFORDSHIRE CC,"CHILDRENS, YOUNG PEOPLE AND FAMILIES",UASC 16&17,OTHER EXPENSES,29/05/2020,7192228146,14.3,TESCO STORE 2994
OXFORDSHIRE CC,ENVIRONMENT AND ECONOMY,HARD FM,EQUIPMENT,29/05/2020,7192228148,39.55,NEWEY & EYRE
OXFORDSHIRE CC,ENVIRONMENT AND ECONOMY,HARD FM,HARDWARE AND CROCKERY,29/05/2020,7192228150,36.8,B & Q 1176
OXFORDSHIRE CC,ENVIRONMENT AND ECONOMY,HARD FM,HARDWARE AND CROCKERY,29/05/2020,7192228152,14.98,SCREWFIX DIRECT
OXFORDSHIRE CC,ENVIRONMENT AND ECONOMY,HARD FM,HARDWARE AND CROCKERY,29/05/2020,7192228154,90.63,SCREWFIX DIRECT
OXFORDSHIRE CC,ENVIRONMENT AND ECONOMY,HARD FM,HARDWARE AND CROCKERY,29/05/2020,7192228156,24.14,SCREWFIX DIRECT
OXFORDSHIRE CC,"CHILDRENS, YOUNG PEOPLE AND FAMILIES",ICT INFORMATION,IT SOFTWARE,29/05/2020,7192228158,111.14,FS  KANBANFLOW
OXFORDSHIRE CC,"CHILDRENS, YOUNG PEOPLE AND FAMILIES","	LEAVING CARE NORTH",CLOTHING AND UNIFORMS,29/05/2020,7192228160,47.5,MAINLINE MENSWEAR LTD
OXFORDSHIRE CC,"CHILDRENS, YOUNG PEOPLE AND FAMILIES","	LEAVING CARE NORTH",MATERIALS,29/05/2020,7192228162,63.99,JD SPORTS INTERNET
OXFORDSHIRE CC,"CHILDRENS, YOUNG PEOPLE AND FAMILIES","	LEAVING CARE NORTH",MATERIALS,29/05/2020,7192228166,28.99,JD SPORTS INTERNET
OXFORDSHIRE CC,"CHILDRENS, YOUNG PEOPLE AND FAMILIES",THAME E&A HOME,CATERING PROVISIONS,29/05/2020,7192228170,20.65,SAINSBURYS SACAT 2096
OXFORDSHIRE CC,"CHILDRENS, YOUNG PEOPLE AND FAMILIES",UASC 16&17,OTHER TRANSPORT ARRANGEMENTS,29/05/2020,7192228186,5.6,JUSTPARK
OXFORDSHIRE CC,"CHILDRENS, YOUNG PEOPLE AND FAMILIES","	DISABILITIES TEAM-N",MATERIALS,29/05/2020,7192228188,16.99,AMZNMKTPLACE AMAZON.CO
OXFORDSHIRE CC,"CHILDRENS, YOUNG PEOPLE AND FAMILIES","	LOOKED AFTER CITY 1",REGISTRATION AND INSPECTION FEES,29/05/2020,7192228192,14,GEN REGISTER OFFICE
OXFORDSHIRE CC,"CHILDRENS, YOUNG PEOPLE AND FAMILIES","	LOOKED AFTER CITY 1",REGISTRATION AND INSPECTION FEES,29/05/2020,7192228194,14,GEN REGISTER OFFICE
OXFORDSHIRE CC,SOCIAL AND COMMUNITY SERVICES,CSS - OXFORD,MATERIALS,29/05/2020,7192228202,81.12,AMAZON.CO.UK PH6ZZ0MV5
OXFORDSHIRE CC,ENVIRONMENT AND ECONOMY,"	MOUNT HOUSE",MATERIALS,29/05/2020,7192228206,32.2,AMZNMKTPLACE AMAZON.CO
OXFORDSHIRE CC,"CHILDRENS, YOUNG PEOPLE AND FAMILIES","	LOOKED AFTER CITY 1",MATERIALS,29/05/2020,7192228232,-7.99,WWW.STUDIO.CO.UK
OXFORDSHIRE CC,"CHILDRENS, YOUNG PEOPLE AND FAMILIES",THAME E&A HOME,CATERING PROVISIONS,29/05/2020,7192228250,4.5,SAINSBURYS SACAT 2096
OXFORDSHIRE CC,"CHILDRENS, YOUNG PEOPLE AND FAMILIES",CNTL EARLY HELP-BRTN,MATERIALS,29/05/2020,7192228252,19.96,AMZNMKTPLACE
OXFORDSHIRE CC,"CHILDRENS, YOUNG PEOPLE AND FAMILIES","	40 THE MOORS",CATERING PROVISIONS,29/05/2020,7192228260,15,TESCO STORE 2788
OXFORDSHIRE CC,"CHILDRENS, YOUNG PEOPLE AND FAMILIES",WITNEY,CATERING PROVISIONS,29/05/2020,7192228302,27.45,CO-OP GROUP 070582
OXFORDSHIRE CC,"CHILDRENS, YOUNG PEOPLE AND FAMILIES","	RIVERSIDE CENTRE",MATERIALS,29/05/2020,7192228326,565.87,AMZNMKTPLACE AMAZON.CO
OXFORDSHIRE CC,"CHILDRENS, YOUNG PEOPLE AND FAMILIES",THAME E&A HOME,MATERIALS,29/05/2020,7192228328,27.23,AMZNMKTPLACE
OXFORDSHIRE CC,"CHILDRENS, YOUNG PEOPLE AND FAMILIES",THAME E&A HOME,OTHER TRANSPORT ARRANGEMENTS,29/05/2020,7192228334,2.2,CHERWELL
